Workbook

Sheet Period 1
A1: Subject | B1: hours | C1: WBA | D1: BDQ | E1: log half BDQ | F1: censored log half BDQ | G1: censored subj | H1: censored WBA | J1: Arm | L1: log half BDQ w/ 1ng floor
A2: 10011004 | B2: 0 | C2: 0.1936351921 | D2: 0 | E2: =LOG(D2*0.5) ->  | J2: RBT | L2: =IF(D2=0,0,LOG(D2)) -> 0 | M2: =IF(L2="","",L2-3) -> -3
A3: 10011004 | B3: 1 | C3: 0.07570050354 | E3: =LOG(D3*0.5) ->  | J3: RBT | M3: =IF(L3="","",L3-3) -> 
A4: 10011004 | B4: 2 | C4: 0.05623962532 | D4: 352.27 | E4: 2.245845664 | J4: RBT | L4: =IF(D4=0,0,LOG(D4)) -> 2.546875659 | M4: -0.4531243406
A5: 10011004 | B5: 3 | C5: -0.4257052287 | D5: 3841.027 | E5: 3.283417364 | F5: =IF(C5<0.05,E5,"") -> 3.283417364 | G5: =IF(F5<>"",A5,"") -> 10011004 | H5: =IF(F5<>"",C5,"") -> -0.4257052287 | J5: RBT | L5: 3.58444736 | M5: 0.58444736
A6: 10011004 | B6: 4 | C6: -0.6081260606 | D6: 4992.951 | E6: 3.397327308 | F6: 3.397327308 | G6: 10011004 | H6: -0.6081260606 | J6: RBT | L6: 3.698357304 | M6: 0.698357304
A7: 10011004 | B7: 6 | C7: -0.4415677086 | D7: 3432.617 | E7: 3.234595353 | F7: 3.234595353 | G7: 10011004 | H7: -0.4415677086 | J7: RBT | L7: 3.535625349 | M7: 0.535625349
A8: 10011004 | B8: 8 | C8: -0.3890816077 | D8: 1895.43 | E8: 2.976677754 | F8: 2.976677754 | G8: 10011004 | H8: -0.3890816077 | J8: RBT | L8: 3.27770775 | M8: 0.2777077502
A9: 10011011 | B9: 0 | C9: 0.1903625082 | D9: 0 | J9: RBT | L9: 0 | M9: -3
A10: 10011011 | B10: 1 | C10: 0.1840373908 | D10: 125.554 | E10: 1.797800558 | J10: RBT | L10: 2.098830553 | M10: -0.9011694466
A11: 10011011 | B11: 2 | C11: -0.1466745325 | D11: 1409.698 | E11: 2.848096088 | F11: 2.848096088 | G11: 10011011 | H11: -0.1466745325 | J11: RBT | L11: 3.149126084 | M11: 0.1491260836
A12: 10011011 | B12: 3 | C12: -0.4477872104 | D12: 3498.947 | E12: 3.242907368 | F12: 3.242907368 | G12: 10011011 | H12: -0.4477872104 | J12: RBT | L12: 3.543937364 | M12: 0.5439373641
A13: 10011011 | B13: 4 | C13: -0.4307249926 | D13: 5584.259 | E13: 3.445935557 | F13: 3.445935557 | G13: 10011011 | H13: -0.4307249926 | J13: RBT | L13: 3.746965553 | M13: 0.7469655528
A14: 10011011 | B14: 6 | C14: -0.464567395 | D14: 4828.2 | E14: 3.382755256 | F14: 3.382755256 | G14: 10011011 | H14: -0.464567395 | J14: RBT | L14: 3.683785252 | M14: 0.6837852517
A15: 10011011 | B15: 8 | C15: -0.461233474 | D15: 3124.298 | E15: 3.193722455 | F15: 3.193722455 | G15: 10011011 | H15: -0.461233474 | J15: RBT | L15: 3.494752451 | M15: 0.4947524508
A16: 10011016 | B16: 0 | C16: 0.2043041444 | D16: 0 | J16: RBT | L16: 0 | M16: -3
A17: 10011016 | B17: 1 | C17: -0.03123871271 | D17: 656.248 | E17: 2.516037997 | F17: 2.516037997 | G17: 10011016 | H17: -0.03123871271 | J17: RBT | L17: 2.817067993 | M17: -0.1829320072
A18: 10011016 | B18: 2 | C18: -0.3155672181 | D18: 3352.16 | E18: 3.224294744 | F18: 3.224294744 | G18: 10011016 | H18: -0.3155672181 | J18: RBT | L18: 3.52532474 | M18: 0.5253247395
A19: 10011016 | B19: 3 | C19: -0.3498541638 | D19: 2635.979 | E19: 3.11991195 | F19: 3.11991195 | G19: 10011016 | H19: -0.3498541638 | J19: RBT | L19: 3.420941946 | M19: 0.4209419461
A20: 10011016 | B20: 4 | C20: -0.3038759788 | D20: 2721.364 | E20: 3.13375664 | F20: 3.13375664 | G20: 10011016 | H20: -0.3038759788 | J20: RBT | L20: 3.434786635 | M20: 0.4347866354
A21: 10011016 | B21: 6 | C21: -0.4530608745 | D21: 4189.145 | E21: 3.321095397 | F21: 3.321095397 | G21: 10011016 | H21: -0.4530608745 | J21: RBT | L21: 3.622125393 | M21: 0.622125393
A22: 10011016 | B22: 8 | C22: -0.263903175 | D22: 1748.125 | E22: 2.941542488 | F22: 2.941542488 | G22: 10011016 | H22: -0.263903175 | J22: RBT | L22: 3.242572484 | M22: 0.2425724837
A23: 10011018 | B23: 0 | C23: 0.1914536177 | D23: 0 | J23: RBT | L23: 0 | M23: -3
A24: 10011018 | B24: 1 | C24: 0.2107909273 | D24: 26.244 | E24: 1.118000033 | J24: RBT | L24: 1.419030029 | M24: -1.580969971
A25: 10011018 | B25: 2 | C25: 0.0711736933 | D25: 680.293 | E25: 2.531666007 | J25: RBT | L25: 2.832696002 | M25: -0.1673039978
A26: 10011018 | B26: 3 | C26: -0.1101271686 | D26: 1860.866 | E26: 2.968685105 | F26: 2.968685105 | G26: 10011018 | H26: -0.1101271686 | J26: RBT | L26: 3.269715101 | M26: 0.2697151009
A27: 10011018 | B27: 4 | C27: -0.3038759788 | D27: 3140.994 | E27: 3.196037111 | F27: 3.196037111 | G27: 10011018 | H27: -0.3038759788 | J27: RBT | L27: 3.497067107 | M27: 0.4970671068
A28: 10011018 | B28: 6 | C28: -0.4665071381 | D28: 5553.449 | E28: 3.443532792 | F28: 3.443532792 | G28: 10011018 | H28: -0.4665071381 | J28: RBT | L28: 3.744562788 | M28: 0.7445627879
A29: 10011018 | B29: 8 | C29: -0.3647288337 | D29: 2441.806 | E29: 3.086681161 | F29: 3.086681161 | G29: 10011018 | H29: -0.3647288337 | J29: RBT | L29: 3.387711157 | M29: 0.3877111565
A30: 10011022 | B30: 0 | C30: 0.09809344348 | D30: 0 | J30: RBT | L30: 0 | M30: -3
A31: 10011022 | B31: 1 | C31: 0.06908638271 | D31: 133.566 | E31: 1.824665924 | J31: RBT | L31: 2.12569592 | M31: -0.87430408
A32: 10011022 | B32: 2 | C32: -0.3329556761 | D32: 1591.913 | E32: 2.900889334 | F32: 2.900889334 | G32: 10011022 | H32: -0.3329556761 | J32: RBT | L32: 3.201919329 | M32: 0.2019193293
A33: 10011022 | B33: 3 | C33: -0.5051327015 | D33: 3872.703 | E33: 3.286984196 | F33: 3.286984196 | G33: 10011022 | H33: -0.5051327015 | J33: RBT | L33: 3.588014192 | M33: 0.5880141919
A34: 10011022 | B34: 4 | C34: -0.6800186652 | D34: 4151.807 | E34: 3.317207161 | F34: 3.317207161 | G34: 10011022 | H34: -0.6800186652 | J34: RBT | L34: 3.618237157 | M34: 0.6182371568
A35: 10011022 | B35: 6 | C35: -0.6274069934 | D35: 4921.328 | E35: 3.391052315 | F35: 3.391052315 | G35: 10011022 | H35: -0.6274069934 | J35: RBT | L35: 3.692082311 | M35: 0.6920823112
A36: 10011022 | B36: 8 | C36: -0.467912229 | D36: 1467.816 | E36: 2.865641622 | F36: 2.865641622 | G36: 10011022 | H36: -0.467912229 | J36: RBT | L36: 3.166671617 | M36: 0.1666716174
A37: 10011024 | B37: 0 | C37: 0.3860466934 | D37: 0 | J37: RBT | L37: 0 | M37: -3
A38: 10011024 | B38: 1 | C38: 0.2920485278 | D38: 32.927 | E38: 1.216522168 | J38: RBT | L38: 1.517552164 | M38: -1.482447836
A39: 10011024 | B39: 3 | C39: -0.126453343 | D39: 2098.962 | E39: 3.02097458 | F39: 3.02097458 | G39: 10011024 | H39: -0.126453343 | J39: RBT | L39: 3.322004576 | M39: 0.3220045761
A40: 10011024 | B40: 4 | C40: -0.1490640339 | D40: 2156.347 | E40: 3.032688653 | F40: 3.032688653 | G40: 10011024 | H40: -0.1490640339 | J40: RBT | L40: 3.333718649 | M40: 0.3337186489
A41: 10011024 | B41: 6 | C41: -0.4388740205 | D41: 7062.393 | E41: 3.547921885 | F41: 3.547921885 | G41: 10011024 | H41: -0.4388740205 | J41: RBT | L41: 3.848951881 | M41: 0.848951881
A42: 10011024 | B42: 8 | C42: -0.3800567995 | D42: 2981.388 | E42: 3.173388503 | F42: 3.173388503 | G42: 10011024 | H42: -0.3800567995 | J42: RBT | L42: 3.474418499 | M42: 0.4744184991
A43: 10011028 | B43: 0 | C43: 0.0580259676 | D43: 0 | J43: RBT | L43: 0 | M43: -3
A44: 10011028 | B44: 1 | C44: 0.2551288934 | J44: RBT
A45: 10011028 | B45: 3 | C45: 0.2617424547 | D45: 179.576 | E45: 1.953218298 | J45: RBT | L45: 2.254248294 | M45: -0.7457517064
A46: 10011028 | B46: 4 | C46: 0.02071863868 | D46: 195.027 | E46: 1.989064745 | F46: 1.989064745 | G46: 10011028 | H46: 0.02071863868 | J46: RBT | L46: 2.29009474 | M46: -0.7099052597
A47: 10011028 | B47: 6 | C47: -0.314862478 | D47: 2533.12 | E47: 3.102625768 | F47: 3.102625768 | G47: 10011028 | H47: -0.314862478 | J47: RBT | L47: 3.403655764 | M47: 0.4036557639
A48: 10011028 | B48: 8 | C48: -0.2244774981 | D48: 1312.034 | E48: 2.816915094 | F48: 2.816915094 | G48: 10011028 | H48: -0.2244774981 | J48: RBT | L48: 3.117945089 | M48: 0.1179450895
A49: 10011028 | B49: 0 | C49: 0.0580259676 | J49: RBT
A50: 10011028 | B50: 1 | C50: 0.2551288934 | J50: RBT
A51: 10011028 | B51: 3 | C51: 0.2617424547 | J51: RBT
A52: 10011028 | B52: 4 | C52: 0.02071863868 | J52: RBT
A53: 10011028 | B53: 6 | C53: -0.314862478 | J53: RBT
A54: 10011028 | B54: 8 | C54: -0.2244774981 | J54: RBT
A55: 10011029 | B55: 0 | C55: 0.393651059 | J55: RBT
A56: 10011029 | B56: 1 | C56: 0.2580929191 | J56: RBT
A57: 10011029 | B57: 3 | C57: 0.2580929191 | J57: RBT
A58: 10011029 | B58: 4 | C58: -0.2750740941 | J58: RBT
A59: 10011029 | B59: 6 | C59: 0.12086645 | J59: RBT
A60: 10011029 | B60: 8 | C60: -0.1842252302 | J60: RBT
A61: 10011030 | B61: 0 | C61: 0.05401143162 | D61: 0 | J61: RBT | L61: 0 | M61: -3
A62: 10011030 | B62: 1 | C62: 0.1117803703 | J62: RBT
A63: 10011030 | B63: 3 | C63: 0.04546995622 | D63: 1312.5 | E63: 2.817069316 | F63: 2.817069316 | G63: 10011030 | H63: 0.04546995622 | J63: RBT | L63: 3.118099312 | M63: 0.1180993121
A64: 10011030 | B64: 4 | C64: -0.157126025 | D64: 2223.469 | E64: 3.046001083 | F64: 3.046001083 | G64: 10011030 | H64: -0.157126025 | J64: RBT | L64: 3.347031079 | M64: 0.3470310788
A65: 10011030 | B65: 6 | C65: -0.2334164069 | D65: 3369.694 | E65: 3.226560469 | F65: 3.226560469 | G65: 10011030 | H65: -0.2334164069 | J65: RBT | L65: 3.527590465 | M65: 0.5275904646
A66: 10011030 | B66: 8 | C66: -0.08409214243 | D66: 2308.651 | E66: 3.06232829 | F66: 3.06232829 | G66: 10011030 | H66: -0.08409214243 | J66: RBT | L66: 3.363358285 | M66: 0.3633582854
A67: 10011031 | B67: 0 | C67: 0.03894387489 | E67: =LOG(D67*0.5) ->  | J67: RBT | M67: =IF(L67="","",L67-3) -> 
A68: 10011031 | B68: 1 | C68: 0.1837695978 | J68: RBT
A69: 10011031 | B69: 3 | C69: -0.1361589026 | J69: RBT
A70: 10011031 | B70: 4 | C70: -0.09572066764 | J70: RBT
A71: 10011031 | B71: 6 | C71: -0.1747196564 | J71: RBT
A72: 10011031 | B72: 8 | C72: -0.06502318618 | J72: RBT
A73: 10011032 | B73: 0 | C73: 0.3129807758 | D73: 0 | J73: RBT | L73: =IF(D73=0,0,LOG(D73)) -> 0 | M73: -3
A74: 10011032 | B74: 1 | C74: 0.1267176365 | D74: 567.329 | E74: 2.452804988 | J74: RBT | L74: 2.753834984 | M74: -0.2461650162
A75: 10011032 | B75: 3 | C75: -0.3474814466 | D75: 3864.77 | E75: 3.286093658 | F75: =IF(C75<0.05,E75,"") -> 3.286093658 | G75: =IF(F75<>"",A75,"") -> 10011032 | H75: =IF(F75<>"",C75,"") -> -0.3474814466 | J75: RBT | L75: 3.587123653 | M75: 0.5871236533
A76: 10011032 | B76: 4 | C76: -0.3693140743 | D76: 1828.133 | E76: 2.960977793 | F76: 2.960977793 | G76: 10011032 | H76: -0.3693140743 | J76: RBT | L76: 3.262007788 | M76: 0.2620077883
A77: 10011032 | B77: 6 | C77: -0.4816593307 | D77: 4586.545 | E77: 3.360455663 | F77: 3.360455663 | G77: 10011032 | H77: -0.4816593307 | J77: RBT | L77: 3.661485659 | M77: 0.6614856589
A78: 10011032 | B78: 8 | C78: -0.4321286265 | D78: 2369.963 | E78: 3.07371157 | F78: 3.07371157 | G78: 10011032 | H78: -0.4321286265 | J78: RBT | L78: 3.374741566 | M78: 0.3747415658
A79: 10011033 | B79: 0 | C79: 0.1872283139 | J79: RBT
A80: 10011033 | B80: 1 | C80: 0.1309886886 | J80: RBT
A81: 10011033 | B81: 3 | C81: -0.3716607828 | J81: RBT
A82: 10011033 | B82: 4 | C82: -0.2027445597 | J82: RBT
A83: 10011033 | B83: 6 | C83: -0.2027445597 | J83: RBT
A84: 10011035 | B84: 0 | C84: 0.2116600088 | D84: 0 | J84: RBT | L84: 0 | M84: -3
A85: 10011035 | B85: 1 | C85: 0.3000502399 | D85: 81.198 | E85: 1.608515337 | J85: RBT | L85: 1.909545332 | M85: -1.090454668
A86: 10011035 | B86: 3 | C86: -0.3113702141 | D86: 5001.9 | E86: 3.398105009 | F86: 3.398105009 | G86: 10011035 | H86: -0.3113702141 | J86: RBT | L86: 3.699135005 | M86: 0.6991350049
A87: 10011035 | B87: 4 | C87: -0.2915914823 | D87: 4035.034 | E87: 3.304817203 | F87: 3.304817203 | G87: 10011035 | H87: -0.2915914823 | J87: RBT | L87: 3.605847199 | M87: 0.6058471985
A88: 10011035 | B88: 6 | C88: -0.3029512126 | D88: 5126.684 | E88: 3.408806553 | F88: 3.408806553 | G88: 10011035 | H88: -0.3029512126 | J88: RBT | L88: 3.709836549 | M88: 0.7098365491
A89: 10011035 | B89: 8 | C89: -0.1585248684 | D89: 2730.669 | E89: 3.135239064 | F89: 3.135239064 | G89: 10011035 | H89: -0.1585248684 | J89: RBT | L89: 3.43626906 | M89: 0.43626906
A90: 10011036 | B90: 0 | C90: 0.3424740563 | D90: 0 | J90: RBT | L90: 0 | M90: -3
A91: 10011036 | B91: 1 | C91: 0.1806265158 | J91: RBT
A92: 10011036 | B92: 3 | C92: -0.3261291726 | D92: 3968.5 | E92: 3.297596389 | F92: 3.297596389 | G92: 10011036 | H92: -0.3261291726 | J92: RBT | L92: 3.598626385 | M92: 0.5986263846
A93: 10011036 | B93: 4 | C93: -0.351750168 | D93: 3314.479 | E93: 3.219385276 | F93: 3.219385276 | G93: 10011036 | H93: -0.351750168 | J93: RBT | L93: 3.520415272 | M93: 0.5204152717
A94: 10011036 | B94: 6 | C94: -0.2660023748 | D94: 2482.872 | E94: 3.093924335 | F94: 3.093924335 | G94: 10011036 | H94: -0.2660023748 | J94: RBT | L94: 3.394954331 | M94: 0.3949543309
A95: 10011036 | B95: 8 | C95: -0.1416887974 | D95: 1403.752 | E95: 2.846260392 | F95: 2.846260392 | G95: 10011036 | H95: -0.1416887974 | J95: RBT | L95: 3.147290388 | M95: 0.147290388
A96: 10011038 | B96: 0 | C96: 0.06001728578 | D96: 0 | J96: RBT | L96: 0 | M96: -3
A97: 10011038 | B97: 1 | C97: -0.1759488314 | D97: 3121.212 | E97: 3.193293272 | F97: 3.193293272 | G97: 10011038 | H97: -0.1759488314 | J97: RBT | L97: 3.494323268 | M97: 0.494323268
A98: 10011038 | B98: 3 | C98: -0.2316953659 | D98: 2939.592 | E98: 3.167257061 | F98: 3.167257061 | G98: 10011038 | H98: -0.2316953659 | J98: RBT | L98: 3.468287057 | M98: 0.4682870568
A99: 10011038 | B99: 4 | C99: -0.04760237549 | D99: 1854.307 | E99: 2.967151642 | F99: 2.967151642 | G99: 10011038 | H99: -0.04760237549 | J99: RBT | L99: 3.268181638 | M99: 0.2681816378
A100: 10011038 | B100: 6 | C100: -0.1540400935 | D100: 2434.567 | E100: 3.085391735 | F100: 3.085391735 | G100: 10011038 | H100: -0.1540400935 | J100: RBT | L100: 3.386421731 | M100: 0.386421731
A101: 10011038 | B101: 8 | C101: -0.08058548077 | D101: 1721.265 | E101: 2.934817742 | F101: 2.934817742 | G101: 10011038 | H101: -0.08058548077 | J101: RBT | L101: 3.235847738 | M101: 0.2358477379
A102: 10011040 | B102: 0 | C102: 0.1461815642 | D102: 0 | J102: RBT | L102: 0 | M102: -3
A103: 10011040 | B103: 1 | C103: 0.1461815642 | D103: 207.995 | E103: 2.017022899 | J103: RBT | L103: 2.318052895 | M103: -0.6819471049
A104: 10011040 | B104: 3 | C104: -0.1978535096 | D104: 2351.259 | E104: 3.070270475 | F104: 3.070270475 | G104: 10011040 | H104: -0.1978535096 | J104: RBT | L104: 3.371300471 | M104: 0.3713004709
A105: 10011040 | B105: 4 | C105: -0.1784219143 | D105: 1576.762 | E105: 2.896736149 | F105: 2.896736149 | G105: 10011040 | H105: -0.1784219143 | J105: RBT | L105: 3.197766145 | M105: 0.1977661449
A106: 10011040 | B106: 6 | C106: -0.1652103101 | D106: 1895.822 | E106: 2.976767563 | F106: 2.976767563 | G106: 10011040 | H106: -0.1652103101 | J106: RBT | L106: 3.277797559 | M106: 0.2777975587
A107: 10011040 | B107: 8 | C107: -0.08853318382 | D107: 1298.292 | E107: 2.812342385 | F107: 2.812342385 | G107: 10011040 | H107: -0.08853318382 | J107: RBT | L107: 3.113372381 | M107: 0.113372381
A108: 10011041 | B108: 0 | C108: 0.1118522945 | D108: 0 | J108: RBT | L108: 0 | M108: -3
A109: 10011041 | B109: 1 | C109: 0.09701897983 | D109: 169.105 | E109: 1.927126453 | J109: RBT | L109: 2.228156449 | M109: -0.7718435512
A110: 10011041 | B110: 3 | C110: -0.3418748897 | D110: 3130.618 | E110: 3.194600082 | F110: 3.194600082 | G110: 10011041 | H110: -0.3418748897 | J110: RBT | L110: 3.495630078 | M110: 0.495630078
A111: 10011041 | B111: 4 | C111: -0.3243557921 | D111: 2479.201 | E111: 3.093281743 | F111: 3.093281743 | G111: 10011041 | H111: -0.3243557921 | J111: RBT | L111: 3.394311738 | M111: 0.3943117384
A112: 10011041 | B112: 6 | C112: -0.2631373201 | D112: 2064.701 | E112: 3.013827172 | F112: 3.013827172 | G112: 10011041 | H112: -0.2631373201 | J112: RBT | L112: 3.314857168 | M112: 0.3148571681
A113: 10011041 | B113: 8 | C113: -0.1547100879 | D113: 1039.252 | E113: 2.715690873 | F113: 2.715690873 | G113: 10011041 | H113: -0.1547100879 | J113: RBT | L113: 3.016720869 | M113: 0.01672086896
A114: 10011043 | B114: 0 | C114: 0.2231526009 | D114: 0 | J114: RBT | L114: 0 | M114: -3
A115: 10011043 | B115: 1 | C115: 0.2177235745 | D115: 23.657 | E115: 1.072929674 | J115: RBT | L115: 1.37395967 | M115: -1.62604033
A116: 10011043 | B116: 3 | C116: 0 | D116: 2445.302 | E116: 3.087302507 | F116: 3.087302507 | G116: 10011043 | H116: 0 | J116: RBT | L116: 3.388332503 | M116: 0.3883325031
A117: 10011043 | B117: 4 | C117: 0.004174140716 | D117: 1771.814 | E117: 2.947388133 | F117: 2.947388133 | G117: 10011043 | H117: 0.004174140716 | J117: RBT | L117: 3.248418129 | M117: 0.2484181289
A118: 10011043 | B118: 6 | C118: -0.1587012922 | D118: 5346.723 | E118: 3.427057689 | F118: 3.427057689 | G118: 10011043 | H118: -0.1587012922 | J118: RBT | L118: 3.728087685 | M118: 0.728087685
A119: 10011043 | B119: 8 | C119: -0.06408220362 | D119: 2511.449 | E119: 3.098894368 | F119: 3.098894368 | G119: 10011043 | H119: -0.06408220362 | J119: RBT | L119: 3.399924363 | M119: 0.3999243634
A120: 10011044 | B120: 0 | C120: 0.1574428726 | D120: 0 | J120: RBT | L120: 0 | M120: -3
A121: 10011044 | B121: 1 | C121: 0.1478676044 | D121: 148.245 | E121: 1.869950059 | J121: RBT | L121: 2.170980054 | M121: -0.8290199456
A122: 10011044 | B122: 3 | C122: -0.09761593593 | D122: 2172.3 | E122: 3.035889807 | F122: 3.035889807 | G122: 10011044 | H122: -0.09761593593 | J122: RBT | L122: 3.336919802 | M122: 0.3369198022
A123: 10011044 | B123: 4 | C123: -0.0797131102 | D123: 1599.705 | E123: 2.903009907 | F123: 2.903009907 | G123: 10011044 | H123: -0.0797131102 | J123: RBT | L123: 3.204039902 | M123: 0.2040399022
A124: 10011044 | B124: 6 | C124: -0.1390712096 | D124: 2071.529 | E124: 3.015261022 | F124: 3.015261022 | G124: 10011044 | H124: -0.1390712096 | J124: RBT | L124: 3.316291018 | M124: 0.3162910175
A125: 10011044 | B125: 8 | C125: -0.06878323867 | D125: 1278.717 | E125: 2.805744443 | F125: 2.805744443 | G125: 10011044 | H125: -0.06878323867 | J125: RBT | L125: 3.106774439 | M125: 0.106774439
A126: 10011045 | B126: 0 | C126: 0.2543759935 | D126: 0 | J126: RBT | L126: 0 | M126: -3
A127: 10011045 | B127: 1 | C127: 0.2489822183 | D127: 173.837 | E127: 1.939112223 | J127: RBT | L127: 2.240142219 | M127: -0.7598577815
A128: 10011045 | B128: 3 | C128: -0.104670412 | D128: 2663.605 | E128: 3.124439826 | F128: 3.124439826 | G128: 10011045 | H128: -0.104670412 | J128: RBT | L128: 3.425469821 | M128: 0.4254698215
A129: 10011045 | B129: 4 | C129: 0.01609065257 | D129: 1975.213 | E129: 2.99458394 | F129: 2.99458394 | G129: 10011045 | H129: 0.01609065257 | J129: RBT | L129: 3.295613935 | M129: 0.2956139353
A130: 10011045 | B130: 6 | C130: -0.1081753109 | D130: 3049.57 | E130: 3.183208611 | F130: 3.183208611 | G130: 10011045 | H130: -0.1081753109 | J130: RBT | L130: 3.484238607 | M130: 0.4842386066
A131: 10011045 | B131: 8 | C131: 0.02425438705 | D131: 1974.735 | E131: =LOG(D131*0.5) -> 2.994478828 | F131: =IF(C131<0.05,E131,"") -> 2.994478828 | G131: =IF(F131<>"",A131,"") -> 10011045 | H131: =IF(F131<>"",C131,"") -> 0.02425438705 | J131: RBT | L131: =IF(D131=0,0,LOG(D131)) -> 3.295508824 | M131: =IF(L131="","",L131-3) -> 0.2955088236
A132: 10011047 | B132: 0 | C132: 0.1997439219 | D132: 0 | J132: RBT | L132: 0 | M132: -3
A133: 10011047 | B133: 1 | C133: 0.08916315497 | D133: 172.722 | E133: 1.936317663 | J133: RBT | L133: 2.237347658 | M133: -0.7626523418
A134: 10011047 | B134: 3 | C134: -0.09572066764 | D134: 2543.479 | E134: 3.104398161 | F134: 3.104398161 | G134: 10011047 | H134: -0.09572066764 | J134: RBT | L134: 3.405428156 | M134: 0.4054281563
A135: 10011047 | B135: 4 | C135: -0.09947930278 | D135: 1421.759 | E135: 2.85179599 | F135: 2.85179599 | G135: 10011047 | H135: -0.09947930278 | J135: RBT | L135: 3.152825986 | M135: 0.1528259861
A136: 10011047 | B136: 6 | C136: 0.0568561338 | D136: 2080.768 | E136: 3.017193665 | J136: RBT | L136: 3.31822366 | M136: 0.3182236603
A137: 10011047 | B137: 8 | C137: -0.188309506 | D137: 1279.383 | E137: 2.80597058 | F137: 2.80597058 | G137: 10011047 | H137: -0.188309506 | J137: RBT | L137: 3.107000576 | M137: 0.1070005757
A138: 10011048 | B138: 0 | C138: 0.2330078942 | D138: 0 | J138: RBT | L138: 0 | M138: -3
A139: 10011048 | B139: 1 | C139: 0.2225264907 | J139: RBT
A140: 10011048 | B140: 3 | C140: 0.1918531601 | D140: 1063.559 | E140: 2.725731591 | J140: RBT | L140: 3.026761587 | M140: 0.02676158701
A141: 10011048 | B141: 4 | C141: 0.09262415635 | D141: 1233.259 | E141: 2.790024298 | J141: RBT | L141: 3.091054294 | M141: 0.09105429351
A142: 10011048 | B142: 6 | C142: -0.1116654841 | D142: 3197.783 | E142: 3.203818994 | F142: 3.203818994 | G142: 10011048 | H142: -0.1116654841 | J142: RBT | L142: 3.504848989 | M142: 0.5048489894
A143: 10011048 | B143: 8 | C143: -0.03510333631 | D143: 2197.853 | E143: 3.040968646 | F143: 3.040968646 | G143: 10011048 | H143: -0.03510333631 | J143: RBT | L143: 3.341998642 | M143: 0.3419986419
A144: 10011049 | B144: 0 | C144: 0.07721959102 | D144: 0 | J144: RBT | L144: 0 | M144: -3
A145: 10011049 | B145: 1 | C145: 0.07247303075 | D145: 47.734 | E145: 1.377797833 | J145: RBT | L145: 1.678827829 | M145: -1.321172171
A146: 10011049 | B146: 3 | C146: -0.1394312521 | D146: 2622.88 | E146: 3.117748426 | F146: 3.117748426 | G146: 10011049 | H146: -0.1394312521 | J146: RBT | L146: 3.418778422 | M146: 0.4187784215
A147: 10011049 | B147: 4 | C147: -0.1647141178 | D147: 1782.237 | E147: 2.94993546 | F147: 2.94993546 | G147: 10011049 | H147: -0.1647141178 | J147: RBT | L147: 3.250965456 | M147: 0.2509654556
A148: 10011049 | B148: 6 | C148: -0.09033270073 | D148: 2187.66 | E148: 3.03894983 | F148: 3.03894983 | G148: 10011049 | H148: -0.09033270073 | J148: RBT | L148: 3.339979826 | M148: 0.3399798261
A149: 10011049 | B149: 8 | C149: -0.07462244446 | D149: 1214.646 | E149: 2.783419729 | F149: 2.783419729 | G149: 10011049 | H149: -0.07462244446 | J149: RBT | L149: 3.084449724 | M149: 0.08444972431
A150: 10011001 | B150: 0 | C150: 0.07644735741 | D150: 0 | J150: RIF | L150: 0 | M150: -3
A151: 10011001 | B151: 1 | C151: 0.09939021091 | D151: 479.841 | E151: 2.380067358 | J151: RIF | L151: 2.681097353 | M151: -0.3189026465
A152: 10011001 | B152: 2 | C152: -0.2127615097 | D152: 1811.103 | E152: 2.956913154 | F152: 2.956913154 | G152: 10011001 | H152: -0.2127615097 | J152: RIF | L152: 3.25794315 | M152: 0.25794315
A153: 10011001 | B153: 3 | C153: -0.3557568848 | D153: 3876.665 | E153: 3.287428278 | F153: 3.287428278 | G153: 10011001 | H153: -0.3557568848 | J153: RIF | L153: 3.588458273 | M153: 0.5884582733
A154: 10011001 | B154: 4 | C154: -0.3849726581 | D154: 2683.05 | E154: 3.12759877 | F154: 3.12759877 | G154: 10011001 | H154: -0.3849726581 | J154: RIF | L154: 3.428628766 | M154: 0.428628766
A155: 10011001 | B155: 6 | C155: -0.4028145596 | D155: 4531.069 | E155: 3.35517068 | F155: 3.35517068 | G155: 10011001 | H155: -0.4028145596 | J155: RIF | L155: 3.656200676 | M155: 0.6562006758
A156: 10011001 | B156: 8 | C156: -0.3064114152 | D156: 1760.995 | E156: 2.944728127 | F156: 2.944728127 | G156: 10011001 | H156: -0.3064114152 | J156: RIF | L156: 3.245758123 | M156: 0.2457581229
A157: 10011003 | B157: 0 | C157: 0.2380666757 | D157: 0 | J157: RIF | L157: 0 | M157: -3
A158: 10011003 | B158: 1 | C158: 0.2165426597 | D158: 89.694 | E158: 1.651733397 | J158: RIF | L158: 1.952763392 | M158: -1.047236608
A159: 10011003 | B159: 2 | C159: -0.01706221775 | D159: 1122.031 | E159: 2.74897486 | F159: 2.74897486 | G159: 10011003 | H159: -0.01706221775 | J159: RIF | L159: 3.050004856 | M159: 0.05000485598
A160: 10011003 | B160: 3 | C160: -0.2659051588 | D160: 2476.86 | E160: 3.092871464 | F160: 3.092871464 | G160: 10011003 | H160: -0.2659051588 | J160: RIF | L160: 3.39390146 | M160: 0.3939014596
A161: 10011003 | B161: 4 | C161: -0.3505523387 | D161: 2232.288 | E161: 3.047720229 | F161: 3.047720229 | G161: 10011003 | H161: -0.3505523387 | J161: RIF | L161: 3.348750225 | M161: 0.3487502246
A162: 10011003 | B162: 6 | C162: -0.5623579368 | D162: 4877.494 | E162: 3.387166748 | F162: 3.387166748 | G162: 10011003 | H162: -0.5623579368 | J162: RIF | L162: 3.688196744 | M162: 0.6881967438
A163: 10011003 | B163: 8 | C163: -0.3258909303 | D163: 2199.073 | E163: 3.041209651 | F163: 3.041209651 | G163: 10011003 | H163: -0.3258909303 | J163: RIF | L163: 3.342239646 | M163: 0.3422396464
A164: 10011009 | B164: 0 | C164: 0.1738689785 | D164: 0 | J164: RIF | L164: 0 | M164: -3
A165: 10011009 | B165: 1 | C165: 0.08908365433 | D165: 470.478 | E165: 2.371509325 | J165: RIF | L165: 2.67253932 | M165: -0.3274606798
A166: 10011009 | B166: 3 | C166: -0.1369060894 | D166: 3956.736 | E166: 3.296307079 | F166: 3.296307079 | G166: 10011009 | H166: -0.1369060894 | J166: RIF | L166: 3.597337074 | M166: 0.5973370744
A167: 10011009 | B167: 4 | C167: -0.1196718514 | D167: 2212.703 | E167: 3.043893129 | F167: 3.043893129 | G167: 10011009 | H167: -0.1196718514 | J167: RIF | L167: 3.344923125 | M167: 0.3449231247
A168: 10011009 | B168: 6 | C168: -0.05824737377 | D168: 2725.458 | E168: 3.134409498 | F168: 3.134409498 | G168: 10011009 | H168: -0.05824737377 | J168: RIF | L168: 3.435439494 | M168: 0.4354394938
A169: 10011009 | B169: 8 | C169: -0.02769105473 | D169: 1683.236 | E169: 2.925115015 | F169: 2.925115015 | G169: 10011009 | H169: -0.02769105473 | J169: RIF | L169: 3.226145011 | M169: 0.226145011
A170: 10011010 | B170: 0 | C170: 0.1640947535 | D170: 0 | J170: RIF | L170: 0 | M170: -3
A171: 10011010 | B171: 1 | C171: 0.1820629758 | J171: RIF
A172: 10011010 | B172: 2 | C172: 0.2003549672 | J172: RIF
A173: 10011010 | B173: 3 | C173: 0.1942209422 | D173: 35.186 | E173: 1.245339903 | J173: RIF | L173: 1.546369898 | M173: -1.453630102
A174: 10011010 | B174: 4 | C174: 0.1522902244 | D174: 294.22 | E174: 2.167642195 | J174: RIF | L174: 2.468672191 | M174: -0.5313278089
A175: 10011010 | B175: 6 | C175: -0.2844441623 | D175: 2618.941 | E175: 3.117095719 | F175: 3.117095719 | G175: 10011010 | H175: -0.2844441623 | J175: RIF | L175: 3.418125715 | M175: 0.4181257147
A176: 10011010 | B176: 8 | C176: -0.2767824047 | D176: 1827.875 | E176: 2.960916497 | F176: 2.960916497 | G176: 10011010 | H176: -0.2767824047 | J176: RIF | L176: 3.261946493 | M176: 0.261946493
A177: 10011017 | B177: 0 | C177: 0.2149093023 | D177: 0 | J177: RIF | L177: 0 | M177: -3
A178: 10011017 | B178: 1 | C178: 0.1587191002 | D178: 65.799 | E178: 1.517189298 | J178: RIF | L178: 1.818219293 | M178: -1.181780707
A179: 10011017 | B179: 2 | C179: -0.4509214047 | D179: 2678.592 | E179: 3.126876572 | F179: 3.126876572 | G179: 10011017 | H179: -0.4509214047 | J179: RIF | L179: 3.427906567 | M179: 0.4279065674
A180: 10011017 | B180: 3 | C180: -0.4846233563 | D180: 2954.716 | E180: 3.169485748 | F180: 3.169485748 | G180: 10011017 | H180: -0.4846233563 | J180: RIF | L180: 3.470515744 | M180: 0.4705157439
A181: 10011017 | B181: 4 | C181: -0.5132218125 | D181: 1842.126 | E181: 2.964289337 | F181: 2.964289337 | G181: 10011017 | H181: -0.5132218125 | J181: RIF | L181: 3.265319332 | M181: 0.2653193323
A182: 10011017 | B182: 6 | C182: -0.3799630576 | D182: 1423.275 | E182: 2.852258825 | F182: 2.852258825 | G182: 10011017 | H182: -0.3799630576 | J182: RIF | L182: 3.153288821 | M182: 0.153288821
A183: 10011017 | B183: 8 | C183: -0.3086097117 | D183: 905.173 | E183: 2.655701595 | F183: 2.655701595 | G183: 10011017 | H183: -0.3086097117 | J183: RIF | L183: 2.956731591 | M183: -0.0432684089
A184: 10011020 | B184: 0 | C184: 0.1820629758 | D184: 0 | J184: RIF | L184: 0 | M184: -3
A185: 10011020 | B185: 1 | C185: 0.07873541778 | D185: 606.001 | E185: 2.481443345 | J185: RIF | L185: 2.782473341 | M185: -0.2175266592
A186: 10011020 | B186: 2 | C186: -0.1800256014 | D186: 1884.261 | E186: 2.974111064 | F186: 2.974111064 | G186: 10011020 | H186: -0.1800256014 | J186: RIF | L186: 3.275141059 | M186: 0.2751410593
A187: 10011020 | B187: 3 | C187: -0.4463720461 | D187: 5422.578 | E187: 3.433175812 | F187: 3.433175812 | G187: 10011020 | H187: -0.4463720461 | J187: RIF | L187: 3.734205808 | M187: 0.7342058078
A188: 10011020 | B188: 4 | C188: -0.4688967305 | D188: 3218.94 | E188: 3.206682886 | F188: 3.206682886 | G188: 10011020 | H188: -0.4688967305 | J188: RIF | L188: 3.507712882 | M188: 0.5077128817
A189: 10011020 | B189: 6 | C189: -0.4496206186 | D189: 4062.3 | E189: 3.307741997 | F189: 3.307741997 | G189: 10011020 | H189: -0.4496206186 | J189: RIF | L189: 3.608771993 | M189: 0.6087719928
A190: 10011020 | B190: 8 | C190: -0.3544842116 | D190: 1805.521 | E190: 2.955572548 | F190: 2.955572548 | G190: 10011020 | H190: -0.3544842116 | J190: RIF | L190: 3.256602544 | M190: 0.2566025441
A191: 10011021 | B191: 0 | C191: 0.2920485278 | D191: 0 | J191: RIF | L191: 0 | M191: -3
A192: 10011021 | B192: 1 | C192: 0.2317231752 | D192: 61.962 | E192: 1.491095432 | J192: RIF | L192: 1.792125427 | M192: -1.207874573
A193: 10011021 | B193: 3 | C193: -0.3800567995 | D193: 3323.818 | E193: 3.22060724 | F193: 3.22060724 | G193: 10011021 | H193: -0.3800567995 | J193: RIF | L193: 3.521637235 | M193: 0.5216372354
A194: 10011021 | B194: 4 | C194: -0.2429709271 | D194: 1705.505 | E194: 2.930823001 | F194: 2.930823001 | G194: 10011021 | H194: -0.2429709271 | J194: RIF | L194: 3.231852997 | M194: 0.231852997
A195: 10011021 | B195: 6 | C195: -0.3176211158 | D195: 2411.986 | E195: =LOG(D195*0.5) -> 3.081344787 | F195: =IF(C195<0.05,E195,"") -> 3.081344787 | G195: =IF(F195<>"",A195,"") -> 10011021 | H195: =IF(F195<>"",C195,"") -> -0.3176211158 | J195: RIF | L195: =IF(D195=0,0,LOG(D195)) -> 3.382374783 | M195: =IF(L195="","",L195-3) -> 0.3823747827
A196: 10011021 | B196: 8 | C196: -0.09392769403 | D196: 1278.699 | E196: 2.80573833 | F196: 2.80573833 | G196: 10011021 | H196: -0.09392769403 | J196: RIF | L196: 3.106768326 | M196: 0.1067683255
A197: 10011023 | B197: 0 | C197: 0.2583283227 | D197: 0 | J197: RIF | L197: 0 | M197: -3
A198: 10011023 | B198: 1 | C198: 0.1699962819 | D198: 483.864 | E198: 2.383693316 | J198: RIF | L198: 2.684723311 | M198: -0.3152766887
A199: 10011023 | B199: 3 | C199: 0.1285546887 | D199: 2679.565 | E199: 3.127034301 | J199: RIF | L199: 3.428064296 | M199: 0.4280642965
A200: 10011023 | B200: 4 | C200: -0.1455709362 | D200: 1639.863 | E200: 2.913777571 | F200: 2.913777571 | G200: 10011023 | H200: -0.1455709362 | J200: RIF | L200: 3.214807567 | M200: 0.2148075671
... 21 more rows

Sheet Mixed Models
B1: XLSTAT 2014.3.01 - Mixed Models - on 7/5/2014 at 12:29:37 PM
B2: Y / Quantitative: Workbook = WBA PK analysis.xlsm / Sheet = Period 1 / Range = 'Period 1'!$C:$C / 218 rows and 1 column
B3: X / Quantitative: Workbook = WBA PK analysis.xlsm / Sheet = Period 1 / Range = 'Period 1'!$D:$D / 218 rows and 1 column
B4: X / Qualitative: Workbook = WBA PK analysis.xlsm / Sheet = Period 1 / Range = 'Period 1'!$A:$A / 218 rows and 1 column
B5: Number of removed observations: 30
B6: Repeated measures:
B7: Covariance structure: Variance components
B8: Random effects:
B9: Covariance structure: Variance components
B10: Constraints: a1=0
B11: Confidence interval (%): 95
B15: Summary statistics:
B17: Variable | C17: Observations | D17: Obs. with missing data | E17: Obs. without missing data | F17: Minimum | G17: Maximum | H17: Mean | I17: Std. deviation
B18: WBA | C18: 188 | D18: 0 | E18: 188 | F18: -0.680 | G18: 0.394 | H18: -0.103 | I18: 0.245
B19: BDQ | C19: 188 | D19: 0 | E19: 188 | F19: 0.000 | G19: 7062.393 | H19: 1844.806 | I19: 1573.870
B22: Variable | C22: Categories | D22: Frequencies | E22: %
B23: Subject | C23: 10011001 | D23: 7 | E23: 3.723
C24: 10011003 | D24: 7 | E24: 3.723
C25: 10011004 | D25: 6 | E25: 3.191
C26: 10011009 | D26: 6 | E26: 3.191
C27: 10011010 | D27: 5 | E27: 2.660
C28: 10011011 | D28: 7 | E28: 3.723
C29: 10011016 | D29: 7 | E29: 3.723
C30: 10011017 | D30: 7 | E30: 3.723
C31: 10011018 | D31: 7 | E31: 3.723
C32: 10011020 | D32: 7 | E32: 3.723
C33: 10011021 | D33: 6 | E33: 3.191
C34: 10011022 | D34: 7 | E34: 3.723
C35: 10011023 | D35: 6 | E35: 3.191
C36: 10011024 | D36: 6 | E36: 3.191
C37: 10011028 | D37: 5 | E37: 2.660
C38: 10011029 | D38: 6 | E38: 3.191
C39: 10011030 | D39: 5 | E39: 2.660
C40: 10011031 | D40: 6 | E40: 3.191
C41: 10011032 | D41: 6 | E41: 3.191
C42: 10011033 | D42: 5 | E42: 2.660
C43: 10011035 | D43: 6 | E43: 3.191
C44: 10011036 | D44: 5 | E44: 2.660
C45: 10011038 | D45: 6 | E45: 3.191
C46: 10011040 | D46: 6 | E46: 3.191
C47: 10011041 | D47: 6 | E47: 3.191
C48: 10011043 | D48: 6 | E48: 3.191
C49: 10011044 | D49: 6 | E49: 3.191
C50: 10011045 | D50: 6 | E50: 3.191
C51: 10011047 | D51: 6 | E51: 3.191
C52: 10011048 | D52: 5 | E52: 2.660
C53: 10011049 | D53: 6 | E53: 3.191

Sheet Period 2 RIF
A1: Subject | B1: Time | C1: RIF | D1: BDQ | E1: WBA | G1: log 0.5 RIF | I1: log 0.5 BDQ | K1: SUM | L1: WBA (censored) | M1: Subject (censored)
A2: 10011001 | B2: 0 | C2: BLQ | D2: 35.058 | E2: 0.04650483586
A3: 10011001 | B3: 1 | C3: BLQ | D3: 310.194 | E3: 0.005063242709
A4: 10011001 | B4: 2 | C4: 1148.166 | D4: 1878.437 | E4: -0.475241614 | G4: =LOG(C4*0.5) -> 2.758974687 | H4: =1.18658671175931-0.565058223809637*G4 -> -0.3723946242 | I4: =LOG(D4*0.5) -> 2.972766638 | J4: =1.00479938881154-0.4054*I4 -> -0.2003602064 | K4: -0.5727548305 | L4: -0.475241614 | M4: 10011001
A5: 10011001 | B5: 3 | C5: 4750.512 | D5: 4470.37 | E5: -0.6571629733 | G5: =LOG(C5*0.5) -> 3.375710424 | H5: =1.18658671175931-0.565058223809637*G5 -> -0.7208862244 | I5: =LOG(D5*0.5) -> 3.349313474 | J5: =1.00479938881154-0.4054*I5 -> -0.3530122937 | K5: -1.073898518 | L5: -0.6571629733 | M5: 10011001
A6: 10011001 | B6: 4 | C6: 4315.979 | D6: 2148.19 | E6: -0.8159168584 | G6: 3.334049327 | H6: -0.6973452792 | I6: 3.031042695 | J6: -0.2239853197 | K6: -0.9213305989 | L6: -0.8159168584 | M6: 10011001
A7: 10011001 | B7: 5 | C7: 5856.269 | D7: 4682.604 | G7: 3.466591022 | H7: -0.7722390536 | I7: 3.369457436 | J7: -0.3611786558
A8: 10011001 | B8: 6 | C8: 4742.693 | D8: 3928.5 | E8: -0.6518617704 | G8: 3.374995018 | H8: -0.7204819782 | I8: 3.293196762 | J8: -0.3302625784 | K8: -1.050744557 | L8: -0.6518617704 | M8: 10011001
A9: 10011001 | B9: 8 | C9: 1965.729 | D9: 1338.939 | E9: -0.5572287713 | G9: 2.992493649 | H9: -0.5043464344 | I9: 2.825730796 | J9: -0.1407518759 | K9: -0.6450983103 | L9: -0.5572287713 | M9: 10011001
A10: 10011003 | B10: 0 | C10: BLQ | D10: BLQ | E10: 0.2189826102
A11: 10011003 | B11: 1 | C11: BLQ | D11: BLQ | E11: 0.1760381625
A12: 10011003 | B12: 2 | C12: 2197.292 | D12: 343.342 | E12: -0.5306286978 | G12: =LOG(C12*0.5) -> 3.040857779 | H12: =1.18658671175931-0.565058223809637*G12 -> -0.5316749836 | I12: =LOG(D12*0.5) -> 2.234696937 | J12: =1.00479938881154-0.4054*I12 -> 0.09885325057 | K12: -0.432821733 | L12: -0.5306286978 | M12: 10011003
A13: 10011003 | B13: 3 | C13: 8828.586 | D13: 1138.482 | E13: -0.8879145312 | G13: =LOG(C13*0.5) -> 3.644861156 | H13: -0.8729720592 | I13: =LOG(D13*0.5) -> 2.755296173 | J13: -0.1121976797 | K13: -0.9851697389 | L13: -0.8879145312 | M13: 10011003
A14: 10011003 | B14: 4 | C14: 5462.207 | D14: 2500.094 | E14: -0.9025517496 | G14: 3.436338159 | H14: -0.7551444247 | I14: 3.096926342 | J14: -0.2506945503 | K14: -1.005838975 | L14: -0.9025517496 | M14: 10011003
A15: 10011003 | B15: 6 | C15: 4019.274 | D15: 4192.381 | E15: -0.8338454137 | G15: 3.303117618 | H15: -0.6798670625 | I15: 3.321430748 | J15: -0.3417086366 | K15: -1.021575699 | L15: -0.8338454137 | M15: 10011003
A16: 10011003 | B16: 8 | C16: 2160.549 | D16: 1366.132 | E16: -0.6624366374 | G16: 3.033534125 | H16: -0.5275366926 | I16: 2.834462669 | J16: -0.144291777 | K16: -0.6718284696 | L16: -0.6624366374 | M16: 10011003
A17: 10011008 | B17: 0 | C17: BLQ | D17: BLQ | E17: 0.1677174821
A18: 10011008 | B18: 1 | C18: BLQ | D18: 158.251 | E18: 0.1436884773
A19: 10011008 | B19: 2 | C19: BLQ | D19: 1259.873
A20: 10011008 | B20: 3 | C20: 6913.676 | D20: 3559.362 | E20: -0.9250319347 | G20: =LOG(C20*0.5) -> 3.538679027 | H20: =1.18658671175931-0.565058223809637*G20 -> -0.8129729741 | I20: =LOG(D20*0.5) -> 3.250342164 | J20: =1.00479938881154-0.4054*I20 -> -0.3128893244 | K20: -1.125862299 | L20: -0.9250319347 | M20: 10011008
A21: 10011008 | B21: 4 | C21: 7261.216 | D21: 1827.436 | E21: -1.019903541 | G21: =LOG(C21*0.5) -> 3.55997936 | H21: -0.8250089024 | I21: =LOG(D21*0.5) -> 2.96081218 | J21: -0.1955138692 | K21: -1.020522772 | L21: -1.019903541 | M21: 10011008
A22: 10011008 | B22: 6 | C22: 6458.045 | D22: 2948.667 | E22: -0.8805644733 | G22: 3.509071071 | H22: -0.796242755 | I22: 3.168595734 | J22: -0.2797493216 | K22: -1.075992077 | L22: -0.8805644733 | M22: 10011008
A23: 10011008 | B23: 8 | C23: 2455.983 | D23: 1352.172 | E23: -0.7588268501 | G23: 3.089195361 | H23: -0.5589885318 | I23: 2.830001943 | J23: -0.1424833988 | K23: -0.7014719306 | L23: -0.7588268501 | M23: 10011008
A24: 10011009 | B24: 0 | C24: BLQ | D24: BLQ | E24: 0.08526924665
A25: 10011009 | B25: 1 | C25: 331.832 | D25: 223.708 | E25: -0.1703632642 | G25: =LOG(C25*0.5) -> 2.219888269 | H25: -0.06777941055 | I25: =LOG(D25*0.5) -> 2.048651519 | J25: 0.1742760628 | K25: 0.1064966523 | L25: -0.1703632642 | M25: 10011009
A26: 10011009 | B26: 2 | C26: 3725.294 | D26: 2233.865
A27: 10011009 | B27: 3 | C27: 4428.215 | D27: 2258.635 | E27: -0.7561642745 | G27: =LOG(C27*0.5) -> 3.345198703 | H27: -0.7036453257 | I27: =LOG(D27*0.5) -> 3.052816058 | J27: -0.2328122411 | K27: -0.9364575668 | L27: -0.7561642745 | M27: 10011009
A28: 10011009 | B28: 4 | C28: 3209.184 | D28: 1645.573 | E28: -0.8372284556 | G28: 3.205364623 | H28: -0.6246309286 | I28: 2.915287157 | J28: -0.1770580248 | K28: -0.8016889533 | L28: -0.8372284556 | M28: 10011009
A29: 10011009 | B29: 5 | C29: 2978.709 | D29: 3625.915
A30: 10011009 | B30: 6 | C30: 2070.416 | D30: 2927.266 | E30: -0.5746451863 | G30: =LOG(C30*0.5) -> 3.01502762 | H30: -0.5170794397 | I30: =LOG(D30*0.5) -> 3.165432193 | J30: -0.2784668222 | K30: -0.7955462618 | L30: -0.5746451863 | M30: 10011009
A31: 10011009 | B31: 8 | C31: 576.443 | D31: 1716.711 | E31: -0.2671816161 | G31: 2.459726374 | H31: -0.2033019042 | I31: 2.933667194 | J31: -0.1845092917 | K31: -0.387811196 | L31: -0.2671816161 | M31: 10011009
A32: 10011010 | B32: 0 | C32: BLQ | D32: BLQ | E32: 0.2575091479
A33: 10011010 | B33: 1 | C33: 254.616 | D33: BLQ | E33: -0.02736494686
A34: 10011010 | B34: 2 | C34: 4230.658 | D34: 308.912 | E34: -0.8409580397 | G34: =LOG(C34*0.5) -> 3.325377923 | H34: -0.6924454311 | I34: =LOG(D34*0.5) -> 2.188804784 | J34: 0.1174579296 | K34: -0.5749875016 | L34: -0.8409580397 | M34: 10011010
A35: 10011010 | B35: 3 | C35: 4236.946 | D35: 1258.409 | E35: -0.7417754813 | G35: 3.326022933 | H35: -0.6928098993 | I35: 2.79879182 | J35: -0.129830815 | K35: -0.8226407143 | L35: -0.7417754813 | M35: 10011010
A36: 10011010 | B36: 4 | C36: 3105.089 | D36: 1251.053 | E36: -0.8287708819 | G36: 3.191044057 | H36: -0.6165389752 | I36: 2.796245713 | J36: -0.1287986232 | K36: -0.7453375985 | L36: -0.8287708819 | M36: 10011010
A37: 10011010 | B37: 5 | C37: 3199.147 | D37: 2286.91
A38: 10011010 | B38: 6 | C38: 2380.64 | D38: 2008.203 | E38: -0.7337291137 | G38: 3.075663731 | H38: -0.551342373 | I38: 3.001777616 | J38: -0.2121212567 | K38: -0.7634636296 | L38: -0.7337291137 | M38: 10011010
A39: 10011010 | B39: 8 | C39: 1100.656 | D39: 845.48 | E39: -0.5416147879 | G39: 2.74062161 | H39: -0.3620240672 | I39: 2.626073343 | J39: -0.05981074447 | K39: -0.4218348116 | L39: -0.5416147879 | M39: 10011010
A40: 10011017 | B40: 0 | C40: BLQ
A41: 10011017 | B41: 1 | C41: BLQ
A42: 10011017 | B42: 2 | C42: 4366.325
A43: 10011017 | B43: 3 | C43: 5769.983
A44: 10011017 | B44: 4 | C44: 3072.98
A45: 10011017 | B45: 5 | C45: 2823.166
A46: 10011017 | B46: 6 | C46: 2257.997
A47: 10011017 | B47: 8 | C47: 650.131
A48: 10011020 | B48: 0 | C48: BLQ | D48: BLQ | E48: 0.1951236348
A49: 10011020 | B49: 1 | C49: BLQ | D49: 255.63 | E49: 0.08682023401
A50: 10011020 | B50: 2 | C50: 1010.647 | D50: 4450.26 | E50: -0.6107867926 | G50: =LOG(C50*0.5) -> 2.703569496 | H50: =1.18658671175931-0.565058223809637*G50 -> -0.3410874653 | I50: =LOG(D50*0.5) -> 3.347355389 | J50: =1.00479938881154-0.4054*I50 -> -0.3522184859 | K50: -0.6933059512 | L50: -0.6107867926 | M50: 10011020
A51: 10011020 | B51: 3 | C51: 6807.934 | D51: 4625.483 | E51: -0.959720852 | G51: =LOG(C51*0.5) -> 3.531985341 | H51: -0.8091906516 | I51: =LOG(D51*0.5) -> 3.364127093 | J51: -0.3590177349 | K51: -1.168208387 | L51: -0.959720852 | M51: 10011020
A52: 10011020 | B52: 4 | C52: 7575.739 | D52: 3309.076 | E52: -1.071840283 | G52: 3.578395008 | H52: -0.8354148157 | I52: 3.218676746 | J52: -0.3000521641 | K52: -1.13546698 | L52: -1.071840283 | M52: 10011020
A53: 10011020 | B53: 5 | C53: 13202.919 | D53: 2876.552
A54: 10011020 | B54: 6 | C54: 7246.633 | D54: 3125.369 | E54: -1.079531063 | G54: 3.559106272 | H54: -0.8245155565 | I54: 3.193871304 | J54: -0.289996038 | K54: -1.114511595 | L54: -1.079531063 | M54: 10011020
A55: 10011020 | B55: 8 | C55: 3322.115 | D55: 1069.697 | E55: -0.8433780124 | G55: 3.220384666 | H55: -0.6331181279 | I55: 2.728230782 | J55: -0.1012253703 | K55: -0.7343434981 | L55: -0.8433780124 | M55: 10011020
A56: 10011021 | B56: 0 | C56: BLQ | D56: BLQ | E56: 0.2458152679
A57: 10011021 | B57: 1 | C57: 137.448 | D57: 32.93 | E57: 0.0853593357
A58: 10011021 | B58: 2 | C58: 7340.454 | D58: 438.623
A59: 10011021 | B59: 3 | C59: 8026.035 | D59: 1359.012 | E59: -0.9854307571 | G59: =LOG(C59*0.5) -> 3.603471054 | H59: -0.8495842413 | I59: =LOG(D59*0.5) -> 2.832193296 | J59: -0.1433717733 | K59: -0.9929560147 | L59: -0.9854307571 | M59: 10011021
A60: 10011021 | B60: 4 | C60: 5138.141 | D60: 1032.654 | E60: -0.966649949 | G60: 3.409776022 | H60: -0.740135271 | I60: 2.712924836 | J60: -0.09502033969 | K60: -0.8351556107 | L60: -0.966649949 | M60: 10011021
A61: 10011021 | B61: 5 | C61: 4551.05 | D61: 2657.119
A62: 10011021 | B62: 6 | C62: 3746.269 | D62: 2368.335 | E62: -0.8694718226 | G62: 3.272568963 | H62: -0.6626052937 | I62: 3.073413138 | J62: -0.2411622971 | K62: -0.9037675909 | L62: -0.8694718226 | M62: 10011021
A63: 10011021 | B63: 8 | C63: 1581.335 | D63: 917.967 | E63: -0.73325125 | G63: 2.897993888 | H63: -0.450948567 | I63: 2.661797073 | J63: -0.07429314473 | K63: -0.5252417118 | L63: -0.73325125 | M63: 10011021
A64: 10011023 | B64: 0 | C64: BLQ | D64: BLQ | E64: 0.1496426179
A65: 10011023 | B65: 1 | C65: BLQ | D65: 649.603 | E65: 0.1677174821
A66: 10011023 | B66: 2 | C66: 1142.08 | D66: 1688.305
A67: 10011023 | B67: 3 | C67: 3492.237 | D67: 2239.157 | E67: -0.7113683118 | G67: =LOG(C67*0.5) -> 3.242073714 | H67: -0.6453737024 | I67: =LOG(D67*0.5) -> 3.04905455 | J67: -0.2312873257 | K67: -0.876661028 | L67: -0.7113683118 | M67: 10011023
A68: 10011023 | B68: 4 | C68: 2415.032 | D68: 1132.869 | E68: -0.7661215742 | G68: 3.081892894 | H68: -0.5548622129 | I68: 2.753149697 | J68: -0.1113274984 | K68: -0.6661897113 | L68: -0.7661215742 | M68: 10011023
A69: 10011023 | B69: 5 | C69: 2989.135 | D69: 2520.77
A70: 10011023 | B70: 6 | C70: 2112.427 | D70: 1666.24 | E70: -0.5599793319 | G70: 3.023751714 | H70: -0.5220090611 | I70: 2.92070756 | J70: -0.1792554561 | K70: -0.7012645172 | L70: -0.5599793319 | M70: 10011023
A71: 10011023 | B71: 8 | C71: 763.766 | D71: 794.735 | E71: -0.3995233997 | G71: 2.581930326 | H71: -0.272354252 | I71: 2.599192344 | J71: -0.04891318746 | K71: -0.3212674395 | L71: -0.3995233997 | M71: 10011023
A72: 10011029 | B72: 0 | C72: BLQ | D72: BLQ | E72: 0.1987155998
A73: 10011029 | B73: 1 | C73: BLQ | D73: BLQ | E73: 0.1918793581
A74: 10011029 | B74: 2 | C74: 3423.383 | D74: 198.281
A75: 10011029 | B75: 3 | C75: 9164.653 | D75: 568.997 | E75: -1.119040064 | G75: =LOG(C75*0.5) -> 3.66108603 | H75: -0.8821400577 | I75: =LOG(D75*0.5) -> 2.454079981 | J75: 0.009915364535 | K75: -0.8722246932 | L75: -1.119040064 | M75: 10011029
A76: 10011029 | B76: 4 | C76: 7700.922 | D76: 574.287 | E76: -1.113405388 | G76: 3.585512729 | H76: -0.8394367423 | I76: 2.45809899 | J76: 0.008286058385 | K76: -0.8311506839 | L76: -1.113405388 | M76: 10011029
A77: 10011029 | B77: 5 | C77: 8493.829 | D77: 2711.689
A78: 10011029 | B78: 6 | C78: 7462.346 | D78: 1966.594 | E78: -0.9613002256 | G78: 3.571845386 | H78: -0.8317138978 | I78: 2.992684714 | J78: -0.2084349943 | K78: -1.040148892 | L78: -0.9613002256 | M78: 10011029
A79: 10011029 | B79: 8 | C79: 3733.04 | D79: 993.563 | E79: -0.8981131993 | G79: 3.271032648 | H79: -0.6617371862 | I79: 2.696165414 | J79: -0.08822607021 | K79: -0.7499632564 | L79: -0.8981131993 | M79: 10011029
A80: 10011031 | B80: 0 | C80: BLQ | D80: BLQ | E80: 0.03702661393
A81: 10011031 | B81: 1 | C81: BLQ | D81: 39.862 | E81: 0.03230702117
A82: 10011031 | B82: 2 | C82: 7458.864 | D82: 2110.979
A83: 10011031 | B83: 3 | C83: 9647.778 | D83: 1735.845 | E83: -0.9652026891 | G83: =LOG(C83*0.5) -> 3.683397306 | H83: -0.8947472275 | I83: =LOG(D83*0.5) -> 2.938480947 | J83: -0.1864607872 | K83: -1.081208015 | L83: -0.9652026891 | M83: 10011031
A84: 10011031 | B84: 4 | C84: 6938.387 | D84: 1958.855 | E84: -0.8771305679 | G84: 3.540228524 | H84: -0.8138485299 | I84: 2.990972294 | J84: -0.2077407791 | K84: -1.021589309 | L84: -0.8771305679 | M84: 10011031
A85: 10011031 | B85: 5 | C85: 6252.331 | D85: 1946.389
A86: 10011031 | B86: 6 | C86: 4149.694 | D86: 4188.908 | E86: -0.7349191383 | G86: 3.316986077 | H86: -0.6877035494 | I86: 3.321070826 | J86: -0.3415627242 | K86: -1.029266274 | L86: -0.7349191383 | M86: 10011031
A87: 10011031 | B87: 8 | C87: 1177.268 | D87: 1367.441 | E87: -0.594791018 | G87: 2.769845344 | H87: -0.3785371784 | I87: 2.834878602 | J87: -0.1444603963 | K87: -0.5229975746 | L87: -0.594791018 | M87: 10011031
A88: 10011033 | B88: 0 | C88: BLQ | D88: BLQ | E88: 0.2902210241
A89: 10011033 | B89: 1 | C89: BLQ | D89: 234.257 | E89: 0.09183007349
A90: 10011033 | B90: 2 | C90: BLQ | D90: QNS
A91: 10011033 | B91: 3 | C91: 6355.57 | D91: 1372.478 | E91: -0.9867598387 | G91: =LOG(C91*0.5) -> 3.502124511 | H91: -0.7923175438 | I91: =LOG(D91*0.5) -> 2.836475396 | J91: -0.1451077367 | K91: -0.9374252806 | L91: -0.9867598387 | M91: 10011033
A92: 10011033 | B92: 4 | C92: 10347.654 | D92: 1548.194 | E92: -1.096828799 | G92: 3.713811903 | H92: -0.9119332456 | I92: 2.888795384 | J92: -0.16631826 | K92: -1.078251506 | L92: -1.096828799 | M92: 10011033
A93: 10011033 | B93: 5 | C93: 7237.3 | D93: 1429.536
A94: 10011033 | B94: 6 | C94: 5654.557 | D94: 777.721 | E94: -0.8562310043 | G94: 3.451368591 | H94: -0.7636374938 | I94: 2.58979383 | J94: -0.04510302997 | K94: -0.8087405237 | L94: -0.8562310043 | M94: 10011033
A95: 10011033 | B95: 8 | C95: 2204.188 | D95: 416.243 | E95: -0.7878758982 | G95: 3.042218638 | H95: -0.5324439483 | I95: 2.318316947 | J95: 0.06495369836 | K95: -0.4674902499 | L95: -0.7878758982 | M95: 10011033
A96: 10011040 | B96: 0 | C96: BLQ | D96: BLQ | E96: -0.03127542093
A97: 10011040 | B97: 1 | C97: 235.895 | D97: 30.795 | E97: -0.09761593593 | G97: =LOG(C97*0.5) -> 2.07168874 | H97: =1.18658671175931-0.565058223809637*G97 -> 0.01596195201 | I97: =LOG(D97*0.5) -> 1.187450213 | J97: =1.00479938881154-0.4054*I97 -> 0.5234070726 | K97: -1.197108372 | L97: -0.882843692 | M97: 10011040
A98: 10011040 | B98: 2 | C98: 5326.42 | D98: 760.62
A99: 10011040 | B99: 3 | C99: 11521.154 | D99: 2618.073 | E99: -0.882843692 | G99: =LOG(C99*0.5) -> 3.760465986 | H99: -0.938295519 | I99: =LOG(D99*0.5) -> 3.116951756 | J99: -0.2588128532 | K99: -1.197108372 | L99: -0.882843692 | M99: 10011040
A100: 10011040 | B100: 4 | C100: 11075.817 | D100: 1946.246 | E100: -0.9296740465 | G100: 3.743345776 | H100: -0.9286216034 | I100: 2.988167737 | J100: -0.2066038119 | K100: -1.135225415 | L100: -0.9296740465 | M100: 10011040
A101: 10011040 | B101: 5 | C101: 10307.781 | D101: 1722.898
A102: 10011040 | B102: 6 | C102: 7576.546 | D102: 2081.976 | E102: -0.7943278095 | G102: 3.578441269 | H102: -0.8354409555 | I102: 3.017445723 | J102: -0.2184731074 | K102: -1.053914063 | L102: -0.7943278095 | M102: 10011040
A103: 10011040 | B103: 8 | C103: 3330.021 | D103: 1067.961 | E103: -0.7372900923 | G103: 3.221416977 | H103: -0.6337014432 | I103: 2.727525398 | J103: -0.1009394074 | K103: -0.7346408506 | L103: -0.7372900923 | M103: 10011040
A104: 10011044 | B104: 0 | C104: BLQ | D104: BLQ | E104: 0.02856369537
A105: 10011044 | B105: 1 | C105: BLQ | D105: 20.114 | E105: -0.02307501909
A106: 10011044 | B106: 2 | C106: 1376.605 | D106: 1290.8
A107: 10011044 | B107: 3 | C107: 3913.17 | D107: 1898.864 | E107: -0.6964327983 | G107: =LOG(C107*0.5) -> 3.29149872 | H107: -0.6733017085 | I107: =LOG(D107*0.5) -> 2.977463865 | J107: -0.2022644622 | K107: -0.8755661706 | L107: -0.6964327983 | M107: 10011044
A108: 10011044 | B108: 4 | C108: 2664.326 | D108: 1493.026 | E108: -0.7550242229 | G108: 3.124557367 | H108: -0.5789701244 | I108: 2.873037375 | J108: -0.159929963 | K108: -0.7389000874 | L108: -0.7550242229 | M108: 10011044
A109: 10011044 | B109: 5 | C109: 2391.751 | D109: 2536.764
A110: 10011044 | B110: 6 | C110: 1640.832 | D110: 1441.739 | E110: -0.6268177331 | G110: 2.914034122 | H110: -0.4600122331 | I110: 2.857856651 | J110: -0.1537756975 | K110: -0.6137879305 | L110: -0.6268177331 | M110: 10011044
A111: 10011044 | B111: 8 | C111: 433.46 | D111: 735.405 | E111: -0.3801112259 | G111: 2.335919031 | H111: -0.1333435469 | I111: 2.565496583 | J111: -0.03525292579 | K111: -0.1685964726 | L111: -0.3801112259 | M111: 10011044
A112: 10011047 | B112: 0 | C112: BLQ | D112: BLQ | E112: 0.02761409121
A113: 10011047 | B113: 1 | C113: BLQ | D113: BLQ | E113: -0.004514404644
A114: 10011047 | B114: 2 | C114: BLQ | D114: 316
A115: 10011047 | B115: 3 | C115: 1036.612 | D115: 2396.314 | E115: -0.4632322946 | G115: =LOG(C115*0.5) -> 2.714586236 | H115: =1.18658671175931-0.565058223809637*G115 -> -0.3473125653 | I115: =LOG(D115*0.5) -> 3.078513729 | J115: =1.00479938881154-0.4054*I115 -> -0.2432300771 | K115: -0.5905426424 | L115: -0.4632322946 | M115: 10011047
A116: 10011047 | B116: 4 | C116: 6370.202 | D116: 1284.689 | E116: -0.8802741162 | G116: 3.503123208 | H116: -0.7928818662 | I116: 2.80776801 | J116: -0.1334697624 | K116: -0.9263516286 | L116: -0.8802741162 | M116: 10011047
A117: 10011047 | B117: 5 | C117: 6006.802 | D117: 2562.858
A118: 10011047 | B118: 6 | C118: 3857.147 | D118: 1644.713 | E118: -0.758864969 | G118: 3.285236195 | H118: -0.6697630174 | I118: 2.915060129 | J118: -0.1769659877 | K118: -0.846729005 | L118: -0.758864969 | M118: 10011047
A119: 10011047 | B119: 8 | C119: 1449.861 | D119: 928.648 | E119: -0.6606847234 | G119: 2.860296372 | H119: -0.4296472759 | I119: 2.666821132 | J119: -0.07632989813 | K119: -0.505977174 | L119: -0.6606847234 | M119: 10011047
A120: 10011048 | B120: 0 | C120: BLQ | D120: BLQ | E120: 0.1226775058
A121: 10011048 | B121: 1 | C121: BLQ | D121: 31.175 | E121: 0.1726222147
A122: 10011048 | B122: 2 | C122: 142.407 | D122: 195.595
A123: 10011048 | B123: 3 | C123: 3225.504 | D123: 510.534 | E123: -0.6967347367 | G123: 3.207567589 | H123: -0.6258757329 | I123: 2.406994674 | J123: 0.02900374781 | K123: -0.5968719851 | L123: -0.6967347367 | M123: 10011048
A124: 10011048 | B124: 4 | C124: 6059.087 | D124: 1720.492 | E124: -0.8130825073 | G124: 3.481377193 | H124: -0.7805941012 | I124: 2.934622662 | J124: -0.1848966383 | K124: -0.9654907395 | L124: -0.8130825073 | M124: 10011048
A125: 10011048 | B125: 5 | C125: 7076.415 | D125: 857.832
A126: 10011048 | B126: 6 | C126: 4778.132 | D126: 2064.287 | E126: -0.6424114679 | G126: 3.378228148 | H126: -0.722308885 | I126: 3.013740082 | J126: -0.2169708404 | K126: -0.9392797254 | L126: -0.6424114679 | M126: 10011048
A127: 10011048 | B127: 8 | C127: 1875.163 | D127: 1494.767 | E127: -0.5136305982 | G127: 2.972009029 | H127: -0.4927714316 | I127: 2.873543506 | J127: -0.1601351484 | K127: -0.65290658 | L127: -0.5136305982 | M127: 10011048

Sheet Mixed Model RIF BDQ
B1: XLSTAT 2014.2.02 - Mixed Models - on 4/12/2014 at 11:20:14 AM
B2: Y / Quantitative: Workbook = WBA PK analysis.xlsx / Sheet = Period 2 RIF / Range = 'Period 2 RIF'!$L:$L / 126 rows and 1 column
B3: X / Quantitative: Workbook = WBA PK analysis.xlsx / Sheet = Period 2 RIF / Range = 'Period 2 RIF'!$K:$K / 126 rows and 1 column
B4: X / Qualitative: Workbook = WBA PK analysis.xlsx / Sheet = Period 2 RIF / Range = 'Period 2 RIF'!$M:$M / 126 rows and 1 column
B5: Number of removed observations: 61
B6: Repeated measures:
B7: Covariance structure: Variance components
B8: Random effects:
B9: Covariance structure: Variance components
B10: Constraints: an=0
B11: Confidence interval (%): 95
B15: Summary statistics:
B17: Variable | C17: Observations | D17: Obs. with missing data | E17: Obs. without missing data | F17: Minimum | G17: Maximum | H17: Mean | I17: Std. deviation
B18: WBA (censored) | C18: 65 | D18: 0 | E18: 65 | F18: -1.119 | G18: -0.170 | H18: -0.764 | I18: 0.201
B19: SUM | C19: 65 | D19: 0 | E19: 65 | F19: -1.197 | G19: 0.106 | H19: -0.802 | I19: 0.258
B22: Variable | C22: Categories | D22: Frequencies | E22: %
B23: Subject (censored) | C23: 10011001 | D23: 5 | E23: 7.692
C24: 10011003 | D24: 5 | E24: 7.692
C25: 10011008 | D25: 4 | E25: 6.154
C26: 10011009 | D26: 5 | E26: 7.692
C27: 10011010 | D27: 5 | E27: 7.692
C28: 10011020 | D28: 5 | E28: 7.692
C29: 10011021 | D29: 4 | E29: 6.154
C30: 10011023 | D30: 4 | E30: 6.154
C31: 10011029 | D31: 4 | E31: 6.154
C32: 10011031 | D32: 4 | E32: 6.154
C33: 10011033 | D33: 4 | E33: 6.154
C34: 10011040 | D34: 4 | E34: 6.154
C35: 10011044 | D35: 4 | E35: 6.154
C36: 10011047 | D36: 4 | E36: 6.154
C37: 10011048 | D37: 4 | E37: 6.154
B40: Regression of variable WBA (censored):
B42: Goodness of fit statistics:
B44: Observations | C44: 65
B45: Sum of weights | C45: 65
B46: -2 Res Log(Likelihood) | C46: -88.142
B47: AIC | C47: -84.142
B48: AICC | C48: -83.949
B49: SBC | C49: -79.793
B50: CAIC | C50: -77.793
B51: Iterations | C51: 5
B52: Covariance parameters | C52: 2
B53: Number of fixed effects | C53: 1
B54: Number of random effects | C54: 1
B55: Number of subjects | C55: 15
B56: Maximum number of observations per subject | C56: 5
B59: Covariance parameters - Random effects:
C61: Parameters | D61: Standard error | E61: Z | F61: Pr > Z
B62: Variance | C62: 0.011 | D62: 0.005 | E62: 2.147 | F62: 0.016
B65: Covariance parameters - Repeated factor:
C67: Parameters | D67: Standard error | E67: Z | F67: Pr > Z
B68: Variance | C68: 0.010 | D68: 0.002 | E68: 5.054 | F68: < 0.0001
B71: Null model likelihood ratio test:
B73: DF | C73: Chi-square | D73: Pr > Chi²
B74: 1 | C74: 7.874 | D74: 0.005
B77: Type I tests of fixed effects:
B79: Effects | C79: Num DF | D79: Den DF | E79: F | F79: Pr > F
B80: SUM | C80: 1 | D80: 14 | E80: 103.519 | F80: < 0.0001
B83: Type II tests of fixed effects:
B85: Effects | C85: Num DF | D85: Den DF | E85: F | F85: Pr > F
B86: SUM | C86: 1 | D86: 14 | E86: 103.519 | F86: < 0.0001
B89: Type III tests of fixed effects:
B91: Effects | C91: Num DF | D91: Den DF | E91: F | F91: Pr > F
B92: SUM | C92: 1 | D92: 14 | E92: 103.519 | F92: < 0.0001
B95: Model parameters:
B97: Source | C97: Value | D97: Standard error | E97: t | F97: Pr > |t| | G97: Lower bound (95%) | H97: Upper bound (95%)
B98: Intercept | C98: -0.289 | D98: 0.043 | E98: -6.793 | F98: < 0.0001 | G98: -0.374 | H98: -0.204
B99: SUM | C99: 0.592 | D99: 0.058 | E99: 10.174 | F99: < 0.0001 | G99: 0.476 | H99: 0.708
B102: Random effects coefficients:
B104: Source | C104: Value | D104: Standard error | E104: DF | F104: t | G104: Pr > |t| | H104: Lower bound (95%) | I104: Upper bound (95%)
B105: SUM*Subject (censored)-10011001 | C105: -0.155 | D105: 0.051 | E105: 14 | F105: -3.016 | G105: 0.009 | H105: -0.257 | I105: -0.052
B106: SUM*Subject (censored)-10011003 | C106: -0.011 | D106: 0.052 | E106: 14 | F106: -0.203 | G106: 0.842 | H106: -0.114 | I106: 0.093
B107: SUM*Subject (censored)-10011008 | C107: 0.018 | D107: 0.051 | E107: 14 | F107: 0.348 | G107: 0.733 | H107: -0.085 | I107: 0.120
B108: SUM*Subject (censored)-10011009 | C108: -0.081 | D108: 0.059 | E108: 14 | F108: -1.375 | G108: 0.191 | H108: -0.199 | I108: 0.037
B109: SUM*Subject (censored)-10011010 | C109: 0.051 | D109: 0.059 | E109: 14 | F109: 0.857 | G109: 0.406 | H109: -0.068 | I109: 0.170
B110: SUM*Subject (censored)-10011020 | C110: 0.047 | D110: 0.049 | E110: 14 | F110: 0.978 | G110: 0.345 | H110: -0.049 | I110: 0.144
B111: SUM*Subject (censored)-10011021 | C111: 0.102 | D111: 0.056 | E111: 14 | F111: 1.814 | G111: 0.091 | H111: -0.010 | I111: 0.214
B112: SUM*Subject (censored)-10011023 | C112: -0.057 | D112: 0.063 | E112: 14 | F112: -0.905 | G112: 0.381 | H112: -0.184 | I112: 0.069
B113: SUM*Subject (censored)-10011029 | C113: 0.184 | D113: 0.054 | E113: 14 | F113: 3.378 | G113: 0.005 | H113: 0.075 | I113: 0.293
B114: SUM*Subject (censored)-10011031 | C114: -0.033 | D114: 0.053 | E114: 14 | F114: -0.625 | G114: 0.542 | H114: -0.138 | I114: 0.072
B115: SUM*Subject (censored)-10011033 | C115: 0.130 | D115: 0.055 | E115: 14 | F115: 2.341 | G115: 0.035 | H115: 0.019 | I115: 0.240
B116: SUM*Subject (censored)-10011040 | C116: -0.054 | D116: 0.050 | E116: 14 | F116: -1.080 | G116: 0.298 | H116: -0.155 | I116: 0.046
B117: SUM*Subject (censored)-10011044 | C117: -0.035 | D117: 0.064 | E117: 14 | F117: -0.549 | G117: 0.592 | H117: -0.163 | I117: 0.093
B118: SUM*Subject (censored)-10011047 | C118: -0.017 | D118: 0.060 | E118: 14 | F118: -0.285 | G118: 0.780 | H118: -0.137 | I118: 0.103
B119: SUM*Subject (censored)-10011048 | C119: -0.088 | D119: 0.057 | E119: 14 | F119: -1.543 | G119: 0.145 | H119: -0.202 | I119: 0.026
B122: R matrix:
B124: 0.010 | C124: 0.000 | D124: 0.000 | E124: 0.000 | F124: 0.000
B125: 0.000 | C125: 0.010 | D125: 0.000 | E125: 0.000 | F125: 0.000
B126: 0.000 | C126: 0.000 | D126: 0.010 | E126: 0.000 | F126: 0.000
B127: 0.000 | C127: 0.000 | D127: 0.000 | E127: 0.010 | F127: 0.000
B128: 0.000 | C128: 0.000 | D128: 0.000 | E128: 0.000 | F128: 0.010
B131: Correlation matrix:
B133: 1.000 | C133: 0.000 | D133: 0.000 | E133: 0.000 | F133: 0.000
B134: 0.000 | C134: 1.000 | D134: 0.000 | E134: 0.000 | F134: 0.000
B135: 0.000 | C135: 0.000 | D135: 1.000 | E135: 0.000 | F135: 0.000
B136: 0.000 | C136: 0.000 | D136: 0.000 | E136: 1.000 | F136: 0.000
B137: 0.000 | C137: 0.000 | D137: 0.000 | E137: 0.000 | F137: 1.000
B140: G matrix:
B142: 0.011 | C142: 0.000 | D142: 0.000 | E142: 0.000 | F142: 0.000 | G142: 0.000 | H142: 0.000 | I142: 0.000 | J142: 0.000 | K142: 0.000 | L142: 0.000 | M142: 0.000 | N142: 0.000 | O142: 0.000 | P142: 0.000
B143: 0.000 | C143: 0.011 | D143: 0.000 | E143: 0.000 | F143: 0.000 | G143: 0.000 | H143: 0.000 | I143: 0.000 | J143: 0.000 | K143: 0.000 | L143: 0.000 | M143: 0.000 | N143: 0.000 | O143: 0.000 | P143: 0.000
B144: 0.000 | C144: 0.000 | D144: 0.011 | E144: 0.000 | F144: 0.000 | G144: 0.000 | H144: 0.000 | I144: 0.000 | J144: 0.000 | K144: 0.000 | L144: 0.000 | M144: 0.000 | N144: 0.000 | O144: 0.000 | P144: 0.000
B145: 0.000 | C145: 0.000 | D145: 0.000 | E145: 0.011 | F145: 0.000 | G145: 0.000 | H145: 0.000 | I145: 0.000 | J145: 0.000 | K145: 0.000 | L145: 0.000 | M145: 0.000 | N145: 0.000 | O145: 0.000 | P145: 0.000
B146: 0.000 | C146: 0.000 | D146: 0.000 | E146: 0.000 | F146: 0.011 | G146: 0.000 | H146: 0.000 | I146: 0.000 | J146: 0.000 | K146: 0.000 | L146: 0.000 | M146: 0.000 | N146: 0.000 | O146: 0.000 | P146: 0.000
B147: 0.000 | C147: 0.000 | D147: 0.000 | E147: 0.000 | F147: 0.000 | G147: 0.011 | H147: 0.000 | I147: 0.000 | J147: 0.000 | K147: 0.000 | L147: 0.000 | M147: 0.000 | N147: 0.000 | O147: 0.000 | P147: 0.000
B148: 0.000 | C148: 0.000 | D148: 0.000 | E148: 0.000 | F148: 0.000 | G148: 0.000 | H148: 0.011 | I148: 0.000 | J148: 0.000 | K148: 0.000 | L148: 0.000 | M148: 0.000 | N148: 0.000 | O148: 0.000 | P148: 0.000
B149: 0.000 | C149: 0.000 | D149: 0.000 | E149: 0.000 | F149: 0.000 | G149: 0.000 | H149: 0.000 | I149: 0.011 | J149: 0.000 | K149: 0.000 | L149: 0.000 | M149: 0.000 | N149: 0.000 | O149: 0.000 | P149: 0.000
B150: 0.000 | C150: 0.000 | D150: 0.000 | E150: 0.000 | F150: 0.000 | G150: 0.000 | H150: 0.000 | I150: 0.000 | J150: 0.011 | K150: 0.000 | L150: 0.000 | M150: 0.000 | N150: 0.000 | O150: 0.000 | P150: 0.000
B151: 0.000 | C151: 0.000 | D151: 0.000 | E151: 0.000 | F151: 0.000 | G151: 0.000 | H151: 0.000 | I151: 0.000 | J151: 0.000 | K151: 0.011 | L151: 0.000 | M151: 0.000 | N151: 0.000 | O151: 0.000 | P151: 0.000
B152: 0.000 | C152: 0.000 | D152: 0.000 | E152: 0.000 | F152: 0.000 | G152: 0.000 | H152: 0.000 | I152: 0.000 | J152: 0.000 | K152: 0.000 | L152: 0.011 | M152: 0.000 | N152: 0.000 | O152: 0.000 | P152: 0.000
B153: 0.000 | C153: 0.000 | D153: 0.000 | E153: 0.000 | F153: 0.000 | G153: 0.000 | H153: 0.000 | I153: 0.000 | J153: 0.000 | K153: 0.000 | L153: 0.000 | M153: 0.011 | N153: 0.000 | O153: 0.000 | P153: 0.000
B154: 0.000 | C154: 0.000 | D154: 0.000 | E154: 0.000 | F154: 0.000 | G154: 0.000 | H154: 0.000 | I154: 0.000 | J154: 0.000 | K154: 0.000 | L154: 0.000 | M154: 0.000 | N154: 0.011 | O154: 0.000 | P154: 0.000
B155: 0.000 | C155: 0.000 | D155: 0.000 | E155: 0.000 | F155: 0.000 | G155: 0.000 | H155: 0.000 | I155: 0.000 | J155: 0.000 | K155: 0.000 | L155: 0.000 | M155: 0.000 | N155: 0.000 | O155: 0.011 | P155: 0.000
B156: 0.000 | C156: 0.000 | D156: 0.000 | E156: 0.000 | F156: 0.000 | G156: 0.000 | H156: 0.000 | I156: 0.000 | J156: 0.000 | K156: 0.000 | L156: 0.000 | M156: 0.000 | N156: 0.000 | O156: 0.000 | P156: 0.011
B159: Correlation matrix:
B161: 1.000 | C161: 0.000 | D161: 0.000 | E161: 0.000 | F161: 0.000 | G161: 0.000 | H161: 0.000 | I161: 0.000 | J161: 0.000 | K161: 0.000 | L161: 0.000 | M161: 0.000 | N161: 0.000 | O161: 0.000 | P161: 0.000
B162: 0.000 | C162: 1.000 | D162: 0.000 | E162: 0.000 | F162: 0.000 | G162: 0.000 | H162: 0.000 | I162: 0.000 | J162: 0.000 | K162: 0.000 | L162: 0.000 | M162: 0.000 | N162: 0.000 | O162: 0.000 | P162: 0.000
B163: 0.000 | C163: 0.000 | D163: 1.000 | E163: 0.000 | F163: 0.000 | G163: 0.000 | H163: 0.000 | I163: 0.000 | J163: 0.000 | K163: 0.000 | L163: 0.000 | M163: 0.000 | N163: 0.000 | O163: 0.000 | P163: 0.000
B164: 0.000 | C164: 0.000 | D164: 0.000 | E164: 1.000 | F164: 0.000 | G164: 0.000 | H164: 0.000 | I164: 0.000 | J164: 0.000 | K164: 0.000 | L164: 0.000 | M164: 0.000 | N164: 0.000 | O164: 0.000 | P164: 0.000
B165: 0.000 | C165: 0.000 | D165: 0.000 | E165: 0.000 | F165: 1.000 | G165: 0.000 | H165: 0.000 | I165: 0.000 | J165: 0.000 | K165: 0.000 | L165: 0.000 | M165: 0.000 | N165: 0.000 | O165: 0.000 | P165: 0.000
B166: 0.000 | C166: 0.000 | D166: 0.000 | E166: 0.000 | F166: 0.000 | G166: 1.000 | H166: 0.000 | I166: 0.000 | J166: 0.000 | K166: 0.000 | L166: 0.000 | M166: 0.000 | N166: 0.000 | O166: 0.000 | P166: 0.000
B167: 0.000 | C167: 0.000 | D167: 0.000 | E167: 0.000 | F167: 0.000 | G167: 0.000 | H167: 1.000 | I167: 0.000 | J167: 0.000 | K167: 0.000 | L167: 0.000 | M167: 0.000 | N167: 0.000 | O167: 0.000 | P167: 0.000
B168: 0.000 | C168: 0.000 | D168: 0.000 | E168: 0.000 | F168: 0.000 | G168: 0.000 | H168: 0.000 | I168: 1.000 | J168: 0.000 | K168: 0.000 | L168: 0.000 | M168: 0.000 | N168: 0.000 | O168: 0.000 | P168: 0.000
B169: 0.000 | C169: 0.000 | D169: 0.000 | E169: 0.000 | F169: 0.000 | G169: 0.000 | H169: 0.000 | I169: 0.000 | J169: 1.000 | K169: 0.000 | L169: 0.000 | M169: 0.000 | N169: 0.000 | O169: 0.000 | P169: 0.000
B170: 0.000 | C170: 0.000 | D170: 0.000 | E170: 0.000 | F170: 0.000 | G170: 0.000 | H170: 0.000 | I170: 0.000 | J170: 0.000 | K170: 1.000 | L170: 0.000 | M170: 0.000 | N170: 0.000 | O170: 0.000 | P170: 0.000
B171: 0.000 | C171: 0.000 | D171: 0.000 | E171: 0.000 | F171: 0.000 | G171: 0.000 | H171: 0.000 | I171: 0.000 | J171: 0.000 | K171: 0.000 | L171: 1.000 | M171: 0.000 | N171: 0.000 | O171: 0.000 | P171: 0.000
B172: 0.000 | C172: 0.000 | D172: 0.000 | E172: 0.000 | F172: 0.000 | G172: 0.000 | H172: 0.000 | I172: 0.000 | J172: 0.000 | K172: 0.000 | L172: 0.000 | M172: 1.000 | N172: 0.000 | O172: 0.000 | P172: 0.000
B173: 0.000 | C173: 0.000 | D173: 0.000 | E173: 0.000 | F173: 0.000 | G173: 0.000 | H173: 0.000 | I173: 0.000 | J173: 0.000 | K173: 0.000 | L173: 0.000 | M173: 0.000 | N173: 1.000 | O173: 0.000 | P173: 0.000
B174: 0.000 | C174: 0.000 | D174: 0.000 | E174: 0.000 | F174: 0.000 | G174: 0.000 | H174: 0.000 | I174: 0.000 | J174: 0.000 | K174: 0.000 | L174: 0.000 | M174: 0.000 | N174: 0.000 | O174: 1.000 | P174: 0.000
B175: 0.000 | C175: 0.000 | D175: 0.000 | E175: 0.000 | F175: 0.000 | G175: 0.000 | H175: 0.000 | I175: 0.000 | J175: 0.000 | K175: 0.000 | L175: 0.000 | M175: 0.000 | N175: 0.000 | O175: 0.000 | P175: 1.000
B178: Predictions and residuals:
B180: SUM | C180: Subject (censored) | D180: Weight | E180: WBA (censored) | F180: Pred(WBA (censored)) | G180: Std. dev. on pred. (Mean) | H180: DF | I180: alpha | J180: Lower bound 95% (Mean) | K180: Upper bound 95% (Mean) | L180: Residual | M180: Studentized marginal residual | N180: Pearson marginal residual | O180: Raw conditional residual | P180: Studentized conditional residual | Q180: Pearson conditional residual
B181: -1.073898518 | C181: 1 | D181: 1 | E181: -0.657 | F181: -0.758 | G181: 0.043 | H181: 14 | I181: 0.050 | J181: -0.843 | K181: -0.673 | L181: 0.101 | M181: 0.700 | N181: 1.028 | O181: -0.066 | P181: -0.801 | Q181: -0.671
B182: -1.050744557 | C182: 1 | D182: 1 | E182: -0.652 | F182: -0.748 | G182: 0.043 | H182: 14 | I182: 0.050 | J182: -0.833 | K182: -0.663 | L182: 0.096 | M182: 0.665 | N182: 0.979 | O182: -0.067 | P182: -0.806 | Q182: -0.683
B183: -0.9213305989 | C183: 1 | D183: 1 | E183: -0.816 | F183: -0.691 | G183: 0.043 | H183: 14 | I183: 0.050 | J183: -0.776 | K183: -0.606 | L183: -0.125 | M183: -0.859 | N183: -1.274 | O183: -0.267 | P183: -3.012 | Q183: -2.732
B184: -0.6450983103 | C184: 1 | D184: 1 | E184: -0.557 | F184: -0.571 | G184: 0.043 | H184: 14 | I184: 0.050 | J184: -0.655 | K184: -0.486 | L184: 0.013 | M184: 0.091 | N184: 0.136 | O184: -0.087 | P184: -0.841 | Q184: -0.885
B185: -0.5727548305 | C185: 1 | D185: 1 | E185: -0.475 | F185: -0.539 | G185: 0.043 | H185: 14 | I185: 0.050 | J185: -0.624 | K185: -0.454 | L185: 0.064 | M185: 0.436 | N185: 0.651 | O185: -0.025 | P185: -0.234 | Q185: -0.255
B186: -1.021575699 | C186: 2 | D186: 1 | E186: -0.834 | F186: -0.882 | G186: 0.043 | H186: 14 | I186: 0.050 | J186: -0.967 | K186: -0.798 | L186: 0.049 | M186: 0.337 | N186: 0.496 | O186: 0.038 | P186: 0.454 | Q186: 0.386
B187: -1.005838975 | C187: 2 | D187: 1 | E187: -0.903 | F187: -0.873 | G187: 0.043 | H187: 14 | I187: 0.050 | J187: -0.958 | K187: -0.788 | L187: -0.029 | M187: -0.202 | N187: -0.299 | O187: -0.040 | P187: -0.474 | Q187: -0.407
B188: -0.9851697389 | C188: 2 | D188: 1 | E188: -0.888 | F188: -0.861 | G188: 0.043 | H188: 14 | I188: 0.050 | J188: -0.946 | K188: -0.776 | L188: -0.027 | M188: -0.184 | N188: -0.272 | O188: -0.037 | P188: -0.435 | Q188: -0.378
B189: -0.6718284696 | C189: 2 | D189: 1 | E189: -0.662 | F189: -0.679 | G189: 0.043 | H189: 14 | I189: 0.050 | J189: -0.764 | K189: -0.594 | L189: 0.017 | M189: 0.115 | N189: 0.171 | O189: 0.010 | P189: 0.096 | Q189: 0.099
B190: -0.432821733 | C190: 2 | D190: 1 | E190: -0.531 | F190: -0.540 | G190: 0.043 | H190: 14 | I190: 0.050 | J190: -0.625 | K190: -0.455 | L190: 0.010 | M190: 0.066 | N190: 0.099 | O190: 0.005 | P190: 0.045 | Q190: 0.052
B191: -1.125862299 | C191: 3 | D191: 1 | E191: -0.925 | F191: -0.975 | G191: 0.043 | H191: 14 | I191: 0.050 | J191: -1.060 | K191: -0.890 | L191: 0.050 | M191: 0.349 | N191: 0.510 | O191: 0.070 | P191: 0.860 | Q191: 0.715
B192: -1.075992077 | C192: 3 | D192: 1 | E192: -0.881 | F192: -0.945 | G192: 0.043 | H192: 14 | I192: 0.050 | J192: -1.030 | K192: -0.860 | L192: 0.064 | M192: 0.445 | N192: 0.654 | O192: 0.083 | P192: 0.992 | Q192: 0.850
B193: -1.020522772 | C193: 3 | D193: 1 | E193: -1.020 | F193: -0.911 | G193: 0.043 | H193: 14 | I193: 0.050 | J193: -0.996 | K193: -0.826 | L193: -0.109 | M193: -0.755 | N193: -1.115 | O193: -0.091 | P193: -1.050 | Q193: -0.929
B194: -0.7014719306 | C194: 3 | D194: 1 | E194: -0.759 | F194: -0.716 | G194: 0.043 | H194: 14 | I194: 0.050 | J194: -0.801 | K194: -0.631 | L194: -0.042 | M194: -0.291 | N194: -0.434 | O194: -0.030 | P194: -0.291 | Q194: -0.306
B195: -0.9364575668 | C195: 4 | D195: 1 | E195: -0.756 | F195: -0.767 | G195: 0.043 | H195: 14 | I195: 0.050 | J195: -0.852 | K195: -0.682 | L195: 0.011 | M195: 0.074 | N195: 0.110 | O195: -0.065 | P195: -0.805 | Q195: -0.665
B196: -0.8016889533 | C196: 4 | D196: 1 | E196: -0.837 | F196: -0.698 | G196: 0.043 | H196: 14 | I196: 0.050 | J196: -0.783 | K196: -0.613 | L196: -0.139 | M196: -0.953 | N196: -1.421 | O196: -0.204 | P196: -2.258 | Q196: -2.084
B197: -0.7955462618 | C197: 4 | D197: 1 | E197: -0.575 | F197: -0.695 | G197: 0.043 | H197: 14 | I197: 0.050 | J197: -0.780 | K197: -0.610 | L197: 0.120 | M197: 0.825 | N197: 1.230 | O197: 0.056 | P197: 0.616 | Q197: 0.571
B198: -0.387811196 | C198: 4 | D198: 1 | E198: -0.267 | F198: -0.487 | G198: 0.043 | H198: 14 | I198: 0.050 | J198: -0.572 | K198: -0.402 | L198: 0.220 | M198: 1.508 | N198: 2.244 | O198: 0.188 | P198: 1.599 | Q198: 1.923
B199: 0.1064966523 | C199: 4 | D199: 1 | E199: -0.170 | F199: -0.234 | G199: 0.043 | H199: 14 | I199: 0.050 | J199: -0.319 | K199: -0.150 | L199: 0.064 | M199: 0.457 | N199: 0.654 | O199: 0.073 | P199: 0.490 | Q199: 0.742
B200: -0.8226407143 | C200: 5 | D200: 1 | E200: -0.742 | F200: -0.817 | G200: 0.043 | H200: 14 | I200: 0.050 | J200: -0.902 | K200: -0.733 | L200: 0.076 | M200: 0.519 | N200: 0.773 | O200: 0.118 | P200: 1.384 | Q200: 1.201
B201: -0.7634636296 | C201: 5 | D201: 1 | E201: -0.734 | F201: -0.779 | G201: 0.043 | H201: 14 | I201: 0.050 | J201: -0.864 | K201: -0.694 | L201: 0.046 | M201: 0.313 | N201: 0.466 | O201: 0.085 | P201: 0.953 | Q201: 0.864
B202: -0.7453375985 | C202: 5 | D202: 1 | E202: -0.829 | F202: -0.768 | G202: 0.043 | H202: 14 | I202: 0.050 | J202: -0.853 | K202: -0.683 | L202: -0.061 | M202: -0.418 | N202: -0.623 | O202: -0.023 | P202: -0.256 | Q202: -0.235
B203: -0.5749875016 | C203: 5 | D203: 1 | E203: -0.841 | F203: -0.658 | G203: 0.043 | H203: 14 | I203: 0.050 | J203: -0.743 | K203: -0.573 | L203: -0.183 | M203: -1.249 | N203: -1.866 | O203: -0.153 | P203: -1.516 | Q203: -1.567
B204: -0.4218348116 | C204: 5 | D204: 1 | E204: -0.542 | F204: -0.560 | G204: 0.043 | H204: 14 | I204: 0.050 | J204: -0.645 | K204: -0.475 | L204: 0.018 | M204: 0.125 | N204: 0.186 | O204: 0.040 | P204: 0.356 | Q204: 0.406
B205: -1.168208387 | C205: 6 | D205: 1 | E205: -0.960 | F205: -1.035 | G205: 0.043 | H205: 14 | I205: 0.050 | J205: -1.120 | K205: -0.951 | L205: 0.076 | M205: 0.530 | N205: 0.774 | O205: 0.131 | P205: 1.579 | Q205: 1.340
B206: -1.13546698 | C206: 6 | D206: 1 | E206: -1.072 | F206: -1.015 | G206: 0.043 | H206: 14 | I206: 0.050 | J206: -1.099 | K206: -0.930 | L206: -0.057 | M206: -0.400 | N206: -0.586 | O206: -0.003 | P206: -0.040 | Q206: -0.035
B207: -1.114511595 | C207: 6 | D207: 1 | E207: -1.080 | F207: -1.001 | G207: 0.043 | H207: 14 | I207: 0.050 | J207: -1.086 | K207: -0.916 | L207: -0.078 | M207: -0.547 | N207: -0.801 | O207: -0.025 | P207: -0.300 | Q207: -0.260
B208: -0.7343434981 | C208: 6 | D208: 1 | E208: -0.843 | F208: -0.758 | G208: 0.043 | H208: 14 | I208: 0.050 | J208: -0.843 | K208: -0.673 | L208: -0.085 | M208: -0.583 | N208: -0.871 | O208: -0.050 | P208: -0.497 | Q208: -0.514
B209: -0.6933059512 | C209: 6 | D209: 1 | E209: -0.611 | F209: -0.732 | G209: 0.043 | H209: 14 | I209: 0.050 | J209: -0.817 | K209: -0.647 | L209: 0.121 | M209: 0.828 | N209: 1.237 | O209: 0.154 | P209: 1.490 | Q209: 1.574
B210: -0.9929560147 | C210: 7 | D210: 1 | E210: -0.985 | F210: -0.977 | G210: 0.043 | H210: 14 | I210: 0.050 | J210: -1.062 | K210: -0.892 | L210: -0.008 | M210: -0.056 | N210: -0.083 | O210: 0.093 | P210: 1.155 | Q210: 0.948
B211: -0.9037675909 | C211: 7 | D211: 1 | E211: -0.869 | F211: -0.915 | G211: 0.043 | H211: 14 | I211: 0.050 | J211: -1.000 | K211: -0.831 | L211: 0.046 | M211: 0.316 | N211: 0.469 | O211: 0.138 | P211: 1.606 | Q211: 1.408
B212: -0.8351556107 | C212: 7 | D212: 1 | E212: -0.967 | F212: -0.868 | G212: 0.043 | H212: 14 | I212: 0.050 | J212: -0.953 | K212: -0.783 | L212: -0.099 | M212: -0.678 | N212: -1.009 | O212: -0.014 | P212: -0.154 | Q212: -0.142
B213: -0.5252417118 | C213: 7 | D213: 1 | E213: -0.733 | F213: -0.653 | G213: 0.043 | H213: 14 | I213: 0.050 | J213: -0.738 | K213: -0.568 | L213: -0.080 | M213: -0.549 | N213: -0.820 | O213: -0.027 | P213: -0.246 | Q213: -0.274
B214: -0.876661028 | C214: 8 | D214: 1 | E214: -0.711 | F214: -0.757 | G214: 0.043 | H214: 14 | I214: 0.050 | J214: -0.842 | K214: -0.672 | L214: 0.046 | M214: 0.315 | N214: 0.468 | O214: -0.004 | P214: -0.057 | Q214: -0.045
B215: -0.7012645172 | C215: 8 | D215: 1 | E215: -0.560 | F215: -0.663 | G215: 0.043 | H215: 14 | I215: 0.050 | J215: -0.748 | K215: -0.579 | L215: 0.104 | M215: 0.708 | N215: 1.057 | O215: 0.063 | P215: 0.683 | Q215: 0.646
B216: -0.6661897113 | C216: 8 | D216: 1 | E216: -0.766 | F216: -0.645 | G216: 0.043 | H216: 14 | I216: 0.050 | J216: -0.730 | K216: -0.560 | L216: -0.121 | M216: -0.830 | N216: -1.240 | O216: -0.160 | P216: -1.674 | Q216: -1.630
B217: -0.3212674395 | C217: 8 | D217: 1 | E217: -0.400 | F217: -0.460 | G217: 0.043 | H217: 14 | I217: 0.050 | J217: -0.545 | K217: -0.376 | L217: 0.061 | M217: 0.420 | N217: 0.622 | O217: 0.043 | P217: 0.354 | Q217: 0.434
B218: -1.040148892 | C218: 9 | D218: 1 | E218: -0.961 | F218: -1.095 | G218: 0.043 | H218: 14 | I218: 0.050 | J218: -1.180 | K218: -1.011 | L218: 0.134 | M218: 0.930 | N218: 1.370 | O218: 0.325 | P218: 4.070 | Q218: 3.324
B219: -0.8722246932 | C219: 9 | D219: 1 | E219: -1.119 | F219: -0.965 | G219: 0.043 | H219: 14 | I219: 0.050 | J219: -1.050 | K219: -0.880 | L219: -0.154 | M219: -1.057 | N219: -1.571 | O219: 0.007 | P219: 0.073 | Q219: 0.067
B220: -0.8311506839 | C220: 9 | D220: 1 | E220: -1.113 | F220: -0.933 | G220: 0.043 | H220: 14 | I220: 0.050 | J220: -1.018 | K220: -0.848 | L220: -0.180 | M220: -1.235 | N220: -1.839 | O220: -0.027 | P220: -0.296 | Q220: -0.278
B221: -0.7499632564 | C221: 9 | D221: 1 | E221: -0.898 | F221: -0.870 | G221: 0.043 | H221: 14 | I221: 0.050 | J221: -0.955 | K221: -0.786 | L221: -0.028 | M221: -0.190 | N221: -0.283 | O221: 0.110 | P221: 1.141 | Q221: 1.126
B222: -1.081208015 | C222: 10 | D222: 1 | E222: -0.965 | F222: -0.893 | G222: 0.043 | H222: 14 | I222: 0.050 | J222: -0.978 | K222: -0.808 | L222: -0.072 | M222: -0.503 | N222: -0.738 | O222: -0.108 | P222: -1.325 | Q222: -1.102
B223: -1.029266274 | C223: 10 | D223: 1 | E223: -0.735 | F223: -0.864 | G223: 0.043 | H223: 14 | I223: 0.050 | J223: -0.949 | K223: -0.779 | L223: 0.129 | M223: 0.894 | N223: 1.318 | O223: 0.095 | P223: 1.131 | Q223: 0.972
B224: -1.021589309 | C224: 10 | D224: 1 | E224: -0.877 | F224: -0.860 | G224: 0.043 | H224: 14 | I224: 0.050 | J224: -0.945 | K224: -0.775 | L224: -0.018 | M224: -0.121 | N224: -0.179 | O224: -0.051 | P224: -0.605 | Q224: -0.522
B225: -0.5229975746 | C225: 10 | D225: 1 | E225: -0.595 | F225: -0.581 | G225: 0.043 | H225: 14 | I225: 0.050 | J225: -0.666 | K225: -0.496 | L225: -0.014 | M225: -0.094 | N225: -0.141 | O225: -0.031 | P225: -0.277 | Q225: -0.316
B226: -1.078251506 | C226: 11 | D226: 1 | E226: -1.097 | F226: -1.066 | G226: 0.043 | H226: 14 | I226: 0.050 | J226: -1.151 | K226: -0.982 | L226: -0.030 | M226: -0.211 | N226: -0.311 | O226: 0.109 | P226: 1.425 | Q226: 1.116
B227: -0.9374252806 | C227: 11 | D227: 1 | E227: -0.987 | F227: -0.965 | G227: 0.043 | H227: 14 | I227: 0.050 | J227: -1.050 | K227: -0.880 | L227: -0.022 | M227: -0.151 | N227: -0.224 | O227: 0.100 | P227: 1.169 | Q227: 1.016
B228: -0.8087405237 | C228: 11 | D228: 1 | E228: -0.856 | F228: -0.872 | G228: 0.043 | H228: 14 | I228: 0.050 | J228: -0.957 | K228: -0.787 | L228: 0.016 | M228: 0.108 | N228: 0.162 | O228: 0.121 | P228: 1.298 | Q228: 1.232
B229: -0.4674902499 | C229: 11 | D229: 1 | E229: -0.788 | F229: -0.626 | G229: 0.043 | H229: 14 | I229: 0.050 | J229: -0.711 | K229: -0.541 | L229: -0.162 | M229: -1.109 | N229: -1.654 | O229: -0.101 | P229: -0.894 | Q229: -1.036
B230: -1.197108372 | C230: 12 | D230: 1 | E230: -0.883 | F230: -0.932 | G230: 0.043 | H230: 14 | I230: 0.050 | J230: -1.017 | K230: -0.847 | L230: 0.049 | M230: 0.346 | N230: 0.503 | O230: -0.016 | P230: -0.194 | Q230: -0.160
B231: -1.135225415 | C231: 12 | D231: 1 | E231: -0.930 | F231: -0.899 | G231: 0.043 | H231: 14 | I231: 0.050 | J231: -0.984 | K231: -0.814 | L231: -0.031 | M231: -0.215 | N231: -0.315 | O231: -0.092 | P231: -1.109 | Q231: -0.944
B232: -1.053914063 | C232: 12 | D232: 1 | E232: -0.794 | F232: -0.855 | G232: 0.043 | H232: 14 | I232: 0.050 | J232: -0.940 | K232: -0.770 | L232: 0.061 | M232: 0.422 | N232: 0.622 | O232: 0.004 | P232: 0.042 | Q232: 0.037
B233: -0.7346408506 | C233: 12 | D233: 1 | E233: -0.737 | F233: -0.684 | G233: 0.043 | H233: 14 | I233: 0.050 | J233: -0.769 | K233: -0.599 | L233: -0.054 | M233: -0.367 | N233: -0.549 | O233: -0.094 | P233: -0.913 | Q233: -0.956
B234: -0.8755661706 | C234: 13 | D234: 1 | E234: -0.696 | F234: -0.776 | G234: 0.043 | H234: 14 | I234: 0.050 | J234: -0.861 | K234: -0.691 | L234: 0.080 | M234: 0.547 | N234: 0.813 | O234: 0.049 | P234: 0.621 | Q234: 0.498
B235: -0.7389000874 | C235: 13 | D235: 1 | E235: -0.755 | F235: -0.700 | G235: 0.043 | H235: 14 | I235: 0.050 | J235: -0.785 | K235: -0.615 | L235: -0.055 | M235: -0.377 | N235: -0.562 | O235: -0.081 | P235: -0.900 | Q235: -0.828
B236: -0.6137879305 | C236: 13 | D236: 1 | E236: -0.627 | F236: -0.630 | G236: 0.043 | H236: 14 | I236: 0.050 | J236: -0.715 | K236: -0.545 | L236: 0.004 | M236: 0.024 | N236: 0.036 | O236: -0.018 | P236: -0.181 | Q236: -0.185
B237: -0.1685964726 | C237: 13 | D237: 1 | E237: -0.380 | F237: -0.383 | G237: 0.043 | H237: 14 | I237: 0.050 | J237: -0.468 | K237: -0.298 | L237: 0.003 | M237: 0.017 | N237: 0.026 | O237: -0.003 | P237: -0.026 | Q237: -0.035
B238: -0.9263516286 | C238: 14 | D238: 1 | E238: -0.880 | F238: -0.821 | G238: 0.043 | H238: 14 | I238: 0.050 | J238: -0.906 | K238: -0.736 | L238: -0.059 | M238: -0.408 | N238: -0.605 | O238: -0.075 | P238: -0.951 | Q238: -0.767
B239: -0.846729005 | C239: 14 | D239: 1 | E239: -0.759 | F239: -0.775 | G239: 0.043 | H239: 14 | I239: 0.050 | J239: -0.860 | K239: -0.690 | L239: 0.016 | M239: 0.113 | N239: 0.168 | O239: 0.002 | P239: 0.023 | Q239: 0.020
B240: -0.5905426424 | C240: 14 | D240: 1 | E240: -0.463 | F240: -0.628 | G240: 0.043 | H240: 14 | I240: 0.050 | J240: -0.713 | K240: -0.543 | L240: 0.165 | M240: 1.127 | N240: 1.684 | O240: 0.155 | P240: 1.509 | Q240: 1.581
B241: -0.505977174 | C241: 14 | D241: 1 | E241: -0.661 | F241: -0.580 | G241: 0.043 | H241: 14 | I241: 0.050 | J241: -0.664 | K241: -0.495 | L241: -0.081 | M241: -0.556 | N241: -0.829 | O241: -0.090 | P241: -0.829 | Q241: -0.917
B242: -0.9654907395 | C242: 15 | D242: 1 | E242: -0.813 | F242: -0.775 | G242: 0.043 | H242: 14 | I242: 0.050 | J242: -0.860 | K242: -0.690 | L242: -0.038 | M242: -0.263 | N242: -0.389 | O242: -0.123 | P242: -1.531 | Q242: -1.258
B243: -0.9392797254 | C243: 15 | D243: 1 | E243: -0.642 | F243: -0.762 | G243: 0.043 | H243: 14 | I243: 0.050 | J243: -0.847 | K243: -0.677 | L243: 0.119 | M243: 0.823 | N243: 1.219 | O243: 0.037 | P243: 0.446 | Q243: 0.374
B244: -0.65290658 | C244: 15 | D244: 1 | E244: -0.514 | F244: -0.618 | G244: 0.043 | H244: 14 | I244: 0.050 | J244: -0.702 | K244: -0.533 | L244: 0.104 | M244: 0.711 | N244: 1.062 | O244: 0.046 | P244: 0.462 | Q244: 0.474
B245: -0.5968719851 | C245: 15 | D245: 1 | E245: -0.697 | F245: -0.589 | G245: 0.043 | H245: 14 | I245: 0.050 | J245: -0.674 | K245: -0.504 | L245: -0.107 | M245: -0.734 | N245: -1.097 | O245: -0.160 | P245: -1.539 | Q245: -1.634
B267: Means charts:

Sheet Period 2 RBT
A1: Subject | B1: Time | C1: RBT | D1: BDQ | E1: WBA | G1: log 0.5 RBT | I1: log 0.5 BDQ | K1: SUM | L1: WBA | M1: Subject | O1: INCORRECT?+!
A2: 10011004 | B2: 0 | C2: 59.92 | D2: BLQ | E2: -0.66633032 | O2: log RBT ng = 1.37336667121905-1.68243455341736*WBA
A3: 10011004 | B3: 1 | C3: 61.96 | D3: BLQ | E3: -0.6575154045
A4: 10011004 | B4: 2 | C4: 66.26 | D4: 779.306 | E4: -0.7744595639 | G4: =LOG(C4*0.5) -> 1.520221436 | H4: =0.79944291303538-0.587063878191178*G4 -> -0.09302417882 | I4: =LOG(D4*0.5) -> 2.590678024 | J4: =1.00479938881154-0.4054*I4 -> -0.04546148224 | K4: =J4+H4 -> -0.1384856611 | L4: =E4 -> -0.7744595639 | M4: =A4 -> 10011004 | O4: WBA = 0.79944291303538-0.587063878191178*log RBT ng
A5: 10011004 | B5: 3 | C5: 84.6 | D5: 3371.602 | E5: -0.7451094023 | G5: 1.626340367 | H5: =0.79944291303538-0.587063878191178*G5 -> -0.1553227703 | I5: 3.226806307 | J5: -0.3033478881 | K5: -0.4586706584 | L5: =E5 -> -0.7451094023 | M5: =A5 -> 10011004
A6: 10011004 | B6: 4 | C6: 146.83 | D6: 3321.904 | E6: -0.8232385627 | G6: 1.865784803 | H6: -0.2958919494 | I6: 3.220357082 | J6: -0.3007333722 | K6: -0.5966253216 | L6: -0.8232385627 | M6: 10011004
A7: 10011004 | B7: 5 | C7: 446.41 | D7: 4186.614
A8: 10011004 | B8: 6 | C8: 567.28 | D8: 3995.134 | E8: -1.002041454 | G8: 2.452767477 | H8: -0.6404882741 | I8: 3.300501355 | J8: -0.3332238604 | K8: -0.9737121346 | L8: -1.002041454 | M8: 10011004
A9: 10011004 | B9: 8 | C9: 221.24 | D9: 1330.283 | E9: -0.9165714907 | G9: 2.043833654 | H9: -0.4004179983 | I9: 2.822914046 | J9: -0.1396099652 | K9: -0.5400279636 | L9: -0.9165714907 | M9: 10011004
A10: 10011016 | B10: 0 | C10: 47.23 | D10: 24.747 | E10: -0.5609520975 | G10: =LOG(C10*0.5) -> 1.37318795 | H10: -0.006706130326 | I10: =LOG(D10*0.5) -> 1.092492563 | J10: 0.5619029039 | K10: =J10+H10 -> 0.5551967736 | L10: -0.5609520975 | M10: 10011016
A11: 10011016 | B11: 1 | C11: 425.05 | D11: 201.764 | E11: -0.8882942629 | G11: 2.327410025 | H11: -0.5668954423 | I11: 2.003813684 | J11: 0.1924533215 | K11: -0.3744421208 | L11: -0.8882942629 | M11: 10011016
A12: 10011016 | B12: 2 | C12: 519.4 | D12: 2652.871
A13: 10011016 | B13: 3 | C13: 389.45 | D13: 3689.632 | E13: -0.8882942629 | G13: 2.289421713 | H13: -0.5445938763 | I13: 3.265953057 | J13: -0.3192179803 | K13: -0.8638118567 | L13: -0.8882942629 | M13: 10011016
A14: 10011016 | B14: 4 | C14: 265.95 | D14: 3187.398 | E14: -0.8213877362 | G14: 2.123769999 | H14: -0.447345739 | I14: 3.2024063 | J14: -0.2934561253 | K14: -0.7408018642 | L14: -0.8213877362 | M14: 10011016
A15: 10011016 | B15: 5 | C15: 258.25 | D15: 3989.768
A16: 10011016 | B16: 6 | C16: 238.43 | D16: 4072.024 | E16: -0.8238547558 | G16: 2.076330903 | H16: -0.4194959594 | I16: 3.308780333 | J16: -0.3365801583 | K16: -0.7560761177 | L16: -0.8238547558 | M16: 10011016
A17: 10011016 | B17: 8 | C17: 130.96 | D17: 1525.746 | E17: -0.7576793792 | G17: 1.816108671 | H17: -0.2667288864 | I17: 2.882452244 | J17: -0.1637467511 | K17: -0.4304756375 | L17: -0.7576793792 | M17: 10011016
A18: 10011018 | B18: 0 | C18: 77.49 | D18: 26.115 | E18: -0.5578032045 | G18: =LOG(C18*0.5) -> 1.588215665 | H18: -0.1329411348 | I18: =LOG(D18*0.5) -> 1.115860035 | J18: 0.5524297308 | K18: =J18+H18 -> 0.419488596 | L18: -0.5578032045 | M18: 10011018
A19: 10011018 | B19: 1 | C19: 67 | D19: 143.31 | E19: -0.5666437079 | G19: 1.525044807 | H19: -0.0958558058 | I19: 1.8552465 | J19: 0.2526824576 | K19: 0.1568266518 | L19: -0.5666437079 | M19: 10011018
A20: 10011018 | B20: 2 | C20: 112.73 | D20: 502.419 | O20: RBT ng | P20: WBA
A21: 10011018 | B21: 3 | C21: 161.72 | D21: 956.623 | E21: -0.7087820672 | G21: 1.907733737 | H21: -0.3205186532 | I21: 2.679710823 | J21: -0.08155537871 | K21: -0.4020740319 | L21: -0.7087820672 | M21: 10011018 | O21: 15 | P21: =0.79944291303538-0.587063878191178*LOG(O21) -> 0.1090022174
A22: 10011018 | B22: 4 | C22: 157.83 | D22: 1555.391 | E22: -0.8243772931 | G22: 1.897159561 | H22: -0.3143109363 | I22: 2.890809586 | J22: -0.1671348173 | K22: -0.4814457537 | L22: -0.8243772931 | M22: 10011018 | O22: 2000 | P22: =0.79944291303538-0.587063878191178*LOG(O22) -> -1.138472558
A23: 10011018 | B23: 5 | C23: 342.23 | D23: 4606.144
A24: 10011018 | B24: 6 | C24: 358.43 | D24: 2828.44 | E24: -0.8645434223 | G24: 2.253374357 | H24: -0.5234317758 | I24: 3.150516975 | J24: -0.2724201928 | K24: -0.7958519685 | L24: -0.8645434223 | M24: 10011018
A25: 10011018 | B25: 8 | C25: 191.31 | D25: 2802.194 | E25: -0.9031806544 | G25: 1.980707676 | H25: -0.3633590168 | I25: 3.146468203 | J25: -0.2707788208 | K25: -0.6341378376 | L25: -0.9031806544 | M25: 10011018
A26: 10011022 | B26: 0 | C26: 37.43 | D26: BLQ | E26: -0.5736419884
A27: 10011022 | B27: 1 | C27: 50.9 | D27: 588.3 | E27: -0.5285155344 | G27: =LOG(C27*0.5) -> 1.405687787 | H27: -0.02578561053 | I27: =LOG(D27*0.5) -> 2.468568853 | J27: 0.004041575917 | K27: =J27+H27 -> -0.02174403462 | L27: -0.5285155344 | M27: 10011022
A28: 10011022 | B28: 2 | C28: 106.51 | D28: 1938.461
A29: 10011022 | B29: 3 | C29: 287.5 | D29: 3693.423 | E29: -0.9554009389 | G29: 2.157607853 | H29: -0.467210721 | I29: 3.266399054 | J29: -0.3193987875 | K29: -0.7866095085 | L29: -0.9554009389 | M29: 10011022
A30: 10011022 | B30: 4 | C30: 402.92 | D30: 2562.791 | E30: -1.014268331 | G30: 2.30418883 | H30: -0.5532631174 | I30: 3.107683195 | J30: -0.2550553782 | K30: -0.8083184956 | L30: -1.014268331 | M30: 10011022
A31: 10011022 | B31: 5 | C31: 371.55 | D31: 3132.837
A32: 10011022 | B32: 6 | C32: 266.91 | D32: 2251.359 | E32: -0.9915472221 | G32: 2.12533485 | H32: -0.4482644062 | I32: 3.051414757 | J32: -0.2322441537 | K32: -0.68050856 | L32: -0.9915472221 | M32: 10011022
A33: 10011022 | B33: 8 | C33: 139.08 | D33: 781.875 | E33: -0.7836444278 | G33: 1.842234686 | H33: -0.2820665265 | I33: 2.592107331 | J33: -0.04604092333 | K33: -0.3281074498 | L33: -0.7836444278 | M33: 10011022
A34: 10011024 | B34: 0 | C34: 27.75 | D34: BLQ | E34: -0.5551359712
A35: 10011024 | B35: 1 | C35: 25.28 | D35: BLQ | E35: -0.580919657
A36: 10011024 | B36: 2 | C36: 36.36 | D36: 57.023
A37: 10011024 | B37: 3 | C37: 35.53 | D37: 260.835 | E37: -0.462938846 | G37: =LOG(C37*0.5) -> 1.249565212 | H37: 0.06586831373 | I37: =LOG(D37*0.5) -> 2.115335871 | J37: 0.1472422268 | K37: =J37+H37 -> 0.2131105405 | L37: -0.462938846 | M37: 10011024
A38: 10011024 | B38: 4 | C38: 65.84 | D38: 1005.088 | E38: -0.66633032 | G38: 1.517459827 | H38: -0.09140293773 | I38: 2.701174092 | J38: -0.09025658817 | K38: -0.1816595259 | L38: -0.66633032 | M38: 10011024
A39: 10011024 | B39: 5 | C39: 200.66 | D39: 5875.623
A40: 10011024 | B40: 6 | C40: 181.32 | D40: 5084.188 | E40: -0.8934457058 | G40: 1.957415715 | H40: -0.3496851477 | I40: 3.405191606 | J40: -0.3756652881 | K40: -0.7253504358 | L40: -0.8934457058 | M40: 10011024
A41: 10011024 | B41: 8 | C41: 121.66 | D41: 3304.254 | E41: -0.7875250989 | G41: 1.784117816 | H41: -0.2479482114 | I41: 3.218043429 | J41: -0.2997954172 | K41: -0.5477436286 | L41: -0.7875250989 | M41: 10011024
A42: 10011027 | B42: 0 | C42: 58.21 | D42: BLQ | E42: -0.597852633
A43: 10011027 | B43: 1 | C43: 58.1 | D43: BLQ | E43: -0.5540251913
A44: 10011027 | B44: 2 | C44: 273.93 | D44: 706.414
A45: 10011027 | B45: 3 | C45: 637.41 | D45: 3301.218 | E45: -0.8998609413 | G45: =LOG(C45*0.5) -> 2.503388877 | H45: -0.6702062697 | I45: =LOG(D45*0.5) -> 3.217644209 | J45: -0.2996335734 | K45: =J45+H45 -> -0.9698398431 | L45: -0.8998609413 | M45: 10011027
A46: 10011027 | B46: 4 | C46: 376.81 | D46: 2752.39 | E46: -0.8913299831 | G46: 2.275092424 | H46: -0.5361816687 | I46: 3.138679976 | J46: -0.2676214733 | K46: -0.803803142 | L46: -0.8913299831 | M46: 10011027
A47: 10011027 | B47: 5 | C47: 358.34 | D47: 3720.342
A48: 10011027 | B48: 6 | C48: 256.97 | D48: 3332.719 | E48: -0.7612642536 | G48: 2.108852429 | H48: -0.4385881724 | I48: 3.221768702 | J48: -0.3013056429 | K48: -0.7398938153 | L48: -0.7612642536 | M48: 10011027
A49: 10011027 | B49: 8 | C49: 162.42 | D49: 2246.282 | E49: -0.7733642545 | G49: 1.90960951 | H49: -0.321619852 | I49: 3.050434281 | J49: -0.2318466688 | K49: -0.5534665209 | L49: -0.7733642545 | M49: 10011027
A50: 10011028 | B50: 0 | C50: 39.37 | D50: BLQ | E50: -0.5266680761
A51: 10011028 | B51: 1 | C51: 48.45 | D51: 39.251 | E51: -0.4928768819 | G51: =LOG(C51*0.5) -> 1.384263786 | H51: -0.01320835345 | I51: =LOG(D51*0.5) -> 1.29282073 | J51: 0.4806898648 | K51: =J51+H51 -> 0.4674815114 | L51: -0.4928768819 | M51: 10011028
A52: 10011028 | B52: 2 | C52: 223.61 | D52: 1198.3
A53: 10011028 | B53: 3 | C53: 158.33 | D53: 22.8 | E53: -0.6435496146 | G53: 1.898533216 | H53: -0.3151173597 | I53: 1.056904851 | J53: 0.5763301621 | K53: 0.2612128024 | L53: -0.6435496146 | M53: 10011028
A54: 10011028 | B54: 4 | C54: 282.99 | D54: 367.3 | E54: -0.809611807 | G54: 2.150741093 | H54: -0.4631794943 | I54: 2.263990933 | J54: 0.0869774647 | K54: -0.3762020296 | L54: -0.809611807 | M54: 10011028
A55: 10011028 | B55: 5 | C55: 345.3 | D55: 2429
A56: 10011028 | B56: 6 | C56: 249.72 | D56: 4647.732 | E56: -0.8499553167 | G56: 2.096423331 | H56: -0.4312914978 | I56: 3.366211082 | J56: -0.3598625838 | K56: -0.7911540816 | L56: -0.8499553167 | M56: 10011028
A57: 10011028 | B57: 8 | C57: 131.13 | D57: 1689.269 | E57: -0.7312082371 | G57: 1.816672066 | H57: -0.2670596352 | I57: 2.926668817 | J57: -0.1816721495 | K57: -0.4487317846 | L57: -0.7312082371 | M57: 10011028
A58: 10011030 | B58: 0 | C58: 75.21 | D58: BLQ | E58: -0.5517916515
A59: 10011030 | B59: 1 | C59: 82.62 | D59: 757.362 | E59: -0.5610086491 | G59: =LOG(C59*0.5) -> 1.616055195 | H59: -0.1492847171 | I59: =LOG(D59*0.5) -> 2.578273515 | J59: -0.04043269429 | K59: =J59+H59 -> -0.1897174114 | L59: -0.5610086491 | M59: 10011030
A60: 10011030 | B60: 2 | C60: 205.66 | D60: 3496.415
A61: 10011030 | B61: 3 | C61: 642.59 | D61: 3183.688 | E61: -0.8036949227 | G61: 2.506903967 | H61: -0.6722698521 | I61: 3.201900505 | J61: -0.2932510758 | K61: -0.965520928 | L61: -0.8036949227 | M61: 10011030
A62: 10011030 | B62: 4 | C62: 476.44 | D62: 1871.561 | E62: -0.7359922774 | G62: 2.37697822 | H62: -0.5959951394 | I62: 2.971173991 | J62: -0.1997145472 | K62: -0.7957096865 | L62: -0.7359922774 | M62: 10011030
A63: 10011030 | B63: 5 | C63: 649.75 | D63: 3198.846
A64: 10011030 | B64: 6 | C64: 350.05 | D64: 2180.54 | E64: -0.7153182239 | G64: 2.243100086 | H64: -0.5174001228 | I64: 3.037534062 | J64: -0.22661692 | K64: -0.7440170428 | L64: -0.7153182239 | M64: 10011030
A65: 10011030 | B65: 8 | C65: 259.93 | D65: 1903.088 | E65: -0.7172190896 | G65: 2.113826411 | H65: -0.4415082177 | I65: 2.978428875 | J65: -0.2026556772 | K65: -0.6441638949 | L65: -0.7172190896 | M65: 10011030
A66: 10011032 | B66: 0 | C66: 41.02 | D66: BLQ | E66: -0.5485864126
A67: 10011032 | B67: 1 | C67: 42.28 | D67: 363.055 | E67: -0.6029553947 | G67: =LOG(C67*0.5) -> 1.325104983 | H67: 0.02152164272 | I67: =LOG(D67*0.5) -> 2.258942427 | J67: =1.00479938881154-0.4054*I67 -> 0.08902412908 | K67: =J67+H67 -> 0.1105457718 | L67: -0.6029553947 | M67: 10011032
A68: 10011032 | B68: 2 | C68: 80.47 | D68: 2538.301
A69: 10011032 | B69: 3 | C69: 205.88 | D69: 3431.477 | E69: -0.8307306857 | G69: 2.012584164 | H69: =0.79944291303538-0.587063878191178*G69 -> -0.3820725514 | I69: 3.234451097 | J69: -0.3064470858 | K69: -0.6885196372 | L69: =E69 -> -0.8307306857 | M69: =A69 -> 10011032
A70: 10011032 | B70: 4 | C70: 432.21 | D70: 2875.13 | E70: -1.135758836 | G70: 2.334664815 | H70: -0.5711544677 | I70: 3.157627491 | J70: -0.2753027959 | K70: -0.8464572635 | L70: -1.135758836 | M70: 10011032
A71: 10011032 | B71: 5 | C71: 710.18 | D71: 3978.411
A72: 10011032 | B72: 6 | C72: 486.8 | D72: 4030.885 | E72: -1.035125541 | G72: 2.386320574 | H72: -0.6014796977 | I72: 3.304370412 | J72: -0.3347923764 | K72: -0.936272074 | L72: -1.035125541 | M72: 10011032
A73: 10011032 | B73: 8 | C73: 235.28 | D73: 2329.34 | E73: -0.9347001521 | G73: 2.070555016 | H73: -0.4161051446 | I73: 3.066202889 | J73: -0.2382392623 | K73: -0.6543444069 | L73: -0.9347001521 | M73: 10011032
A74: 10011035 | B74: 0 | C74: 54.43 | D74: 32.086 | E74: -0.4708078933 | G74: =LOG(C74*0.5) -> 1.434808339 | H74: -0.04288123472 | I74: =LOG(D74*0.5) -> 1.205285584 | J74: 0.5161766133 | K74: =J74+H74 -> 0.4732953785 | L74: -0.4708078933 | M74: 10011035
A75: 10011035 | B75: 1 | C75: 81.32 | D75: 89.279 | E75: -0.4798003926 | G75: 1.609167374 | H75: -0.1452411264 | I75: 1.649719321 | J75: 0.3360031759 | K75: 0.1907620495 | L75: -0.4798003926 | M75: 10011035
A76: 10011035 | B76: 2 | C76: 348.35 | D76: 1337.969
A77: 10011035 | B77: 3 | C77: 605.55 | D77: 8271.557 | E77: -0.7156911788 | G77: 2.481120013 | H77: -0.6571330239 | I77: 3.616557271 | J77: -0.4613529289 | K77: -1.118485953 | L77: -0.7156911788 | M77: 10011035
A78: 10011035 | B78: 4 | C78: 449.48 | D78: 5085.115 | E78: -0.6883130441 | G78: 2.351680377 | H78: -0.5811436891 | I78: 3.405270783 | J78: -0.3756973867 | K78: -0.9568410758 | L78: -0.6883130441 | M78: 10011035
A79: 10011035 | B79: 5 | C79: 371.32 | D79: 6586.376
A80: 10011035 | B80: 6 | C80: 262.37 | D80: 4034.808 | E80: -0.6137381984 | G80: 2.11788418 | H80: -0.443890387 | I80: 3.304792878 | J80: -0.3349636438 | K80: -0.7788540308 | L80: -0.6137381984 | M80: 10011035
A81: 10011035 | B81: 8 | C81: 154.88 | D81: 2144.005 | E81: -0.608009363 | G81: 1.888965344 | H81: -0.3095004078 | I81: 3.030195798 | J81: -0.2236419878 | K81: -0.5331423955 | L81: -0.608009363 | M81: 10011035
A82: 10011036 | B82: 0 | C82: 48.02 | D82: BLQ | E82: -0.5658987543
A83: 10011036 | B83: 1 | C83: 48.51 | D83: BLQ | E83: -0.5450279857
A84: 10011036 | B84: 2 | C84: 84.22 | D84: 334.288
A85: 10011036 | B85: 3 | C85: 214.24 | D85: 4144.278 | E85: -0.782941477 | G85: =LOG(C85*0.5) -> 2.029870564 | H85: -0.3922207725 | I85: =LOG(D85*0.5) -> 3.316418885 | J85: -0.3396768271 | K85: =J85+H85 -> -0.7318975995 | L85: -0.782941477 | M85: 10011036
A86: 10011036 | B86: 4 | C86: 262.19 | D86: 2784.023 | E86: -0.815767646 | G86: 2.117586128 | H86: -0.4437154116 | I86: 3.143642823 | J86: -0.2696334117 | K86: -0.7133488233 | L86: -0.815767646 | M86: 10011036
A87: 10011036 | B87: 5 | C87: 448.97 | D87: 4652.095
A88: 10011036 | B88: 6 | C88: 365.54 | D88: 2412.739 | E88: -0.8134577973 | G88: 2.261904912 | H88: -0.5284397566 | I88: 3.081480349 | J88: -0.2444327445 | K88: -0.7728725011 | L88: -0.8134577973 | M88: 10011036
A89: 10011036 | B89: 8 | C89: 166.15 | D89: 1170.941 | E89: -0.706241139 | G89: 1.91947035 | H89: -0.3274087947 | I89: 2.767505017 | J89: -0.1171471452 | K89: -0.4445559399 | L89: -0.706241139 | M89: 10011036
A90: 10011038 | B90: 0 | C90: 25.32 | D90: BLQ | E90: -0.4825680094
A91: 10011038 | B91: 1 | C91: 24.42 | D91: BLQ | E91: -0.4801878572
A92: 10011038 | B92: 2 | C92: 48.37 | D92: 175.054
A93: 10011038 | B93: 3 | C93: 94.37 | D93: 862.07 | E93: -0.5640053048 | G93: =LOG(C93*0.5) -> 1.673803959 | H93: -0.1831869307 | I93: =LOG(D93*0.5) -> 2.634512536 | J93: -0.06323199339 | K93: =J93+H93 -> -0.2464189241 | L93: -0.5640053048 | M93: 10011038
A94: 10011038 | B94: 4 | C94: 162.01 | D94: 1147.141 | E94: -0.6262573419 | G94: 1.908511826 | H94: -0.3209754413 | I94: 2.758586807 | J94: -0.1135317025 | K94: -0.4345071439 | L94: -0.6262573419 | M94: 10011038
A95: 10011038 | B95: 5 | C95: 319.7 | D95: 3684.169
A96: 10011038 | B96: 6 | C96: 265.02 | D96: 2342.322 | E96: -0.6595672614 | G96: 2.122248654 | H96: -0.4464526123 | I96: 3.068616602 | J96: -0.2392177816 | K96: -0.6856703938 | L96: -0.6595672614 | M96: 10011038
A97: 10011038 | B97: 8 | C97: 130.62 | D97: 993.42 | E97: -0.5768345213 | G97: 1.814979684 | H97: -0.266066099 | I97: 2.696102904 | J97: -0.08820072827 | K97: -0.3542668272 | L97: -0.5768345213 | M97: 10011038
A98: 10011041 | B98: 0 | C98: 43.16 | D98: BLQ | E98: -0.5287926347
A99: 10011041 | B99: 1 | C99: 48.07 | D99: 352.494 | E99: -0.4801878572 | G99: =LOG(C99*0.5) -> 1.380844126 | H99: -0.01120079502 | I99: =LOG(D99*0.5) -> 2.246121733 | J99: 0.09422163811 | K99: =J99+H99 -> 0.08302084309 | L99: -0.4801878572 | M99: 10011041
A100: 10011041 | B100: 2 | C100: 54.9 | D100: 1051.173
A101: 10011041 | B101: 3 | C101: 74.76 | D101: 1766.934 | E101: -0.5332767163 | G101: 1.572639297 | H101: -0.1237968117 | I101: 2.946190332 | J101: -0.1895861718 | K101: -0.3133829835 | L101: -0.5332767163 | M101: 10011041
A102: 10011041 | B102: 4 | C102: 146.1 | D102: 1659.834 | E102: -0.566157314 | G102: 1.86362022 | H102: -0.294621201 | I102: 2.919034661 | J102: -0.1785772627 | K102: -0.4731984636 | L102: -0.566157314 | M102: 10011041
A103: 10011041 | B103: 5 | C103: 255.03 | D103: 2010.94
A104: 10011041 | B104: 6 | C104: 339.18 | D104: 2668.262 | E104: -0.6971184322 | G104: 2.22940024 | H104: -0.509357438 | I104: 3.125198476 | J104: -0.2621560732 | K104: -0.7715135112 | L104: -0.6971184322 | M104: 10011041
A105: 10011041 | B105: 8 | C105: 176.26 | D105: 1017.883 | E105: -0.5957143275 | G105: 1.94512377 | H105: -0.342468991 | I105: 2.706667865 | J105: -0.09248376385 | K105: -0.4349527549 | L105: -0.5957143275 | M105: 10011041
A106: 10011043 | B106: 0 | C106: 36.27 | D106: BLQ | E106: -0.5552346029
A107: 10011043 | B107: 1 | C107: 427.39 | D107: 73.615 | E107: -0.7581382373 | G107: =LOG(C107*0.5) -> 2.329794361 | H107: -0.5682951998 | I107: =LOG(D107*0.5) -> 1.565936321 | J107: 0.3699688044 | K107: =J107+H107 -> -0.1983263954 | L107: -0.7581382373 | M107: 10011043
A108: 10011043 | B108: 2 | C108: 390.98 | D108: 2505.314
A109: 10011043 | B109: 3 | C109: 311.42 | D109: 2830.81 | E109: -0.7477869517 | G109: 2.192316505 | H109: -0.4875869164 | I109: 3.150880725 | J109: -0.2725676573 | K109: -0.7601545737 | L109: -0.7477869517 | M109: 10011043
A110: 10011043 | B110: 4 | C110: 198.1 | D110: 1791.275 | E110: -0.7249066199 | G110: 1.99585448 | H110: -0.3722511582 | I110: 2.952132269 | J110: -0.1919950331 | K110: -0.5642461913 | L110: -0.7249066199 | M110: 10011043
A111: 10011043 | B111: 5 | C111: 227.94 | D111: 2592.106
A112: 10011043 | B112: 6 | C112: 221.91 | D112: 5025.319 | E112: -0.7337814838 | G112: 2.045146878 | H112: -0.4011889445 | I112: 3.40013364 | J112: -0.3736147887 | K112: -0.7748037332 | L112: -0.7337814838 | M112: 10011043
A113: 10011043 | B113: 8 | C113: 129.33 | D113: 2435.086 | E113: -0.6502725413 | G113: 1.810669282 | H113: -0.2635356177 | I113: 3.085484308 | J113: -0.2460559497 | K113: -0.5095915674 | L113: -0.6502725413 | M113: 10011043
A114: 10011045 | B114: 0 | C114: 44.01 | D114: BLQ | E114: -0.3949179348
A115: 10011045 | B115: 1 | C115: 41.76 | D115: 29.937 | E115: -0.3733719105 | G115: =LOG(C115*0.5) -> 1.319730494 | H115: 0.02467681087 | I115: =LOG(D115*0.5) -> 1.175178282 | J115: 0.5283821134 | K115: =J115+H115 -> 0.5530589243 | L115: -0.3733719105 | M115: 10011045
A116: 10011045 | B116: 2 | C116: 89.52 | D116: 129.448
A117: 10011045 | B117: 3 | C117: 178.83 | D117: 499.016 | E117: -0.499165724 | G117: 1.951410381 | H117: -0.3461596331 | I117: 2.397084475 | J117: 0.03302134264 | K117: -0.3131382905 | L117: -0.499165724 | M117: 10011045
A118: 10011045 | B118: 4 | C118: 297.71 | D118: 1520.645 | E118: -0.6192861391 | G118: 2.172763427 | H118: -0.4761080108 | I118: 2.880997843 | J118: -0.1631571366 | K118: -0.6392651474 | L118: -0.6192861391 | M118: 10011045
A119: 10011045 | B119: 5 | C119: 361.39 | D119: 2848.859
A120: 10011045 | B120: 6 | C120: 329.37 | D120: 3425.723 | E120: -0.5917777085 | G120: 2.216654044 | H120: -0.5018746067 | I120: 3.233722248 | J120: -0.3061516105 | K120: -0.8080262172 | L120: -0.5917777085 | M120: 10011045
A121: 10011045 | B121: 8 | C121: 164.77 | D121: 1423.958 | E121: -0.5671772445 | G121: 1.915848146 | H121: -0.3252823296 | I121: 2.852467184 | J121: -0.1515908077 | K121: -0.4768731373 | L121: -0.5671772445 | M121: 10011045
A122: 10011049 | B122: 0 | C122: 38.9 | D122: BLQ | E122: -0.4955375065
A123: 10011049 | B123: 1 | C123: 47.84 | D123: 25.747 | E123: -0.4562341302 | G123: 1.378761175 | H123: -0.009977969645 | I123: 1.109696637 | J123: 0.554928372 | K123: 0.5449504024 | L123: -0.4562341302 | M123: 10011049
A124: 10011049 | B124: 2 | C124: 93.07 | D124: 487.34
A125: 10011049 | B125: 3 | C125: 170.64 | D125: 1850.87 | E125: -0.5863571055 | G125: 1.931050847 | H125: -0.3342072861 | I125: 2.966345921 | J125: -0.1977572474 | K125: -0.5319645334 | L125: -0.5863571055 | M125: 10011049
A126: 10011049 | B126: 4 | C126: 185.38 | D126: 2600.188 | E126: -0.553203608 | G126: 1.967032882 | H126: -0.3553310393 | I126: 3.113974754 | J126: -0.2576059765 | K126: -0.6129370158 | L126: -0.553203608 | M126: 10011049
A127: 10011049 | B127: 5 | C127: 304.1 | D127: 4192.838
A128: 10011049 | B128: 6 | C128: 360.27 | D128: 4727.379 | E128: -0.6453868485 | G128: 2.255598104 | H128: -0.5247372575 | I128: 3.373590426 | J128: -0.3628541699 | K128: -0.8875914273 | L128: -0.6453868485 | M128: 10011049
A129: 10011049 | B129: 8 | C129: 266.87 | D129: 2703.76 | E129: -0.6127001832 | G129: 2.12526976 | H129: -0.4482261945 | I129: 3.130938143 | J129: -0.2644829344 | K129: -0.7127091288 | L129: -0.6127001832 | M129: 10011049

Sheet Mixed Models RBT BDQ
B1: XLSTAT 2014.3.01 - Mixed Models - on 7/5/2014 at 1:29:30 PM
B2: Y / Quantitative: Workbook = WBA PK analysis.xlsm / Sheet = Period 2 RBT / Range = 'Period 2 RBT'!$L$1:$L$129 / 128 rows and 1 column
B3: X / Quantitative: Workbook = WBA PK analysis.xlsm / Sheet = Period 2 RBT / Range = 'Period 2 RBT'!$K$1:$K$129 / 128 rows and 1 column
B4: X / Qualitative: Workbook = WBA PK analysis.xlsm / Sheet = Period 2 RBT / Range = 'Period 2 RBT'!$M$1:$M$129 / 128 rows and 1 column
B5: Number of removed observations: 49
B6: Repeated measures:
B7: Covariance structure: Variance components
B8: Random effects:
B9: Covariance structure: Variance components
B10: Constraints: a1=0
B11: Confidence interval (%): 95
B15: Summary statistics:
B17: Variable | C17: Observations | D17: Obs. with missing data | E17: Obs. without missing data | F17: Minimum | G17: Maximum | H17: Mean | I17: Std. deviation
B18: WBA | C18: 79 | D18: 0 | E18: 79 | F18: -1.136 | G18: -0.373 | H18: -0.716 | I18: 0.158
B19: SUM | C19: 79 | D19: 0 | E19: 79 | F19: -1.118 | G19: 0.555 | H19: -0.468 | I19: 0.409
B22: Variable | C22: Categories | D22: Frequencies | E22: %
B23: Subject | C23: 10011004 | D23: 5 | E23: 6.329
C24: 10011016 | D24: 6 | E24: 7.595
C25: 10011018 | D25: 6 | E25: 7.595
C26: 10011022 | D26: 5 | E26: 6.329
C27: 10011024 | D27: 4 | E27: 5.063
C28: 10011027 | D28: 4 | E28: 5.063
C29: 10011028 | D29: 5 | E29: 6.329
C30: 10011030 | D30: 5 | E30: 6.329
C31: 10011032 | D31: 5 | E31: 6.329
C32: 10011035 | D32: 6 | E32: 7.595
C33: 10011036 | D33: 4 | E33: 5.063
C34: 10011038 | D34: 4 | E34: 5.063
C35: 10011041 | D35: 5 | E35: 6.329
C36: 10011043 | D36: 5 | E36: 6.329
C37: 10011045 | D37: 5 | E37: 6.329
C38: 10011049 | D38: 5 | E38: 6.329
B41: Regression of variable WBA:
B43: Goodness of fit statistics:
B45: Observations | C45: 79
B46: Sum of weights | C46: 79
B47: -2 Res Log(Likelihood) | C47: -145.492
B48: AIC | C48: -141.492
B49: AICC | C49: -141.334
B50: SBC | C50: -136.753
B51: CAIC | C51: -134.753
B52: Iterations | C52: 5
B53: Covariance parameters | C53: 2
B54: Number of fixed effects | C54: 1
B55: Number of random effects | C55: 1
B56: Number of subjects | C56: 16
B57: Maximum number of observations per subject | C57: 5
B60: Covariance parameters - Random effects:
C62: Parameters | D62: Standard error | E62: Z | F62: Pr > Z
B63: Variance | C63: 0.024 | D63: 0.009 | E63: 2.573 | F63: 0.005
B66: Covariance parameters - Repeated factor:
C68: Parameters | D68: Standard error | E68: Z | F68: Pr > Z
B69: Variance | C69: 0.005 | D69: 0.001 | E69: 5.659 | F69: < 0.0001
B72: Null model likelihood ratio test:
B74: DF | C74: Chi-square | D74: Pr > Chi²
B75: 1 | C75: 22.019 | D75: < 0.0001
B78: Type I tests of fixed effects:
B80: Effects | C80: Num DF | D80: Den DF | E80: F | F80: Pr > F
B81: SUM | C81: 1 | D81: 15 | E81: 36.904 | F81: < 0.0001
B84: Type II tests of fixed effects:
B86: Effects | C86: Num DF | D86: Den DF | E86: F | F86: Pr > F
B87: SUM | C87: 1 | D87: 15 | E87: 36.904 | F87: < 0.0001
B90: Type III tests of fixed effects:
B92: Effects | C92: Num DF | D92: Den DF | E92: F | F92: Pr > F
B93: SUM | C93: 1 | D93: 15 | E93: 36.904 | F93: < 0.0001
B96: Model parameters:
B98: Source | C98: Value | D98: Standard error | E98: t | F98: Pr > |t| | G98: Lower bound (95%) | H98: Upper bound (95%)
B99: Intercept | C99: -0.587 | D99: 0.013 | E99: -45.555 | F99: < 0.0001 | G99: -0.613 | H99: -0.562
B100: SUM | C100: 0.268 | D100: 0.044 | E100: 6.075 | F100: < 0.0001 | G100: 0.180 | H100: 0.355
B103: Random effects coefficients:
B105: Source | C105: Value | D105: Standard error | E105: DF | F105: t | G105: Pr > |t| | H105: Lower bound (95%) | I105: Upper bound (95%)
B106: SUM*Subject-10011004 | C106: 0.162 | D106: 0.063 | E106: 15 | F106: 2.594 | G106: 0.020 | H106: 0.038 | I106: 0.287
B107: SUM*Subject-10011016 | C107: 0.053 | D107: 0.058 | E107: 15 | F107: 0.913 | G107: 0.376 | H107: -0.062 | I107: 0.168
B108: SUM*Subject-10011018 | C108: 0.088 | D108: 0.064 | E108: 15 | F108: 1.371 | G108: 0.191 | H108: -0.040 | I108: 0.216
B109: SUM*Subject-10011022 | C109: 0.232 | D109: 0.062 | E109: 15 | F109: 3.722 | G109: 0.002 | H109: 0.108 | I109: 0.356
B110: SUM*Subject-10011024 | C110: 0.116 | D110: 0.076 | E110: 15 | F110: 1.526 | G110: 0.148 | H110: -0.035 | I110: 0.267
B111: SUM*Subject-10011027 | C111: 0.047 | D111: 0.058 | E111: 15 | F111: 0.815 | G111: 0.428 | H111: -0.068 | I111: 0.163
B112: SUM*Subject-10011028 | C112: 0.033 | D112: 0.069 | E112: 15 | F112: 0.483 | G112: 0.636 | H112: -0.105 | I112: 0.172
B113: SUM*Subject-10011030 | C113: -0.067 | D113: 0.057 | E113: 15 | F113: -1.160 | G113: 0.264 | H113: -0.181 | I113: 0.048
B114: SUM*Subject-10011032 | C114: 0.222 | D114: 0.058 | E114: 15 | F114: 3.836 | G114: 0.002 | H114: 0.107 | I114: 0.337
B115: SUM*Subject-10011035 | C115: -0.153 | D115: 0.055 | E115: 15 | F115: -2.790 | G115: 0.014 | H115: -0.261 | I115: -0.044
B116: SUM*Subject-10011036 | C116: 0.020 | D116: 0.062 | E116: 15 | F116: 0.324 | G116: 0.750 | H116: -0.104 | I116: 0.144
B117: SUM*Subject-10011038 | C117: -0.158 | D117: 0.078 | E117: 15 | F117: -2.034 | G117: 0.060 | H117: -0.313 | I117: -0.003
B118: SUM*Subject-10011041 | C118: -0.170 | D118: 0.072 | E118: 15 | F118: -2.376 | G118: 0.031 | H118: -0.313 | I118: -0.028
B119: SUM*Subject-10011043 | C119: -0.050 | D119: 0.063 | E119: 15 | F119: -0.798 | G119: 0.437 | H119: -0.175 | I119: 0.075
B120: SUM*Subject-10011045 | C120: -0.181 | D120: 0.064 | E120: 15 | F120: -2.844 | G120: 0.012 | H120: -0.308 | I120: -0.054
B121: SUM*Subject-10011049 | C121: -0.195 | D121: 0.059 | E121: 15 | F121: -3.283 | G121: 0.005 | H121: -0.313 | I121: -0.077
B124: R matrix:
B126: 0.005 | C126: 0.000 | D126: 0.000 | E126: 0.000 | F126: 0.000
B127: 0.000 | C127: 0.005 | D127: 0.000 | E127: 0.000 | F127: 0.000
B128: 0.000 | C128: 0.000 | D128: 0.005 | E128: 0.000 | F128: 0.000
B129: 0.000 | C129: 0.000 | D129: 0.000 | E129: 0.005 | F129: 0.000
B130: 0.000 | C130: 0.000 | D130: 0.000 | E130: 0.000 | F130: 0.005
B133: Correlation matrix:
B135: 1.000 | C135: 0.000 | D135: 0.000 | E135: 0.000 | F135: 0.000
B136: 0.000 | C136: 1.000 | D136: 0.000 | E136: 0.000 | F136: 0.000
B137: 0.000 | C137: 0.000 | D137: 1.000 | E137: 0.000 | F137: 0.000
B138: 0.000 | C138: 0.000 | D138: 0.000 | E138: 1.000 | F138: 0.000
B139: 0.000 | C139: 0.000 | D139: 0.000 | E139: 0.000 | F139: 1.000
B142: G matrix:
B144: 0.024 | C144: 0.000 | D144: 0.000 | E144: 0.000 | F144: 0.000 | G144: 0.000 | H144: 0.000 | I144: 0.000 | J144: 0.000 | K144: 0.000 | L144: 0.000 | M144: 0.000 | N144: 0.000 | O144: 0.000 | P144: 0.000 | Q144: 0.000
B145: 0.000 | C145: 0.024 | D145: 0.000 | E145: 0.000 | F145: 0.000 | G145: 0.000 | H145: 0.000 | I145: 0.000 | J145: 0.000 | K145: 0.000 | L145: 0.000 | M145: 0.000 | N145: 0.000 | O145: 0.000 | P145: 0.000 | Q145: 0.000
B146: 0.000 | C146: 0.000 | D146: 0.024 | E146: 0.000 | F146: 0.000 | G146: 0.000 | H146: 0.000 | I146: 0.000 | J146: 0.000 | K146: 0.000 | L146: 0.000 | M146: 0.000 | N146: 0.000 | O146: 0.000 | P146: 0.000 | Q146: 0.000
B147: 0.000 | C147: 0.000 | D147: 0.000 | E147: 0.024 | F147: 0.000 | G147: 0.000 | H147: 0.000 | I147: 0.000 | J147: 0.000 | K147: 0.000 | L147: 0.000 | M147: 0.000 | N147: 0.000 | O147: 0.000 | P147: 0.000 | Q147: 0.000
B148: 0.000 | C148: 0.000 | D148: 0.000 | E148: 0.000 | F148: 0.024 | G148: 0.000 | H148: 0.000 | I148: 0.000 | J148: 0.000 | K148: 0.000 | L148: 0.000 | M148: 0.000 | N148: 0.000 | O148: 0.000 | P148: 0.000 | Q148: 0.000
B149: 0.000 | C149: 0.000 | D149: 0.000 | E149: 0.000 | F149: 0.000 | G149: 0.024 | H149: 0.000 | I149: 0.000 | J149: 0.000 | K149: 0.000 | L149: 0.000 | M149: 0.000 | N149: 0.000 | O149: 0.000 | P149: 0.000 | Q149: 0.000
B150: 0.000 | C150: 0.000 | D150: 0.000 | E150: 0.000 | F150: 0.000 | G150: 0.000 | H150: 0.024 | I150: 0.000 | J150: 0.000 | K150: 0.000 | L150: 0.000 | M150: 0.000 | N150: 0.000 | O150: 0.000 | P150: 0.000 | Q150: 0.000
B151: 0.000 | C151: 0.000 | D151: 0.000 | E151: 0.000 | F151: 0.000 | G151: 0.000 | H151: 0.000 | I151: 0.024 | J151: 0.000 | K151: 0.000 | L151: 0.000 | M151: 0.000 | N151: 0.000 | O151: 0.000 | P151: 0.000 | Q151: 0.000
B152: 0.000 | C152: 0.000 | D152: 0.000 | E152: 0.000 | F152: 0.000 | G152: 0.000 | H152: 0.000 | I152: 0.000 | J152: 0.024 | K152: 0.000 | L152: 0.000 | M152: 0.000 | N152: 0.000 | O152: 0.000 | P152: 0.000 | Q152: 0.000
B153: 0.000 | C153: 0.000 | D153: 0.000 | E153: 0.000 | F153: 0.000 | G153: 0.000 | H153: 0.000 | I153: 0.000 | J153: 0.000 | K153: 0.024 | L153: 0.000 | M153: 0.000 | N153: 0.000 | O153: 0.000 | P153: 0.000 | Q153: 0.000
B154: 0.000 | C154: 0.000 | D154: 0.000 | E154: 0.000 | F154: 0.000 | G154: 0.000 | H154: 0.000 | I154: 0.000 | J154: 0.000 | K154: 0.000 | L154: 0.024 | M154: 0.000 | N154: 0.000 | O154: 0.000 | P154: 0.000 | Q154: 0.000
B155: 0.000 | C155: 0.000 | D155: 0.000 | E155: 0.000 | F155: 0.000 | G155: 0.000 | H155: 0.000 | I155: 0.000 | J155: 0.000 | K155: 0.000 | L155: 0.000 | M155: 0.024 | N155: 0.000 | O155: 0.000 | P155: 0.000 | Q155: 0.000
B156: 0.000 | C156: 0.000 | D156: 0.000 | E156: 0.000 | F156: 0.000 | G156: 0.000 | H156: 0.000 | I156: 0.000 | J156: 0.000 | K156: 0.000 | L156: 0.000 | M156: 0.000 | N156: 0.024 | O156: 0.000 | P156: 0.000 | Q156: 0.000
B157: 0.000 | C157: 0.000 | D157: 0.000 | E157: 0.000 | F157: 0.000 | G157: 0.000 | H157: 0.000 | I157: 0.000 | J157: 0.000 | K157: 0.000 | L157: 0.000 | M157: 0.000 | N157: 0.000 | O157: 0.024 | P157: 0.000 | Q157: 0.000
B158: 0.000 | C158: 0.000 | D158: 0.000 | E158: 0.000 | F158: 0.000 | G158: 0.000 | H158: 0.000 | I158: 0.000 | J158: 0.000 | K158: 0.000 | L158: 0.000 | M158: 0.000 | N158: 0.000 | O158: 0.000 | P158: 0.024 | Q158: 0.000
B159: 0.000 | C159: 0.000 | D159: 0.000 | E159: 0.000 | F159: 0.000 | G159: 0.000 | H159: 0.000 | I159: 0.000 | J159: 0.000 | K159: 0.000 | L159: 0.000 | M159: 0.000 | N159: 0.000 | O159: 0.000 | P159: 0.000 | Q159: 0.024
B162: Correlation matrix:
B164: 1.000 | C164: 0.000 | D164: 0.000 | E164: 0.000 | F164: 0.000 | G164: 0.000 | H164: 0.000 | I164: 0.000 | J164: 0.000 | K164: 0.000 | L164: 0.000 | M164: 0.000 | N164: 0.000 | O164: 0.000 | P164: 0.000 | Q164: 0.000
B165: 0.000 | C165: 1.000 | D165: 0.000 | E165: 0.000 | F165: 0.000 | G165: 0.000 | H165: 0.000 | I165: 0.000 | J165: 0.000 | K165: 0.000 | L165: 0.000 | M165: 0.000 | N165: 0.000 | O165: 0.000 | P165: 0.000 | Q165: 0.000
B166: 0.000 | C166: 0.000 | D166: 1.000 | E166: 0.000 | F166: 0.000 | G166: 0.000 | H166: 0.000 | I166: 0.000 | J166: 0.000 | K166: 0.000 | L166: 0.000 | M166: 0.000 | N166: 0.000 | O166: 0.000 | P166: 0.000 | Q166: 0.000
B167: 0.000 | C167: 0.000 | D167: 0.000 | E167: 1.000 | F167: 0.000 | G167: 0.000 | H167: 0.000 | I167: 0.000 | J167: 0.000 | K167: 0.000 | L167: 0.000 | M167: 0.000 | N167: 0.000 | O167: 0.000 | P167: 0.000 | Q167: 0.000
B168: 0.000 | C168: 0.000 | D168: 0.000 | E168: 0.000 | F168: 1.000 | G168: 0.000 | H168: 0.000 | I168: 0.000 | J168: 0.000 | K168: 0.000 | L168: 0.000 | M168: 0.000 | N168: 0.000 | O168: 0.000 | P168: 0.000 | Q168: 0.000
B169: 0.000 | C169: 0.000 | D169: 0.000 | E169: 0.000 | F169: 0.000 | G169: 1.000 | H169: 0.000 | I169: 0.000 | J169: 0.000 | K169: 0.000 | L169: 0.000 | M169: 0.000 | N169: 0.000 | O169: 0.000 | P169: 0.000 | Q169: 0.000
B170: 0.000 | C170: 0.000 | D170: 0.000 | E170: 0.000 | F170: 0.000 | G170: 0.000 | H170: 1.000 | I170: 0.000 | J170: 0.000 | K170: 0.000 | L170: 0.000 | M170: 0.000 | N170: 0.000 | O170: 0.000 | P170: 0.000 | Q170: 0.000
B171: 0.000 | C171: 0.000 | D171: 0.000 | E171: 0.000 | F171: 0.000 | G171: 0.000 | H171: 0.000 | I171: 1.000 | J171: 0.000 | K171: 0.000 | L171: 0.000 | M171: 0.000 | N171: 0.000 | O171: 0.000 | P171: 0.000 | Q171: 0.000
B172: 0.000 | C172: 0.000 | D172: 0.000 | E172: 0.000 | F172: 0.000 | G172: 0.000 | H172: 0.000 | I172: 0.000 | J172: 1.000 | K172: 0.000 | L172: 0.000 | M172: 0.000 | N172: 0.000 | O172: 0.000 | P172: 0.000 | Q172: 0.000
B173: 0.000 | C173: 0.000 | D173: 0.000 | E173: 0.000 | F173: 0.000 | G173: 0.000 | H173: 0.000 | I173: 0.000 | J173: 0.000 | K173: 1.000 | L173: 0.000 | M173: 0.000 | N173: 0.000 | O173: 0.000 | P173: 0.000 | Q173: 0.000
B174: 0.000 | C174: 0.000 | D174: 0.000 | E174: 0.000 | F174: 0.000 | G174: 0.000 | H174: 0.000 | I174: 0.000 | J174: 0.000 | K174: 0.000 | L174: 1.000 | M174: 0.000 | N174: 0.000 | O174: 0.000 | P174: 0.000 | Q174: 0.000
B175: 0.000 | C175: 0.000 | D175: 0.000 | E175: 0.000 | F175: 0.000 | G175: 0.000 | H175: 0.000 | I175: 0.000 | J175: 0.000 | K175: 0.000 | L175: 0.000 | M175: 1.000 | N175: 0.000 | O175: 0.000 | P175: 0.000 | Q175: 0.000
B176: 0.000 | C176: 0.000 | D176: 0.000 | E176: 0.000 | F176: 0.000 | G176: 0.000 | H176: 0.000 | I176: 0.000 | J176: 0.000 | K176: 0.000 | L176: 0.000 | M176: 0.000 | N176: 1.000 | O176: 0.000 | P176: 0.000 | Q176: 0.000
B177: 0.000 | C177: 0.000 | D177: 0.000 | E177: 0.000 | F177: 0.000 | G177: 0.000 | H177: 0.000 | I177: 0.000 | J177: 0.000 | K177: 0.000 | L177: 0.000 | M177: 0.000 | N177: 0.000 | O177: 1.000 | P177: 0.000 | Q177: 0.000
B178: 0.000 | C178: 0.000 | D178: 0.000 | E178: 0.000 | F178: 0.000 | G178: 0.000 | H178: 0.000 | I178: 0.000 | J178: 0.000 | K178: 0.000 | L178: 0.000 | M178: 0.000 | N178: 0.000 | O178: 0.000 | P178: 1.000 | Q178: 0.000
B179: 0.000 | C179: 0.000 | D179: 0.000 | E179: 0.000 | F179: 0.000 | G179: 0.000 | H179: 0.000 | I179: 0.000 | J179: 0.000 | K179: 0.000 | L179: 0.000 | M179: 0.000 | N179: 0.000 | O179: 0.000 | P179: 0.000 | Q179: 1.000
B182: Predictions and residuals:
B184: SUM | C184: Subject | D184: Weight | E184: WBA | F184: Pred(WBA) | G184: Std. dev. on pred. (Mean) | H184: DF | I184: alpha | J184: Lower bound 95% (Mean) | K184: Upper bound 95% (Mean) | L184: Residual | M184: Studentized marginal residual | N184: Pearson marginal residual | O184: Raw conditional residual | P184: Studentized conditional residual | Q184: Pearson conditional residual
B185: -0.9737121346 | C185: 1 | D185: 1 | E185: -1.002 | F185: -1.006 | G185: 0.013 | H185: 15 | I185: 0.050 | J185: -1.031 | K185: -0.980 | L185: 0.004 | M185: 0.023 | N185: 0.051 | O185: 0.162 | P185: 2.448 | Q185: 2.225
B186: -0.5966253216 | C186: 1 | D186: 1 | E186: -0.823 | F186: -0.844 | G186: 0.013 | H186: 15 | I186: 0.050 | J186: -0.869 | K186: -0.818 | L186: 0.020 | M186: 0.124 | N186: 0.282 | O186: 0.117 | P186: 1.618 | Q186: 1.614
B187: -0.5400279636 | C187: 1 | D187: 1 | E187: -0.917 | F187: -0.819 | G187: 0.013 | H187: 15 | I187: 0.050 | J187: -0.845 | K187: -0.794 | L187: -0.097 | M187: -0.590 | N187: -1.337 | O187: -0.010 | P187: -0.121 | Q187: -0.132
B188: -0.4586706584 | C188: 1 | D188: 1 | E188: -0.745 | F188: -0.784 | G188: 0.013 | H188: 15 | I188: 0.050 | J188: -0.810 | K188: -0.759 | L188: 0.039 | M188: 0.238 | N188: 0.541 | O188: 0.114 | P188: 1.261 | Q188: 1.565
B189: -0.1384856611 | C189: 1 | D189: 1 | E189: -0.774 | F189: -0.647 | G189: 0.013 | H189: 15 | I189: 0.050 | J189: -0.672 | K189: -0.621 | L189: -0.128 | M189: -0.769 | N189: -1.757 | O189: -0.105 | P189: -0.743 | Q189: -1.447
B190: -0.8638118567 | C190: 2 | D190: 1 | E190: -0.888 | F190: -0.864 | G190: 0.013 | H190: 15 | I190: 0.050 | J190: -0.890 | K190: -0.838 | L190: -0.024 | M190: -0.149 | N190: -0.333 | O190: 0.021 | P190: 0.324 | Q190: 0.295
B191: -0.7560761177 | C191: 2 | D191: 1 | E191: -0.824 | F191: -0.830 | G191: 0.013 | H191: 15 | I191: 0.050 | J191: -0.855 | K191: -0.804 | L191: 0.006 | M191: 0.035 | N191: 0.078 | O191: 0.046 | P191: 0.601 | Q191: 0.628
B192: -0.7408018642 | C192: 2 | D192: 1 | E192: -0.821 | F192: -0.825 | G192: 0.013 | H192: 15 | I192: 0.050 | J192: -0.850 | K192: -0.799 | L192: 0.003 | M192: 0.020 | N192: 0.045 | O192: 0.042 | P192: 0.548 | Q192: 0.584
B193: -0.4304756375 | C193: 2 | D193: 1 | E193: -0.758 | F193: -0.725 | G193: 0.013 | H193: 15 | I193: 0.050 | J193: -0.751 | K193: -0.700 | L193: -0.032 | M193: -0.196 | N193: -0.447 | O193: -0.010 | P193: -0.087 | Q193: -0.133
B194: -0.3744421208 | C194: 2 | D194: 1 | E194: -0.888 | F194: -0.707 | G194: 0.013 | H194: 15 | I194: 0.050 | J194: -0.733 | K194: -0.682 | L194: -0.181 | M194: -1.094 | N194: -2.491 | O194: -0.161 | P194: -1.356 | Q194: -2.219
B195: 0.5551967736 | C195: 2 | D195: 1 | E195: -0.561 | F195: -0.409 | G195: 0.013 | H195: 15 | I195: 0.050 | J195: -0.435 | K195: -0.384 | L195: -0.152 | M195: -0.928 | N195: -2.086 | O195: -0.181 | P195: -0.759 | Q195: -2.490
B196: -0.7958519685 | C196: 3 | D196: 1 | E196: -0.865 | F196: -0.870 | G196: 0.013 | H196: 15 | I196: 0.050 | J196: -0.896 | K196: -0.845 | L196: 0.006 | M196: 0.036 | N196: 0.082 | O196: 0.076 | P196: 1.113 | Q196: 1.049
B197: -0.6341378376 | C197: 3 | D197: 1 | E197: -0.903 | F197: -0.813 | G197: 0.013 | H197: 15 | I197: 0.050 | J197: -0.839 | K197: -0.787 | L197: -0.090 | M197: -0.549 | N197: -1.242 | O197: -0.034 | P197: -0.392 | Q197: -0.472
B198: -0.4814457537 | C198: 3 | D198: 1 | E198: -0.824 | F198: -0.759 | G198: 0.013 | H198: 15 | I198: 0.050 | J198: -0.784 | K198: -0.733 | L198: -0.066 | M198: -0.398 | N198: -0.905 | O198: -0.023 | P198: -0.220 | Q198: -0.320
B199: -0.4020740319 | C199: 3 | D199: 1 | E199: -0.709 | F199: -0.730 | G199: 0.013 | H199: 15 | I199: 0.050 | J199: -0.756 | K199: -0.705 | L199: 0.022 | M199: 0.130 | N199: 0.297 | O199: 0.057 | P199: 0.493 | Q199: 0.785
B200: 0.1568266518 | C200: 3 | D200: 1 | E200: -0.567 | F200: -0.531 | G200: 0.013 | H200: 15 | I200: 0.050 | J200: -0.557 | K200: -0.506 | L200: -0.035 | M200: -0.212 | N200: -0.484 | O200: -0.049 | P200: -0.264 | Q200: -0.674
B201: 0.419488596 | C201: 3 | D201: 1 | E201: -0.558 | F201: -0.438 | G201: 0.013 | H201: 15 | I201: 0.050 | J201: -0.464 | K201: -0.412 | L201: -0.120 | M201: -0.729 | N201: -1.648 | O201: -0.157 | P201: -0.717 | Q201: -2.158
B202: -0.8083184956 | C202: 4 | D202: 1 | E202: -1.014 | F202: -0.991 | G202: 0.013 | H202: 15 | I202: 0.050 | J202: -1.017 | K202: -0.966 | L202: -0.023 | M202: -0.142 | N202: -0.318 | O202: 0.165 | P202: 2.809 | Q202: 2.264
B203: -0.7866095085 | C203: 4 | D203: 1 | E203: -0.955 | F203: -0.980 | G203: 0.013 | H203: 15 | I203: 0.050 | J203: -1.006 | K203: -0.955 | L203: 0.025 | M203: 0.153 | N203: 0.343 | O203: 0.208 | P203: 3.500 | Q203: 2.856
B204: -0.68050856 | C204: 4 | D204: 1 | E204: -0.992 | F204: -0.927 | G204: 0.013 | H204: 15 | I204: 0.050 | J204: -0.953 | K204: -0.902 | L204: -0.064 | M204: -0.392 | N204: -0.884 | O204: 0.094 | P204: 1.417 | Q204: 1.290
B205: -0.3281074498 | C205: 4 | D205: 1 | E205: -0.784 | F205: -0.751 | G205: 0.013 | H205: 15 | I205: 0.050 | J205: -0.777 | K205: -0.726 | L205: -0.032 | M205: -0.196 | N205: -0.446 | O205: 0.044 | P205: 0.391 | Q205: 0.602
B206: -0.02174403462 | C206: 4 | D206: 1 | E206: -0.529 | F206: -0.598 | G206: 0.013 | H206: 15 | I206: 0.050 | J206: -0.624 | K206: -0.572 | L206: 0.070 | M206: 0.420 | N206: 0.958 | O206: 0.075 | P206: 0.461 | Q206: 1.028
B207: -0.7253504358 | C207: 5 | D207: 1 | E207: -0.893 | F207: -0.865 | G207: 0.013 | H207: 15 | I207: 0.050 | J207: -0.891 | K207: -0.840 | L207: -0.028 | M207: -0.172 | N207: -0.387 | O207: 0.056 | P207: 0.986 | Q207: 0.768
B208: -0.5477436286 | C208: 5 | D208: 1 | E208: -0.788 | F208: -0.797 | G208: 0.013 | H208: 15 | I208: 0.050 | J208: -0.823 | K208: -0.772 | L208: 0.010 | M208: 0.059 | N208: 0.134 | O208: 0.073 | P208: 0.868 | Q208: 1.006
B209: -0.1816595259 | C209: 5 | D209: 1 | E209: -0.666 | F209: -0.657 | G209: 0.013 | H209: 15 | I209: 0.050 | J209: -0.683 | K209: -0.631 | L209: -0.009 | M209: -0.057 | N209: -0.129 | O209: 0.012 | P209: 0.084 | Q209: 0.160
B210: 0.2131105405 | C210: 5 | D210: 1 | E210: -0.463 | F210: -0.506 | G210: 0.013 | H210: 15 | I210: 0.050 | J210: -0.531 | K210: -0.480 | L210: 0.043 | M210: 0.258 | N210: 0.587 | O210: 0.018 | P210: 0.091 | Q210: 0.248
B211: -0.9698398431 | C211: 6 | D211: 1 | E211: -0.900 | F211: -0.893 | G211: 0.013 | H211: 15 | I211: 0.050 | J211: -0.918 | K211: -0.867 | L211: -0.007 | M211: -0.044 | N211: -0.098 | O211: 0.039 | P211: 0.653 | Q211: 0.535
B212: -0.803803142 | C212: 6 | D212: 1 | E212: -0.891 | F212: -0.840 | G212: 0.013 | H212: 15 | I212: 0.050 | J212: -0.866 | K212: -0.815 | L212: -0.051 | M212: -0.312 | N212: -0.700 | O212: -0.013 | P212: -0.202 | Q212: -0.176
B213: -0.7398938153 | C213: 6 | D213: 1 | E213: -0.761 | F213: -0.820 | G213: 0.013 | H213: 15 | I213: 0.050 | J213: -0.846 | K213: -0.795 | L213: 0.059 | M213: 0.361 | N213: 0.813 | O213: 0.094 | P213: 1.390 | Q213: 1.296
B214: -0.5534665209 | C214: 6 | D214: 1 | E214: -0.773 | F214: -0.762 | G214: 0.013 | H214: 15 | I214: 0.050 | J214: -0.787 | K214: -0.736 | L214: -0.012 | M214: -0.071 | N214: -0.162 | O214: 0.014 | P214: 0.167 | Q214: 0.199
B215: -0.7911540816 | C215: 7 | D215: 1 | E215: -0.850 | F215: -0.825 | G215: 0.013 | H215: 15 | I215: 0.050 | J215: -0.851 | K215: -0.800 | L215: -0.024 | M215: -0.150 | N215: -0.337 | O215: 0.002 | P215: 0.021 | Q215: 0.028
B216: -0.4487317846 | C216: 7 | D216: 1 | E216: -0.731 | F216: -0.722 | G216: 0.013 | H216: 15 | I216: 0.050 | J216: -0.748 | K216: -0.697 | L216: -0.009 | M216: -0.053 | N216: -0.121 | O216: 0.006 | P216: 0.049 | Q216: 0.085
B217: -0.3762020296 | C217: 7 | D217: 1 | E217: -0.810 | F217: -0.701 | G217: 0.013 | H217: 15 | I217: 0.050 | J217: -0.726 | K217: -0.675 | L217: -0.109 | M217: -0.659 | N217: -1.501 | O217: -0.096 | P217: -0.718 | Q217: -1.328
B218: 0.2612128024 | C218: 7 | D218: 1 | E218: -0.644 | F218: -0.509 | G218: 0.013 | H218: 15 | I218: 0.050 | J218: -0.534 | K218: -0.483 | L218: -0.135 | M218: -0.817 | N218: -1.856 | O218: -0.144 | P218: -0.771 | Q218: -1.977
B219: 0.4674815114 | C219: 7 | D219: 1 | E219: -0.493 | F219: -0.447 | G219: 0.013 | H219: 15 | I219: 0.050 | J219: -0.472 | K219: -0.421 | L219: -0.046 | M219: -0.282 | N219: -0.637 | O219: -0.062 | P219: -0.307 | Q219: -0.853
B220: -0.965520928 | C220: 8 | D220: 1 | E220: -0.804 | F220: -0.781 | G220: 0.013 | H220: 15 | I220: 0.050 | J220: -0.807 | K220: -0.756 | L220: -0.022 | M220: -0.139 | N220: -0.309 | O220: -0.087 | P220: -1.393 | Q220: -1.196
B221: -0.7957096865 | C221: 8 | D221: 1 | E221: -0.736 | F221: -0.747 | G221: 0.013 | H221: 15 | I221: 0.050 | J221: -0.773 | K221: -0.721 | L221: 0.011 | M221: 0.068 | N221: 0.153 | O221: -0.042 | P221: -0.661 | Q221: -0.578
B222: -0.7440170428 | C222: 8 | D222: 1 | E222: -0.715 | F222: -0.737 | G222: 0.013 | H222: 15 | I222: 0.050 | J222: -0.762 | K222: -0.711 | L222: 0.021 | M222: 0.131 | N222: 0.295 | O222: -0.028 | P222: -0.425 | Q222: -0.388
B223: -0.6441638949 | C223: 8 | D223: 1 | E223: -0.717 | F223: -0.717 | G223: 0.013 | H223: 15 | I223: 0.050 | J223: -0.742 | K223: -0.691 | L223: -0.001 | M223: -0.003 | N223: -0.008 | O223: -0.044 | P223: -0.581 | Q223: -0.599
B224: -0.1897174114 | C224: 8 | D224: 1 | E224: -0.561 | F224: -0.625 | G224: 0.013 | H224: 15 | I224: 0.050 | J224: -0.651 | K224: -0.600 | L224: 0.064 | M224: 0.388 | N224: 0.886 | O224: 0.052 | P224: 0.380 | Q224: 0.712
B225: -0.936272074 | C225: 9 | D225: 1 | E225: -1.035 | F225: -1.045 | G225: 0.013 | H225: 15 | I225: 0.050 | J225: -1.071 | K225: -1.020 | L225: 0.010 | M225: 0.064 | N225: 0.143 | O225: 0.218 | P225: 3.708 | Q225: 3.001
B226: -0.8464572635 | C226: 9 | D226: 1 | E226: -1.136 | F226: -1.002 | G226: 0.013 | H226: 15 | I226: 0.050 | J226: -1.027 | K226: -0.976 | L226: -0.134 | M226: -0.825 | N226: -1.847 | O226: 0.054 | P226: 0.861 | Q226: 0.737
B227: -0.6885196372 | C227: 9 | D227: 1 | E227: -0.831 | F227: -0.924 | G227: 0.013 | H227: 15 | I227: 0.050 | J227: -0.950 | K227: -0.899 | L227: 0.094 | M227: 0.570 | N227: 1.287 | O227: 0.246 | P227: 3.300 | Q227: 3.389
B228: -0.6543444069 | C228: 9 | D228: 1 | E228: -0.935 | F228: -0.908 | G228: 0.013 | H228: 15 | I228: 0.050 | J228: -0.933 | K228: -0.882 | L228: -0.027 | M228: -0.166 | N228: -0.374 | O228: 0.118 | P228: 1.511 | Q228: 1.624
B229: 0.1105457718 | C229: 9 | D229: 1 | E229: -0.603 | F229: -0.533 | G229: 0.013 | H229: 15 | I229: 0.050 | J229: -0.559 | K229: -0.508 | L229: -0.070 | M229: -0.421 | N229: -0.960 | O229: -0.094 | P229: -0.517 | Q229: -1.298
B230: -1.118485953 | C230: 10 | D230: 1 | E230: -0.716 | F230: -0.716 | G230: 0.013 | H230: 15 | I230: 0.050 | J230: -0.742 | K230: -0.690 | L230: 0.000 | M230: 0.002 | N230: 0.004 | O230: -0.170 | P230: -2.790 | Q230: -2.344
B231: -0.9568410758 | C231: 10 | D231: 1 | E231: -0.688 | F231: -0.697 | G231: 0.013 | H231: 15 | I231: 0.050 | J231: -0.723 | K231: -0.672 | L231: 0.009 | M231: 0.056 | N231: 0.124 | O231: -0.137 | P231: -1.866 | Q231: -1.884
B232: -0.7788540308 | C232: 10 | D232: 1 | E232: -0.614 | F232: -0.677 | G232: 0.013 | H232: 15 | I232: 0.050 | J232: -0.703 | K232: -0.651 | L232: 0.063 | M232: 0.387 | N232: 0.869 | O232: -0.056 | P232: -0.626 | Q232: -0.766
B233: -0.5331423955 | C233: 10 | D233: 1 | E233: -0.608 | F233: -0.649 | G233: 0.013 | H233: 15 | I233: 0.050 | J233: -0.674 | K233: -0.623 | L233: 0.041 | M233: 0.246 | N233: 0.559 | O233: -0.041 | P233: -0.363 | Q233: -0.560
B234: 0.1907620495 | C234: 10 | D234: 1 | E234: -0.480 | F234: -0.565 | G234: 0.013 | H234: 15 | I234: 0.050 | J234: -0.591 | K234: -0.540 | L234: 0.086 | M234: 0.517 | N234: 1.177 | O234: 0.115 | P234: 0.618 | Q234: 1.578
B235: 0.4732953785 | C235: 10 | D235: 1 | E235: -0.471 | F235: -0.533 | G235: 0.013 | H235: 15 | I235: 0.050 | J235: -0.559 | K235: -0.507 | L235: 0.062 | M235: 0.379 | N235: 0.854 | O235: 0.134 | P235: 0.624 | Q235: 1.847
B236: -0.7728725011 | C236: 11 | D236: 1 | E236: -0.813 | F236: -0.810 | G236: 0.013 | H236: 15 | I236: 0.050 | J236: -0.835 | K236: -0.784 | L236: -0.004 | M236: -0.023 | N236: -0.052 | O236: 0.012 | P236: 0.198 | Q236: 0.163
B237: -0.7318975995 | C237: 11 | D237: 1 | E237: -0.783 | F237: -0.798 | G237: 0.013 | H237: 15 | I237: 0.050 | J237: -0.824 | K237: -0.772 | L237: 0.015 | M237: 0.091 | N237: 0.206 | O237: 0.030 | P237: 0.482 | Q237: 0.410
B238: -0.7133488233 | C238: 11 | D238: 1 | E238: -0.816 | F238: -0.793 | G238: 0.013 | H238: 15 | I238: 0.050 | J238: -0.818 | K238: -0.767 | L238: -0.023 | M238: -0.142 | N238: -0.319 | O238: -0.009 | P238: -0.139 | Q238: -0.121
B239: -0.4445559399 | C239: 11 | D239: 1 | E239: -0.706 | F239: -0.715 | G239: 0.013 | H239: 15 | I239: 0.050 | J239: -0.741 | K239: -0.690 | L239: 0.009 | M239: 0.054 | N239: 0.124 | O239: 0.018 | P239: 0.192 | Q239: 0.247
B240: -0.6856703938 | C240: 12 | D240: 1 | E240: -0.660 | F240: -0.662 | G240: 0.013 | H240: 15 | I240: 0.050 | J240: -0.688 | K240: -0.637 | L240: 0.003 | M240: 0.016 | N240: 0.037 | O240: -0.106 | P240: -2.049 | Q240: -1.456
B241: -0.4345071439 | C241: 12 | D241: 1 | E241: -0.626 | F241: -0.635 | G241: 0.013 | H241: 15 | I241: 0.050 | J241: -0.660 | K241: -0.609 | L241: 0.009 | M241: 0.052 | N241: 0.118 | O241: -0.060 | P241: -0.767 | Q241: -0.828
B242: -0.3542668272 | C242: 12 | D242: 1 | E242: -0.577 | F242: -0.626 | G242: 0.013 | H242: 15 | I242: 0.050 | J242: -0.652 | K242: -0.600 | L242: 0.049 | M242: 0.297 | N242: 0.677 | O242: -0.007 | P242: -0.074 | Q242: -0.094
B243: -0.2464189241 | C243: 12 | D243: 1 | E243: -0.564 | F243: -0.614 | G243: 0.013 | H243: 15 | I243: 0.050 | J243: -0.640 | K243: -0.589 | L243: 0.050 | M243: 0.303 | N243: 0.691 | O243: 0.011 | P243: 0.099 | Q243: 0.155
B244: -0.7715135112 | C244: 13 | D244: 1 | E244: -0.697 | F244: -0.662 | G244: 0.013 | H244: 15 | I244: 0.050 | J244: -0.688 | K244: -0.637 | L244: -0.035 | M244: -0.213 | N244: -0.478 | O244: -0.166 | P244: -3.177 | Q244: -2.285
B245: -0.4731984636 | C245: 13 | D245: 1 | E245: -0.566 | F245: -0.633 | G245: 0.013 | H245: 15 | I245: 0.050 | J245: -0.659 | K245: -0.608 | L245: 0.067 | M245: 0.407 | N245: 0.925 | O245: -0.013 | P245: -0.164 | Q245: -0.183
B246: -0.4349527549 | C246: 13 | D246: 1 | E246: -0.596 | F246: -0.630 | G246: 0.013 | H246: 15 | I246: 0.050 | J246: -0.655 | K246: -0.604 | L246: 0.034 | M246: 0.205 | N246: 0.467 | O246: -0.040 | P246: -0.460 | Q246: -0.552
B247: -0.3133829835 | C247: 13 | D247: 1 | E247: -0.533 | F247: -0.618 | G247: 0.013 | H247: 15 | I247: 0.050 | J247: -0.643 | K247: -0.592 | L247: 0.085 | M247: 0.510 | N247: 1.163 | O247: 0.031 | P247: 0.289 | Q247: 0.429
B248: 0.08302084309 | C248: 13 | D248: 1 | E248: -0.480 | F248: -0.579 | G248: 0.013 | H248: 15 | I248: 0.050 | J248: -0.605 | K248: -0.554 | L248: 0.099 | M248: 0.598 | N248: 1.363 | O248: 0.113 | P248: 0.622 | Q248: 1.557
B249: -0.7748037332 | C249: 14 | D249: 1 | E249: -0.734 | F249: -0.756 | G249: 0.013 | H249: 15 | I249: 0.050 | J249: -0.781 | K249: -0.730 | L249: 0.022 | M249: 0.134 | N249: 0.302 | O249: -0.017 | P249: -0.280 | Q249: -0.233
... 14 more rows

Sheet Mixed Model RBT BDQ incorrect
B1: XLSTAT 2014.2.02 - Mixed Models - on 4/12/2014 at 11:34:52 AM
B2: Y / Quantitative: Workbook = WBA PK analysis.xlsx / Sheet = Period 2 RBT / Range = 'Period 2 RBT'!$L:$L / 128 rows and 1 column
B3: X / Quantitative: Workbook = WBA PK analysis.xlsx / Sheet = Period 2 RBT / Range = 'Period 2 RBT'!$K:$K / 128 rows and 1 column
B4: X / Qualitative: Workbook = WBA PK analysis.xlsx / Sheet = Period 2 RBT / Range = 'Period 2 RBT'!$M:$M / 128 rows and 1 column
B5: Number of removed observations: 49
B6: Repeated measures:
B7: Covariance structure: Variance components
B8: Random effects:
B9: Covariance structure: Variance components
B10: Constraints: a1=0
B11: Confidence interval (%): 95
B15: Summary statistics:
B17: Variable | C17: Observations | D17: Obs. with missing data | E17: Obs. without missing data | F17: Minimum | G17: Maximum | H17: Mean | I17: Std. deviation
B18: WBA | C18: 79 | D18: 0 | E18: 79 | F18: -1.136 | G18: -0.373 | H18: -0.716 | I18: 0.158
B19: SUM | C19: 79 | D19: 0 | E19: 79 | F19: -3.262 | G19: -0.319 | H19: -2.035 | I19: 0.735
B22: Variable | C22: Categories | D22: Frequencies | E22: %
B23: Subject | C23: 10011004 | D23: 5 | E23: 6.329
C24: 10011016 | D24: 6 | E24: 7.595
C25: 10011018 | D25: 6 | E25: 7.595
C26: 10011022 | D26: 5 | E26: 6.329
C27: 10011024 | D27: 4 | E27: 5.063
C28: 10011027 | D28: 4 | E28: 5.063
C29: 10011028 | D29: 5 | E29: 6.329
C30: 10011030 | D30: 5 | E30: 6.329
C31: 10011032 | D31: 5 | E31: 6.329
C32: 10011035 | D32: 6 | E32: 7.595
C33: 10011036 | D33: 4 | E33: 5.063
C34: 10011038 | D34: 4 | E34: 5.063
C35: 10011041 | D35: 5 | E35: 6.329
C36: 10011043 | D36: 5 | E36: 6.329
C37: 10011045 | D37: 5 | E37: 6.329
C38: 10011049 | D38: 5 | E38: 6.329
B41: Regression of variable WBA:
B43: Goodness of fit statistics:
B45: Observations | C45: 79
B46: Sum of weights | C46: 79
B47: -2 Res Log(Likelihood) | C47: -211.210
B48: AIC | C48: -207.210
B49: AICC | C49: -207.052
B50: SBC | C50: -202.471
B51: CAIC | C51: -200.471
B52: Iterations | C52: 6
B53: Covariance parameters | C53: 2
B54: Number of fixed effects | C54: 1
B55: Number of random effects | C55: 1
B56: Number of subjects | C56: 16
B57: Maximum number of observations per subject | C57: 5
B60: Covariance parameters - Random effects:
C62: Parameters | D62: Standard error | E62: Z | F62: Pr > Z
B63: Variance | C63: 0.003 | D63: 0.001 | E63: 2.655 | F63: 0.004
B66: Covariance parameters - Repeated factor:
C68: Parameters | D68: Standard error | E68: Z | F68: Pr > Z
B69: Variance | C69: 0.002 | D69: 0.000 | E69: 5.568 | F69: < 0.0001
B72: Null model likelihood ratio test:
B74: DF | C74: Chi-square | D74: Pr > Chi²
B75: 1 | C75: 84.892 | D75: < 0.0001
B78: Type I tests of fixed effects:
B80: Effects | C80: Num DF | D80: Den DF | E80: F | F80: Pr > F
B81: SUM | C81: 1 | D81: 15 | E81: 112.251 | F81: < 0.0001
B84: Type II tests of fixed effects:
B86: Effects | C86: Num DF | D86: Den DF | E86: F | F86: Pr > F
B87: SUM | C87: 1 | D87: 15 | E87: 112.251 | F87: < 0.0001
B90: Type III tests of fixed effects:
B92: Effects | C92: Num DF | D92: Den DF | E92: F | F92: Pr > F
B93: SUM | C93: 1 | D93: 15 | E93: 112.251 | F93: < 0.0001
B96: Model parameters:
B98: Source | C98: Value | D98: Standard error | E98: t | F98: Pr > |t| | G98: Lower bound (95%) | H98: Upper bound (95%)
B99: Intercept | C99: -0.406 | D99: 0.014 | E99: -28.249 | F99: < 0.0001 | G99: -0.435 | H99: -0.378
B100: SUM | C100: 0.152 | D100: 0.014 | E100: 10.595 | F100: < 0.0001 | G100: 0.124 | H100: 0.181
B103: Random effects coefficients:
B105: Source | C105: Value | D105: Standard error | E105: DF | F105: t | G105: Pr > |t| | H105: Lower bound (95%) | I105: Upper bound (95%)
B106: SUM*Subject-10011004 | C106: 0.057 | D106: 0.015 | E106: 15 | F106: 3.790 | G106: 0.002 | H106: 0.027 | I106: 0.087
B107: SUM*Subject-10011016 | C107: 0.027 | D107: 0.015 | E107: 15 | F107: 1.861 | G107: 0.082 | H107: -0.002 | I107: 0.056
B108: SUM*Subject-10011018 | C108: 0.036 | D108: 0.015 | E108: 15 | F108: 2.324 | G108: 0.035 | H108: 0.005 | I108: 0.066
B109: SUM*Subject-10011022 | C109: 0.065 | D109: 0.015 | E109: 15 | F109: 4.305 | G109: 0.001 | H109: 0.035 | I109: 0.094
B110: SUM*Subject-10011024 | C110: 0.048 | D110: 0.017 | E110: 15 | F110: 2.769 | G110: 0.014 | H110: 0.013 | I110: 0.082
B111: SUM*Subject-10011027 | C111: 0.010 | D111: 0.015 | E111: 15 | F111: 0.709 | G111: 0.489 | H111: -0.019 | I111: 0.040
B112: SUM*Subject-10011028 | C112: 0.027 | D112: 0.016 | E112: 15 | F112: 1.705 | G112: 0.109 | H112: -0.005 | I112: 0.059
B113: SUM*Subject-10011030 | C113: -0.030 | D113: 0.015 | E113: 15 | F113: -2.032 | G113: 0.060 | H113: -0.058 | I113: -0.001
B114: SUM*Subject-10011032 | C114: 0.069 | D114: 0.015 | E114: 15 | F114: 4.678 | G114: 0.000 | H114: 0.040 | I114: 0.098
B115: SUM*Subject-10011035 | C115: -0.058 | D115: 0.015 | E115: 15 | F115: -4.003 | G115: 0.001 | H115: -0.087 | I115: -0.029
B116: SUM*Subject-10011036 | C116: 0.005 | D116: 0.015 | E116: 15 | F116: 0.339 | G116: 0.739 | H116: -0.025 | I116: 0.035
B117: SUM*Subject-10011038 | C117: -0.045 | D117: 0.016 | E117: 15 | F117: -2.816 | G117: 0.013 | H117: -0.078 | I117: -0.013
B118: SUM*Subject-10011041 | C118: -0.053 | D118: 0.016 | E118: 15 | F118: -3.378 | G118: 0.004 | H118: -0.084 | I118: -0.022
B119: SUM*Subject-10011043 | C119: -0.012 | D119: 0.015 | E119: 15 | F119: -0.804 | G119: 0.434 | H119: -0.042 | I119: 0.018
B120: SUM*Subject-10011045 | C120: -0.077 | D120: 0.015 | E120: 15 | F120: -5.036 | G120: 0.000 | H120: -0.108 | I120: -0.047
B121: SUM*Subject-10011049 | C121: -0.068 | D121: 0.015 | E121: 15 | F121: -4.529 | G121: 0.000 | H121: -0.098 | I121: -0.038
B124: R matrix:
B126: 0.002 | C126: 0.000 | D126: 0.000 | E126: 0.000 | F126: 0.000
B127: 0.000 | C127: 0.002 | D127: 0.000 | E127: 0.000 | F127: 0.000
B128: 0.000 | C128: 0.000 | D128: 0.002 | E128: 0.000 | F128: 0.000
B129: 0.000 | C129: 0.000 | D129: 0.000 | E129: 0.002 | F129: 0.000
B130: 0.000 | C130: 0.000 | D130: 0.000 | E130: 0.000 | F130: 0.002
B133: Correlation matrix:
B135: 1.000 | C135: 0.000 | D135: 0.000 | E135: 0.000 | F135: 0.000
B136: 0.000 | C136: 1.000 | D136: 0.000 | E136: 0.000 | F136: 0.000
B137: 0.000 | C137: 0.000 | D137: 1.000 | E137: 0.000 | F137: 0.000
B138: 0.000 | C138: 0.000 | D138: 0.000 | E138: 1.000 | F138: 0.000
B139: 0.000 | C139: 0.000 | D139: 0.000 | E139: 0.000 | F139: 1.000
B142: G matrix:
B144: 0.003 | C144: 0.000 | D144: 0.000 | E144: 0.000 | F144: 0.000 | G144: 0.000 | H144: 0.000 | I144: 0.000 | J144: 0.000 | K144: 0.000 | L144: 0.000 | M144: 0.000 | N144: 0.000 | O144: 0.000 | P144: 0.000 | Q144: 0.000
B145: 0.000 | C145: 0.003 | D145: 0.000 | E145: 0.000 | F145: 0.000 | G145: 0.000 | H145: 0.000 | I145: 0.000 | J145: 0.000 | K145: 0.000 | L145: 0.000 | M145: 0.000 | N145: 0.000 | O145: 0.000 | P145: 0.000 | Q145: 0.000
B146: 0.000 | C146: 0.000 | D146: 0.003 | E146: 0.000 | F146: 0.000 | G146: 0.000 | H146: 0.000 | I146: 0.000 | J146: 0.000 | K146: 0.000 | L146: 0.000 | M146: 0.000 | N146: 0.000 | O146: 0.000 | P146: 0.000 | Q146: 0.000
B147: 0.000 | C147: 0.000 | D147: 0.000 | E147: 0.003 | F147: 0.000 | G147: 0.000 | H147: 0.000 | I147: 0.000 | J147: 0.000 | K147: 0.000 | L147: 0.000 | M147: 0.000 | N147: 0.000 | O147: 0.000 | P147: 0.000 | Q147: 0.000
B148: 0.000 | C148: 0.000 | D148: 0.000 | E148: 0.000 | F148: 0.003 | G148: 0.000 | H148: 0.000 | I148: 0.000 | J148: 0.000 | K148: 0.000 | L148: 0.000 | M148: 0.000 | N148: 0.000 | O148: 0.000 | P148: 0.000 | Q148: 0.000
B149: 0.000 | C149: 0.000 | D149: 0.000 | E149: 0.000 | F149: 0.000 | G149: 0.003 | H149: 0.000 | I149: 0.000 | J149: 0.000 | K149: 0.000 | L149: 0.000 | M149: 0.000 | N149: 0.000 | O149: 0.000 | P149: 0.000 | Q149: 0.000
B150: 0.000 | C150: 0.000 | D150: 0.000 | E150: 0.000 | F150: 0.000 | G150: 0.000 | H150: 0.003 | I150: 0.000 | J150: 0.000 | K150: 0.000 | L150: 0.000 | M150: 0.000 | N150: 0.000 | O150: 0.000 | P150: 0.000 | Q150: 0.000
B151: 0.000 | C151: 0.000 | D151: 0.000 | E151: 0.000 | F151: 0.000 | G151: 0.000 | H151: 0.000 | I151: 0.003 | J151: 0.000 | K151: 0.000 | L151: 0.000 | M151: 0.000 | N151: 0.000 | O151: 0.000 | P151: 0.000 | Q151: 0.000
B152: 0.000 | C152: 0.000 | D152: 0.000 | E152: 0.000 | F152: 0.000 | G152: 0.000 | H152: 0.000 | I152: 0.000 | J152: 0.003 | K152: 0.000 | L152: 0.000 | M152: 0.000 | N152: 0.000 | O152: 0.000 | P152: 0.000 | Q152: 0.000
B153: 0.000 | C153: 0.000 | D153: 0.000 | E153: 0.000 | F153: 0.000 | G153: 0.000 | H153: 0.000 | I153: 0.000 | J153: 0.000 | K153: 0.003 | L153: 0.000 | M153: 0.000 | N153: 0.000 | O153: 0.000 | P153: 0.000 | Q153: 0.000
B154: 0.000 | C154: 0.000 | D154: 0.000 | E154: 0.000 | F154: 0.000 | G154: 0.000 | H154: 0.000 | I154: 0.000 | J154: 0.000 | K154: 0.000 | L154: 0.003 | M154: 0.000 | N154: 0.000 | O154: 0.000 | P154: 0.000 | Q154: 0.000
B155: 0.000 | C155: 0.000 | D155: 0.000 | E155: 0.000 | F155: 0.000 | G155: 0.000 | H155: 0.000 | I155: 0.000 | J155: 0.000 | K155: 0.000 | L155: 0.000 | M155: 0.003 | N155: 0.000 | O155: 0.000 | P155: 0.000 | Q155: 0.000
B156: 0.000 | C156: 0.000 | D156: 0.000 | E156: 0.000 | F156: 0.000 | G156: 0.000 | H156: 0.000 | I156: 0.000 | J156: 0.000 | K156: 0.000 | L156: 0.000 | M156: 0.000 | N156: 0.003 | O156: 0.000 | P156: 0.000 | Q156: 0.000
B157: 0.000 | C157: 0.000 | D157: 0.000 | E157: 0.000 | F157: 0.000 | G157: 0.000 | H157: 0.000 | I157: 0.000 | J157: 0.000 | K157: 0.000 | L157: 0.000 | M157: 0.000 | N157: 0.000 | O157: 0.003 | P157: 0.000 | Q157: 0.000
B158: 0.000 | C158: 0.000 | D158: 0.000 | E158: 0.000 | F158: 0.000 | G158: 0.000 | H158: 0.000 | I158: 0.000 | J158: 0.000 | K158: 0.000 | L158: 0.000 | M158: 0.000 | N158: 0.000 | O158: 0.000 | P158: 0.003 | Q158: 0.000
B159: 0.000 | C159: 0.000 | D159: 0.000 | E159: 0.000 | F159: 0.000 | G159: 0.000 | H159: 0.000 | I159: 0.000 | J159: 0.000 | K159: 0.000 | L159: 0.000 | M159: 0.000 | N159: 0.000 | O159: 0.000 | P159: 0.000 | Q159: 0.003
B162: Correlation matrix:
B164: 1.000 | C164: 0.000 | D164: 0.000 | E164: 0.000 | F164: 0.000 | G164: 0.000 | H164: 0.000 | I164: 0.000 | J164: 0.000 | K164: 0.000 | L164: 0.000 | M164: 0.000 | N164: 0.000 | O164: 0.000 | P164: 0.000 | Q164: 0.000
B165: 0.000 | C165: 1.000 | D165: 0.000 | E165: 0.000 | F165: 0.000 | G165: 0.000 | H165: 0.000 | I165: 0.000 | J165: 0.000 | K165: 0.000 | L165: 0.000 | M165: 0.000 | N165: 0.000 | O165: 0.000 | P165: 0.000 | Q165: 0.000
B166: 0.000 | C166: 0.000 | D166: 1.000 | E166: 0.000 | F166: 0.000 | G166: 0.000 | H166: 0.000 | I166: 0.000 | J166: 0.000 | K166: 0.000 | L166: 0.000 | M166: 0.000 | N166: 0.000 | O166: 0.000 | P166: 0.000 | Q166: 0.000
B167: 0.000 | C167: 0.000 | D167: 0.000 | E167: 1.000 | F167: 0.000 | G167: 0.000 | H167: 0.000 | I167: 0.000 | J167: 0.000 | K167: 0.000 | L167: 0.000 | M167: 0.000 | N167: 0.000 | O167: 0.000 | P167: 0.000 | Q167: 0.000
B168: 0.000 | C168: 0.000 | D168: 0.000 | E168: 0.000 | F168: 1.000 | G168: 0.000 | H168: 0.000 | I168: 0.000 | J168: 0.000 | K168: 0.000 | L168: 0.000 | M168: 0.000 | N168: 0.000 | O168: 0.000 | P168: 0.000 | Q168: 0.000
B169: 0.000 | C169: 0.000 | D169: 0.000 | E169: 0.000 | F169: 0.000 | G169: 1.000 | H169: 0.000 | I169: 0.000 | J169: 0.000 | K169: 0.000 | L169: 0.000 | M169: 0.000 | N169: 0.000 | O169: 0.000 | P169: 0.000 | Q169: 0.000
B170: 0.000 | C170: 0.000 | D170: 0.000 | E170: 0.000 | F170: 0.000 | G170: 0.000 | H170: 1.000 | I170: 0.000 | J170: 0.000 | K170: 0.000 | L170: 0.000 | M170: 0.000 | N170: 0.000 | O170: 0.000 | P170: 0.000 | Q170: 0.000
B171: 0.000 | C171: 0.000 | D171: 0.000 | E171: 0.000 | F171: 0.000 | G171: 0.000 | H171: 0.000 | I171: 1.000 | J171: 0.000 | K171: 0.000 | L171: 0.000 | M171: 0.000 | N171: 0.000 | O171: 0.000 | P171: 0.000 | Q171: 0.000
B172: 0.000 | C172: 0.000 | D172: 0.000 | E172: 0.000 | F172: 0.000 | G172: 0.000 | H172: 0.000 | I172: 0.000 | J172: 1.000 | K172: 0.000 | L172: 0.000 | M172: 0.000 | N172: 0.000 | O172: 0.000 | P172: 0.000 | Q172: 0.000
B173: 0.000 | C173: 0.000 | D173: 0.000 | E173: 0.000 | F173: 0.000 | G173: 0.000 | H173: 0.000 | I173: 0.000 | J173: 0.000 | K173: 1.000 | L173: 0.000 | M173: 0.000 | N173: 0.000 | O173: 0.000 | P173: 0.000 | Q173: 0.000
B174: 0.000 | C174: 0.000 | D174: 0.000 | E174: 0.000 | F174: 0.000 | G174: 0.000 | H174: 0.000 | I174: 0.000 | J174: 0.000 | K174: 0.000 | L174: 1.000 | M174: 0.000 | N174: 0.000 | O174: 0.000 | P174: 0.000 | Q174: 0.000
B175: 0.000 | C175: 0.000 | D175: 0.000 | E175: 0.000 | F175: 0.000 | G175: 0.000 | H175: 0.000 | I175: 0.000 | J175: 0.000 | K175: 0.000 | L175: 0.000 | M175: 1.000 | N175: 0.000 | O175: 0.000 | P175: 0.000 | Q175: 0.000
B176: 0.000 | C176: 0.000 | D176: 0.000 | E176: 0.000 | F176: 0.000 | G176: 0.000 | H176: 0.000 | I176: 0.000 | J176: 0.000 | K176: 0.000 | L176: 0.000 | M176: 0.000 | N176: 1.000 | O176: 0.000 | P176: 0.000 | Q176: 0.000
B177: 0.000 | C177: 0.000 | D177: 0.000 | E177: 0.000 | F177: 0.000 | G177: 0.000 | H177: 0.000 | I177: 0.000 | J177: 0.000 | K177: 0.000 | L177: 0.000 | M177: 0.000 | N177: 0.000 | O177: 1.000 | P177: 0.000 | Q177: 0.000
B178: 0.000 | C178: 0.000 | D178: 0.000 | E178: 0.000 | F178: 0.000 | G178: 0.000 | H178: 0.000 | I178: 0.000 | J178: 0.000 | K178: 0.000 | L178: 0.000 | M178: 0.000 | N178: 0.000 | O178: 0.000 | P178: 1.000 | Q178: 0.000
B179: 0.000 | C179: 0.000 | D179: 0.000 | E179: 0.000 | F179: 0.000 | G179: 0.000 | H179: 0.000 | I179: 0.000 | J179: 0.000 | K179: 0.000 | L179: 0.000 | M179: 0.000 | N179: 0.000 | O179: 0.000 | P179: 0.000 | Q179: 1.000
B182: Predictions and residuals:
B184: SUM | C184: Subject | D184: Weight | E184: WBA | F184: Pred(WBA) | G184: Std. dev. on pred. (Mean) | H184: DF | I184: alpha | J184: Lower bound 95% (Mean) | K184: Upper bound 95% (Mean) | L184: Residual | M184: Studentized marginal residual | N184: Pearson marginal residual | O184: Raw conditional residual | P184: Studentized conditional residual | Q184: Pearson conditional residual
B185: -3.086477944 | C185: 1 | D185: 1 | E185: -1.002 | F185: -1.053 | G185: 0.014 | H185: 15 | I185: 0.050 | J185: -1.081 | K185: -1.024 | L185: 0.051 | M185: 0.323 | N185: 1.225 | O185: 0.227 | P185: 3.689 | Q185: 5.504
B186: -2.204859655 | C186: 1 | D186: 1 | E186: -0.917 | F186: -0.868 | G186: 0.014 | H186: 15 | I186: 0.050 | J186: -0.897 | K186: -0.839 | L186: -0.049 | M186: -0.306 | N186: -1.177 | O186: 0.078 | P186: 2.083 | Q186: 1.879
B187: -2.066427523 | C187: 1 | D187: 1 | E187: -0.823 | F187: -0.839 | G187: 0.014 | H187: 15 | I187: 0.050 | J187: -0.868 | K187: -0.810 | L187: 0.016 | M187: 0.099 | N187: 0.381 | O187: 0.134 | P187: 3.306 | Q187: 3.246
B188: -1.666192447 | C188: 1 | D188: 1 | E188: -0.745 | F188: -0.755 | G188: 0.014 | H188: 15 | I188: 0.050 | J188: -0.784 | K188: -0.727 | L188: 0.010 | M188: 0.063 | N188: 0.243 | O188: 0.105 | P188: 1.821 | Q188: 2.553
B189: -1.229767884 | C189: 1 | D189: 1 | E189: -0.774 | F189: -0.664 | G189: 0.014 | H189: 15 | I189: 0.050 | J189: -0.692 | K189: -0.635 | L189: -0.111 | M189: -0.689 | N189: -2.682 | O189: -0.040 | P189: -0.487 | Q189: -0.977
B190: -2.797653506 | C190: 2 | D190: 1 | E190: -0.888 | F190: -0.908 | G190: 0.014 | H190: 15 | I190: 0.050 | J190: -0.937 | K190: -0.880 | L190: 0.020 | M190: 0.127 | N190: 0.485 | O190: 0.096 | P190: 2.252 | Q190: 2.335
B191: -2.493193484 | C191: 2 | D191: 1 | E191: -0.821 | F191: -0.854 | G191: 0.014 | H191: 15 | I191: 0.050 | J191: -0.882 | K191: -0.825 | L191: 0.032 | M191: 0.204 | N191: 0.782 | O191: 0.100 | P191: 2.719 | Q191: 2.430
B192: -2.456504343 | C192: 2 | D192: 1 | E192: -0.824 | F192: -0.847 | G192: 0.014 | H192: 15 | I192: 0.050 | J192: -0.876 | K192: -0.818 | L192: 0.023 | M192: 0.147 | N192: 0.563 | O192: 0.090 | P192: 2.452 | Q192: 2.187
B193: -2.349895053 | C193: 2 | D193: 1 | E193: -0.888 | F193: -0.828 | G193: 0.014 | H193: 15 | I193: 0.050 | J193: -0.857 | K193: -0.799 | L193: -0.060 | M193: -0.380 | N193: -1.461 | O193: 0.004 | P193: 0.102 | Q193: 0.092
B194: -1.84586406 | C194: 2 | D194: 1 | E194: -0.758 | F194: -0.737 | G194: 0.014 | H194: 15 | I194: 0.050 | J194: -0.766 | K194: -0.709 | L194: -0.020 | M194: -0.126 | N194: -0.489 | O194: 0.030 | P194: 0.563 | Q194: 0.731
B195: -0.3750292801 | C195: 2 | D195: 1 | E195: -0.561 | F195: -0.473 | G195: 0.014 | H195: 15 | I195: 0.050 | J195: -0.502 | K195: -0.445 | L195: -0.087 | M195: -0.543 | N195: -2.119 | O195: -0.077 | P195: -0.561 | Q195: -1.871
B196: -2.690208401 | C196: 3 | D196: 1 | E196: -0.865 | F196: -0.911 | G196: 0.014 | H196: 15 | I196: 0.050 | J196: -0.940 | K196: -0.883 | L196: 0.047 | M196: 0.295 | N196: 1.129 | O196: 0.142 | P196: 2.536 | Q196: 3.442
B197: -2.229823184 | C197: 3 | D197: 1 | E197: -0.903 | F197: -0.825 | G197: 0.014 | H197: 15 | I197: 0.050 | J197: -0.853 | K197: -0.796 | L197: -0.078 | M197: -0.493 | N197: -1.900 | O197: 0.001 | P197: 0.019 | Q197: 0.017
B198: -1.985614945 | C198: 3 | D198: 1 | E198: -0.824 | F198: -0.779 | G198: 0.014 | H198: 15 | I198: 0.050 | J198: -0.807 | K198: -0.750 | L198: -0.046 | M198: -0.285 | N198: -1.102 | O198: 0.025 | P198: 0.657 | Q198: 0.606
B199: -1.917825865 | C199: 3 | D199: 1 | E199: -0.709 | F199: -0.766 | G199: 0.014 | H199: 15 | I199: 0.050 | J199: -0.795 | K199: -0.738 | L199: 0.057 | M199: 0.359 | N199: 1.389 | O199: 0.125 | P199: 3.167 | Q199: 3.039
B200: -0.9397389501 | C200: 3 | D200: 1 | E200: -0.567 | F200: -0.583 | G200: 0.014 | H200: 15 | I200: 0.050 | J200: -0.611 | K200: -0.554 | L200: 0.016 | M200: 0.099 | N200: 0.385 | O200: 0.049 | P200: 0.521 | Q200: 1.193
B201: -0.7462725114 | C201: 3 | D201: 1 | E201: -0.558 | F201: -0.546 | G201: 0.014 | H201: 15 | I201: 0.050 | J201: -0.575 | K201: -0.518 | L201: -0.012 | M201: -0.072 | N201: -0.280 | O201: 0.015 | P201: 0.138 | Q201: 0.361
B202: -2.758335612 | C202: 4 | D202: 1 | E202: -1.014 | F202: -1.004 | G202: 0.014 | H202: 15 | I202: 0.050 | J202: -1.033 | K202: -0.975 | L202: -0.010 | M202: -0.065 | N202: -0.248 | O202: 0.168 | P202: 3.936 | Q202: 4.064
B203: -2.576066122 | C203: 4 | D203: 1 | E203: -0.955 | F203: -0.965 | G203: 0.014 | H203: 15 | I203: 0.050 | J203: -0.993 | K203: -0.936 | L203: 0.009 | M203: 0.058 | N203: 0.221 | O203: 0.175 | P203: 4.654 | Q203: 4.248
B204: -2.434614271 | C204: 4 | D204: 1 | E204: -0.992 | F204: -0.934 | G204: 0.014 | H204: 15 | I204: 0.050 | J204: -0.962 | K204: -0.905 | L204: -0.058 | M204: -0.364 | N204: -1.397 | O204: 0.099 | P204: 2.752 | Q204: 2.409
B205: -1.772113544 | C205: 4 | D205: 1 | E205: -0.784 | F205: -0.790 | G205: 0.014 | H205: 15 | I205: 0.050 | J205: -0.819 | K205: -0.762 | L205: 0.007 | M205: 0.041 | N205: 0.160 | O205: 0.121 | P205: 2.199 | Q205: 2.930
B206: -0.9875694565 | C206: 4 | D206: 1 | E206: -0.529 | F206: -0.620 | G206: 0.014 | H206: 15 | I206: 0.050 | J206: -0.649 | K206: -0.592 | L206: 0.092 | M206: 0.570 | N206: 2.221 | O206: 0.155 | P206: 1.564 | Q206: 3.764
B207: -2.295522451 | C207: 5 | D207: 1 | E207: -0.893 | F207: -0.865 | G207: 0.014 | H207: 15 | I207: 0.050 | J207: -0.893 | K207: -0.836 | L207: -0.029 | M207: -0.180 | N207: -0.692 | O207: 0.081 | P207: 1.870 | Q207: 1.955
B208: -1.928090208 | C208: 5 | D208: 1 | E208: -0.788 | F208: -0.791 | G208: 0.014 | H208: 15 | I208: 0.050 | J208: -0.820 | K208: -0.763 | L208: 0.004 | M208: 0.024 | N208: 0.095 | O208: 0.096 | P208: 2.852 | Q208: 2.318
B209: -1.269916763 | C209: 5 | D209: 1 | E209: -0.666 | F209: -0.660 | G209: 0.014 | H209: 15 | I209: 0.050 | J209: -0.689 | K209: -0.631 | L209: -0.006 | M209: -0.040 | N209: -0.156 | O209: 0.054 | P209: 0.836 | Q209: 1.309
B210: -0.5817027911 | C210: 5 | D210: 1 | E210: -0.463 | F210: -0.522 | G210: 0.014 | H210: 15 | I210: 0.050 | J210: -0.551 | K210: -0.494 | L210: 0.059 | M210: 0.369 | N210: 1.440 | O210: 0.087 | P210: 0.754 | Q210: 2.111
B211: -3.138054849 | C211: 6 | D211: 1 | E211: -0.900 | F211: -0.917 | G211: 0.014 | H211: 15 | I211: 0.050 | J211: -0.945 | K211: -0.888 | L211: 0.017 | M211: 0.108 | N211: 0.408 | O211: 0.050 | P211: 1.222 | Q211: 1.204
B212: -2.721948909 | C212: 6 | D212: 1 | E212: -0.891 | F212: -0.849 | G212: 0.014 | H212: 15 | I212: 0.050 | J212: -0.878 | K212: -0.820 | L212: -0.042 | M212: -0.268 | N212: -1.025 | O212: -0.014 | P212: -0.391 | Q212: -0.334
B213: -2.475945166 | C213: 6 | D213: 1 | E213: -0.761 | F213: -0.809 | G213: 0.014 | H213: 15 | I213: 0.050 | J213: -0.838 | K213: -0.780 | L213: 0.048 | M213: 0.301 | N213: 1.155 | O213: 0.074 | P213: 1.885 | Q213: 1.784
B214: -2.071273022 | C214: 6 | D214: 1 | E214: -0.773 | F214: -0.743 | G214: 0.014 | H214: 15 | I214: 0.050 | J214: -0.772 | K214: -0.715 | L214: -0.030 | M214: -0.190 | N214: -0.732 | O214: -0.009 | P214: -0.160 | Q214: -0.206
B215: -2.513590963 | C215: 7 | D215: 1 | E215: -0.850 | F215: -0.857 | G215: 0.014 | H215: 15 | I215: 0.050 | J215: -0.886 | K215: -0.828 | L215: 0.007 | M215: 0.045 | N215: 0.172 | O215: 0.075 | P215: 1.573 | Q215: 1.827
B216: -2.158136995 | C216: 7 | D216: 1 | E216: -0.810 | F216: -0.793 | G216: 0.014 | H216: 15 | I216: 0.050 | J216: -0.822 | K216: -0.765 | L216: -0.016 | M216: -0.102 | N216: -0.395 | O216: 0.042 | P216: 1.181 | Q216: 1.026
B217: -1.864737334 | C217: 7 | D217: 1 | E217: -0.731 | F217: -0.741 | G217: 0.014 | H217: 15 | I217: 0.050 | J217: -0.769 | K217: -0.712 | L217: 0.009 | M217: 0.059 | N217: 0.229 | O217: 0.060 | P217: 1.537 | Q217: 1.457
B218: -1.24446105 | C218: 7 | D218: 1 | E218: -0.644 | F218: -0.629 | G218: 0.014 | H218: 15 | I218: 0.050 | J218: -0.658 | K218: -0.601 | L218: -0.014 | M218: -0.088 | N218: -0.343 | O218: 0.020 | P218: 0.271 | Q218: 0.476
B219: -0.4748766881 | C219: 7 | D219: 1 | E219: -0.493 | F219: -0.491 | G219: 0.014 | H219: 15 | I219: 0.050 | J219: -0.520 | K219: -0.463 | L219: -0.002 | M219: -0.010 | N219: -0.038 | O219: 0.011 | P219: 0.090 | Q219: 0.275
B220: -3.137586261 | C220: 8 | D220: 1 | E220: -0.804 | F220: -0.791 | G220: 0.014 | H220: 15 | I220: 0.050 | J220: -0.820 | K220: -0.762 | L220: -0.013 | M220: -0.081 | N220: -0.305 | O220: -0.105 | P220: -2.398 | Q220: -2.549
B221: -2.825458166 | C221: 8 | D221: 1 | E221: -0.736 | F221: -0.753 | G221: 0.014 | H221: 15 | I221: 0.050 | J221: -0.781 | K221: -0.724 | L221: 0.017 | M221: 0.107 | N221: 0.407 | O221: -0.067 | P221: -1.803 | Q221: -1.613
B222: -2.627119341 | C222: 8 | D222: 1 | E222: -0.715 | F222: -0.728 | G222: 0.014 | H222: 15 | I222: 0.050 | J222: -0.757 | K222: -0.700 | L222: 0.013 | M222: 0.083 | N222: 0.318 | O222: -0.064 | P222: -1.755 | Q222: -1.560
B223: -2.3856636 | C223: 8 | D223: 1 | E223: -0.717 | F223: -0.699 | G223: 0.014 | H223: 15 | I223: 0.050 | J223: -0.727 | K223: -0.670 | L223: -0.018 | M223: -0.116 | N223: -0.445 | O223: -0.089 | P223: -2.167 | Q223: -2.151
B224: -1.385973123 | C224: 8 | D224: 1 | E224: -0.561 | F224: -0.576 | G224: 0.014 | H224: 15 | I224: 0.050 | J224: -0.605 | K224: -0.548 | L224: 0.015 | M224: 0.095 | N224: 0.368 | O224: -0.026 | P224: -0.303 | Q224: -0.623
B225: -2.976253894 | C225: 9 | D225: 1 | E225: -1.035 | F225: -1.064 | G225: 0.014 | H225: 15 | I225: 0.050 | J225: -1.093 | K225: -1.036 | L225: 0.029 | M225: 0.185 | N225: 0.704 | O225: 0.234 | P225: 5.618 | Q225: 5.670
B226: -2.82985688 | C226: 9 | D226: 1 | E226: -1.136 | F226: -1.032 | G226: 0.014 | H226: 15 | I226: 0.050 | J226: -1.060 | K226: -1.003 | L226: -0.104 | M226: -0.660 | N226: -2.517 | O226: 0.091 | P226: 2.394 | Q226: 2.205
B227: -2.348445895 | C227: 9 | D227: 1 | E227: -0.935 | F227: -0.925 | G227: 0.014 | H227: 15 | I227: 0.050 | J227: -0.954 | K227: -0.897 | L227: -0.009 | M227: -0.059 | N227: -0.226 | O227: 0.152 | P227: 3.848 | Q227: 3.693
B228: -2.319121554 | C228: 9 | D228: 1 | E228: -0.831 | F228: -0.919 | G228: 0.014 | H228: 15 | I228: 0.050 | J228: -0.948 | K228: -0.890 | L228: 0.088 | M228: 0.555 | N228: 2.136 | O228: 0.248 | P228: 6.139 | Q228: 6.005
B229: -0.76701161 | C229: 9 | D229: 1 | E229: -0.603 | F229: -0.576 | G229: 0.014 | H229: 15 | I229: 0.050 | J229: -0.604 | K229: -0.547 | L229: -0.027 | M229: -0.169 | N229: -0.660 | O229: 0.026 | P229: 0.219 | Q229: 0.620
B230: -3.262308298 | C230: 10 | D230: 1 | E230: -0.716 | F230: -0.712 | G230: 0.014 | H230: 15 | I230: 0.050 | J230: -0.741 | K230: -0.684 | L230: -0.003 | M230: -0.021 | N230: -0.081 | O230: -0.194 | P230: -3.685 | Q230: -4.691
B231: -2.95887904 | C231: 10 | D231: 1 | E231: -0.688 | F231: -0.684 | G231: 0.014 | H231: 15 | I231: 0.050 | J231: -0.712 | K231: -0.655 | L231: -0.004 | M231: -0.028 | N231: -0.107 | O231: -0.177 | P231: -4.268 | Q231: -4.289
B232: -2.524798496 | C232: 10 | D232: 1 | E232: -0.614 | F232: -0.643 | G232: 0.014 | H232: 15 | I232: 0.050 | J232: -0.672 | K232: -0.615 | L232: 0.029 | M232: 0.186 | N232: 0.712 | O232: -0.118 | P232: -3.186 | Q232: -2.856
B233: -2.028335882 | C233: 10 | D233: 1 | E233: -0.608 | F233: -0.597 | G233: 0.014 | H233: 15 | I233: 0.050 | J233: -0.625 | K233: -0.568 | L233: -0.011 | M233: -0.072 | N233: -0.278 | O233: -0.130 | P233: -2.540 | Q233: -3.144
B234: -0.9979489457 | C234: 10 | D234: 1 | E234: -0.480 | F234: -0.500 | G234: 0.014 | H234: 15 | I234: 0.050 | J234: -0.528 | K234: -0.471 | L234: 0.020 | M234: 0.124 | N234: 0.485 | O234: -0.038 | P234: -0.368 | Q234: -0.926
B235: -0.524427842 | C235: 10 | D235: 1 | E235: -0.471 | F235: -0.455 | G235: 0.014 | H235: 15 | I235: 0.050 | J235: -0.484 | K235: -0.427 | L235: -0.015 | M235: -0.096 | N235: -0.374 | O235: -0.046 | P235: -0.352 | Q235: -1.115
B236: -2.676573054 | C236: 11 | D236: 1 | E236: -0.813 | F236: -0.827 | G236: 0.014 | H236: 15 | I236: 0.050 | J236: -0.856 | K236: -0.799 | L236: 0.014 | M236: 0.088 | N236: 0.335 | O236: 0.028 | P236: 0.754 | Q236: 0.668
B237: -2.458966812 | C237: 11 | D237: 1 | E237: -0.816 | F237: -0.793 | G237: 0.014 | H237: 15 | I237: 0.050 | J237: -0.822 | K237: -0.764 | L237: -0.023 | M237: -0.143 | N237: -0.550 | O237: -0.010 | P237: -0.286 | Q237: -0.245
B238: -2.381434532 | C238: 11 | D238: 1 | E238: -0.783 | F238: -0.781 | G238: 0.014 | H238: 15 | I238: 0.050 | J238: -0.809 | K238: -0.752 | L238: -0.002 | M238: -0.013 | N238: -0.051 | O238: 0.010 | P238: 0.280 | Q238: 0.245
B239: -1.973163715 | C239: 11 | D239: 1 | E239: -0.706 | F239: -0.717 | G239: 0.014 | H239: 15 | I239: 0.050 | J239: -0.745 | K239: -0.688 | L239: 0.010 | M239: 0.065 | N239: 0.251 | O239: 0.020 | P239: 0.419 | Q239: 0.496
B240: -2.436395577 | C240: 12 | D240: 1 | E240: -0.660 | F240: -0.666 | G240: 0.014 | H240: 15 | I240: 0.050 | J240: -0.695 | K240: -0.638 | L240: 0.007 | M240: 0.043 | N240: 0.164 | O240: -0.104 | P240: -2.430 | Q240: -2.516
B241: -1.951111274 | C241: 12 | D241: 1 | E241: -0.626 | F241: -0.615 | G241: 0.014 | H241: 15 | I241: 0.050 | J241: -0.643 | K241: -0.586 | L241: -0.012 | M241: -0.074 | N241: -0.284 | O241: -0.100 | P241: -2.734 | Q241: -2.430
B242: -1.768418591 | C242: 12 | D242: 1 | E242: -0.577 | F242: -0.595 | G242: 0.014 | H242: 15 | I242: 0.050 | J242: -0.624 | K242: -0.566 | L242: 0.018 | M242: 0.114 | N242: 0.440 | O242: -0.062 | P242: -1.446 | Q242: -1.505
B243: -1.505930939 | C243: 12 | D243: 1 | E243: -0.564 | F243: -0.567 | G243: 0.014 | H243: 15 | I243: 0.050 | J243: -0.596 | K243: -0.538 | L243: 0.003 | M243: 0.018 | N243: 0.072 | O243: -0.065 | P243: -1.154 | Q243: -1.585
B244: -2.639609399 | C244: 13 | D244: 1 | E244: -0.697 | F244: -0.668 | G244: 0.014 | H244: 15 | I244: 0.050 | J244: -0.696 | K244: -0.639 | L244: -0.029 | M244: -0.186 | N244: -0.713 | O244: -0.170 | P244: -3.092 | Q244: -4.110
B245: -1.991660534 | C245: 13 | D245: 1 | E245: -0.596 | F245: -0.603 | G245: 0.014 | H245: 15 | I245: 0.050 | J245: -0.632 | K245: -0.575 | L245: 0.008 | M245: 0.049 | N245: 0.188 | O245: -0.098 | P245: -2.679 | Q245: -2.375
B246: -1.940629644 | C246: 13 | D246: 1 | E246: -0.566 | F246: -0.598 | G246: 0.014 | H246: 15 | I246: 0.050 | J246: -0.627 | K246: -0.570 | L246: 0.032 | M246: 0.202 | N246: 0.781 | O246: -0.071 | P246: -1.887 | Q246: -1.716
B247: -1.462082194 | C247: 13 | D247: 1 | E247: -0.533 | F247: -0.551 | G247: 0.014 | H247: 15 | I247: 0.050 | J247: -0.580 | K247: -0.522 | L247: 0.018 | M247: 0.110 | N247: 0.429 | O247: -0.060 | P247: -1.014 | Q247: -1.452
B248: -0.8555915619 | C248: 13 | D248: 1 | E248: -0.480 | F248: -0.491 | G248: 0.014 | H248: 15 | I248: 0.050 | J248: -0.520 | K248: -0.462 | L248: 0.011 | M248: 0.067 | N248: 0.260 | O248: -0.035 | P248: -0.350 | Q248: -0.842
B249: -2.587630026 | C249: 14 | D249: 1 | E249: -0.748 | F249: -0.769 | G249: 0.014 | H249: 15 | I249: 0.050 | J249: -0.798 | K249: -0.740 | L249: 0.021 | M249: 0.135 | N249: 0.516 | O249: -0.010 | P249: -0.247 | Q249: -0.234
... 14 more rows

Sheet Mixed Models TMC
B1: XLSTAT 2014.1.01 - Mixed Models - on 3/16/2014 at 7:24:50 PM
B2: Y / Quantitative: Workbook = WBA PK analysis.xls / Sheet = Sheet1 / Range = Sheet1!$H:$H / 218 rows and 1 column
B3: X / Quantitative: Workbook = WBA PK analysis.xls / Sheet = Sheet1 / Range = Sheet1!$F:$F / 218 rows and 1 column
B4: X / Qualitative: Workbook = WBA PK analysis.xls / Sheet = Sheet1 / Range = Sheet1!$G:$G / 218 rows and 1 column
B5: Number of removed observations: 95
B6: Repeated measures:
B7: Covariance structure: Variance components
B8: Random effects:
B9: Covariance structure: Variance components
B10: Constraints: an=0
B11: Confidence interval (%): 95
B15: Summary statistics:
B17: Variable | C17: Observations | D17: Obs. with missing data | E17: Obs. without missing data | F17: Minimum | G17: Maximum | H17: Mean | I17: Std. deviation
B18: censored WBA | C18: 123 | D18: 0 | E18: 123 | F18: -0.680 | G18: 0.045 | H18: -0.249 | I18: 0.161
B19: censored log half BDQ | C19: 123 | D19: 0 | E19: 123 | F19: 1.989 | G19: 3.548 | H19: 3.076 | I19: 0.220
B22: Variable | C22: Categories | D22: Frequencies | E22: %
B23: censored subj | C23: 10011004 | D23: 4 | E23: 3.252
C24: 10011011 | D24: 5 | E24: 4.065
C25: 10011016 | D25: 6 | E25: 4.878
C26: 10011018 | D26: 4 | E26: 3.252
C27: 10011022 | D27: 5 | E27: 4.065
C28: 10011024 | D28: 4 | E28: 3.252
C29: 10011028 | D29: 3 | E29: 2.439
C30: 10011030 | D30: 4 | E30: 3.252
C31: 10011032 | D31: 4 | E31: 3.252
C32: 10011035 | D32: 4 | E32: 3.252
C33: 10011036 | D33: 4 | E33: 3.252
C34: 10011038 | D34: 5 | E34: 4.065
C35: 10011040 | D35: 4 | E35: 3.252
C36: 10011041 | D36: 4 | E36: 3.252
C37: 10011043 | D37: 4 | E37: 3.252
C38: 10011044 | D38: 4 | E38: 3.252
C39: 10011045 | D39: 4 | E39: 3.252
C40: 10011047 | D40: 3 | E40: 2.439
C41: 10011048 | D41: 2 | E41: 1.626
C42: 10011049 | D42: 4 | E42: 3.252
C43: 10011001 | D43: 5 | E43: 4.065
C44: 10011003 | D44: 5 | E44: 4.065
C45: 10011009 | D45: 4 | E45: 3.252
C46: 10011010 | D46: 2 | E46: 1.626
C47: 10011017 | D47: 5 | E47: 4.065
C48: 10011020 | D48: 5 | E48: 4.065
C49: 10011021 | D49: 4 | E49: 3.252
C50: 10011023 | D50: 3 | E50: 2.439
C51: 10011029 | D51: 2 | E51: 1.626
C52: 10011031 | D52: 4 | E52: 3.252
C53: 10011033 | D53: 3 | E53: 2.439
B56: Regression of variable censored WBA:
B58: Goodness of fit statistics:
B60: Observations | C60: 123
B61: Sum of weights | C61: 123
B62: -2 Res Log(Likelihood) | C62: -244.262
B63: AIC | C63: -240.262
B64: AICC | C64: -240.162
B65: SBC | C65: -234.638
B66: CAIC | C66: -232.638
B67: Iterations | C67: 5
B68: Covariance parameters | C68: 2
B69: Number of fixed effects | C69: 1
B70: Number of random effects | C70: 1
B71: Number of subjects | C71: 31
B72: Maximum number of observations per subject | C72: 4
B75: Covariance parameters - Random effects:
C77: Parameters | D77: Standard error | E77: Z | F77: Pr > Z
B78: Variance | C78: 0.002 | D78: 0.000 | E78: 3.736 | F78: < 0.0001
B81: Covariance parameters - Repeated factor:
C83: Parameters | D83: Standard error | E83: Z | F83: Pr > Z
B84: Variance | C84: 0.004 | D84: 0.001 | E84: 6.820 | F84: < 0.0001
B87: Null model likelihood ratio test:
B89: DF | C89: Chi-square | D89: Pr > Chi²
B90: 1 | C90: 119.644 | D90: < 0.0001
B93: Type I tests of fixed effects:
B95: Effects | C95: Num DF | D95: Den DF | E95: F | F95: Pr > F
B96: censored log half BDQ | C96: 1 | D96: 30 | E96: 174.804 | F96: < 0.0001
B99: Type II tests of fixed effects:
B101: Effects | C101: Num DF | D101: Den DF | E101: F | F101: Pr > F
B102: censored log half BDQ | C102: 1 | D102: 30 | E102: 174.804 | F102: < 0.0001
B105: Type III tests of fixed effects:
B107: Effects | C107: Num DF | D107: Den DF | E107: F | F107: Pr > F
B108: censored log half BDQ | C108: 1 | D108: 30 | E108: 174.804 | F108: < 0.0001
B111: Model parameters:
J112: conc ug | K112: log ng | L112: WBA
B113: Source | C113: Value | D113: Standard error | E113: t | F113: Pr > |t| | G113: Lower bound (95%) | H113: Upper bound (95%) | J113: 0.2 | K113: =LOG(J113*1000) -> 2.301029996 | L113: =C$114+C$115*(K113) -> 0.07196233933
B114: Intercept | C114: 1.005 | D114: 0.092 | E114: 10.978 | F114: < 0.0001 | G114: 0.824 | H114: 1.186 | J114: 5.000 | K114: =LOG(J114*1000) -> 3.698970004 | L114: =C$114+C$115*(K114) -> -0.4947622299
B115: censored log half BDQ | C115: -0.405 | D115: 0.031 | E115: -13.221 | F115: < 0.0001 | G115: -0.466 | H115: -0.345
B118: Random effects coefficients:
B120: Source | C120: Value | D120: Standard error | E120: DF | F120: t | G120: Pr > |t| | H120: Lower bound (95%) | I120: Upper bound (95%)
B121: censored log half BDQ*censored subj-10011004 | C121: -0.048 | D121: 0.012 | E121: 30 | F121: -4.166 | G121: 0.000 | H121: -0.071 | I121: -0.025
B122: censored log half BDQ*censored subj-10011011 | C122: -0.027 | D122: 0.011 | E122: 30 | F122: -2.442 | G122: 0.021 | H122: -0.048 | I122: -0.005
B123: censored log half BDQ*censored subj-10011016 | C123: -0.018 | D123: 0.011 | E123: 30 | F123: -1.743 | G123: 0.092 | H123: -0.039 | I123: 0.003
B124: censored log half BDQ*censored subj-10011018 | C124: -0.009 | D124: 0.012 | E124: 30 | F124: -0.810 | G124: 0.424 | H124: -0.032 | I124: 0.014
B125: censored log half BDQ*censored subj-10011022 | C125: -0.075 | D125: 0.011 | E125: 30 | F125: -6.885 | G125: < 0.0001 | H125: -0.097 | I125: -0.054
B126: censored log half BDQ*censored subj-10011024 | C126: 0.004 | D126: 0.012 | E126: 30 | F126: 0.359 | G126: 0.722 | H126: -0.019 | I126: 0.027
B127: censored log half BDQ*censored subj-10011028 | C127: -0.033 | D127: 0.014 | E127: 30 | F127: -2.279 | G127: 0.030 | H127: -0.062 | I127: -0.004
B128: censored log half BDQ*censored subj-10011030 | C128: 0.036 | D128: 0.012 | E128: 30 | F128: 3.054 | G128: 0.005 | H128: 0.013 | I128: 0.060
B129: censored log half BDQ*censored subj-10011032 | C129: -0.037 | D129: 0.012 | E129: 30 | F129: -3.192 | G129: 0.003 | H129: -0.060 | I129: -0.014
B130: censored log half BDQ*censored subj-10011035 | C130: 0.020 | D130: 0.011 | E130: 30 | F130: 1.771 | G130: 0.087 | H130: -0.002 | I130: 0.043
B131: censored log half BDQ*censored subj-10011036 | C131: -0.004 | D131: 0.012 | E131: 30 | F131: -0.364 | G131: 0.718 | H131: -0.027 | I131: 0.019
B132: censored log half BDQ*censored subj-10011038 | C132: 0.031 | D132: 0.011 | E132: 30 | F132: 2.823 | G132: 0.008 | H132: 0.009 | I132: 0.053
B133: censored log half BDQ*censored subj-10011040 | C133: 0.009 | D133: 0.012 | E133: 30 | F133: 0.764 | G133: 0.451 | H133: -0.015 | I133: 0.033
B134: censored log half BDQ*censored subj-10011041 | C134: -0.018 | D134: 0.012 | E134: 30 | F134: -1.505 | G134: 0.143 | H134: -0.042 | I134: 0.006
B135: censored log half BDQ*censored subj-10011043 | C135: 0.064 | D135: 0.012 | E135: 30 | F135: 5.493 | G135: < 0.0001 | H135: 0.041 | I135: 0.087
B136: censored log half BDQ*censored subj-10011044 | C136: 0.029 | D136: 0.012 | E136: 30 | F136: 2.383 | G136: 0.024 | H136: 0.005 | I136: 0.053
B137: censored log half BDQ*censored subj-10011045 | C137: 0.060 | D137: 0.012 | E137: 30 | F137: 5.119 | G137: < 0.0001 | H137: 0.037 | I137: 0.084
B138: censored log half BDQ*censored subj-10011047 | C138: 0.017 | D138: 0.013 | E138: 30 | F138: 1.286 | G138: 0.208 | H138: -0.009 | I138: 0.044
B139: censored log half BDQ*censored subj-10011048 | C139: 0.053 | D139: 0.015 | E139: 30 | F139: 3.667 | G139: 0.001 | H139: 0.025 | I139: 0.082
B140: censored log half BDQ*censored subj-10011049 | C140: 0.027 | D140: 0.012 | E140: 30 | F140: 2.200 | G140: 0.036 | H140: 0.003 | I140: 0.050
B141: censored log half BDQ*censored subj-10011001 | C141: -0.020 | D141: 0.011 | E141: 30 | F141: -1.823 | G141: 0.078 | H141: -0.042 | I141: 0.002
B142: censored log half BDQ*censored subj-10011003 | C142: -0.023 | D142: 0.011 | E142: 30 | F142: -2.035 | G142: 0.051 | H142: -0.044 | I142: -0.001
B143: censored log half BDQ*censored subj-10011009 | C143: 0.051 | D143: 0.012 | E143: 30 | F143: 4.318 | G143: 0.000 | H143: 0.027 | I143: 0.074
B144: censored log half BDQ*censored subj-10011010 | C144: -0.015 | D144: 0.015 | E144: 30 | F144: -1.033 | G144: 0.310 | H144: -0.045 | I144: 0.014
B145: censored log half BDQ*censored subj-10011017 | C145: -0.075 | D145: 0.011 | E145: 30 | F145: -6.583 | G145: < 0.0001 | H145: -0.097 | I145: -0.052
B146: censored log half BDQ*censored subj-10011020 | C146: -0.029 | D146: 0.011 | E146: 30 | F146: -2.678 | G146: 0.012 | H146: -0.051 | I146: -0.008
B147: censored log half BDQ*censored subj-10011021 | C147: -0.014 | D147: 0.012 | E147: 30 | F147: -1.182 | G147: 0.247 | H147: -0.038 | I147: 0.010
B148: censored log half BDQ*censored subj-10011023 | C148: 0.025 | D148: 0.013 | E148: 30 | F148: 1.909 | G148: 0.066 | H148: -0.001 | I148: 0.051
B149: censored log half BDQ*censored subj-10011029 | C149: -0.021 | D149: 0.015 | E149: 30 | F149: -1.347 | G149: 0.188 | H149: -0.051 | I149: 0.010
B150: censored log half BDQ*censored subj-10011031 | C150: 0.060 | D150: 0.012 | E150: 30 | F150: 5.202 | G150: < 0.0001 | H150: 0.037 | I150: 0.083
B151: censored log half BDQ*censored subj-10011033 | C151: -0.020 | D151: 0.013 | E151: 30 | F151: -1.541 | G151: 0.134 | H151: -0.047 | I151: 0.006
B154: R matrix:
B156: 0.004 | C156: 0.000 | D156: 0.000 | E156: 0.000
B157: 0.000 | C157: 0.004 | D157: 0.000 | E157: 0.000
B158: 0.000 | C158: 0.000 | D158: 0.004 | E158: 0.000
B159: 0.000 | C159: 0.000 | D159: 0.000 | E159: 0.004
B162: Correlation matrix:
B164: 1.000 | C164: 0.000 | D164: 0.000 | E164: 0.000
B165: 0.000 | C165: 1.000 | D165: 0.000 | E165: 0.000
B166: 0.000 | C166: 0.000 | D166: 1.000 | E166: 0.000
B167: 0.000 | C167: 0.000 | D167: 0.000 | E167: 1.000
B170: G matrix:
B172: 0.002 | C172: 0.000 | D172: 0.000 | E172: 0.000 | F172: 0.000 | G172: 0.000 | H172: 0.000 | I172: 0.000 | J172: 0.000 | K172: 0.000 | L172: 0.000 | M172: 0.000 | N172: 0.000 | O172: 0.000 | P172: 0.000 | Q172: 0.000 | R172: 0.000 | S172: 0.000 | T172: 0.000 | U172: 0.000 | V172: 0.000 | W172: 0.000 | X172: 0.000 | Y172: 0.000 | Z172: 0.000 | AA172: 0.000 | AB172: 0.000 | AC172: 0.000 | AD172: 0.000 | AE172: 0.000 | AF172: 0.000
B173: 0.000 | C173: 0.002 | D173: 0.000 | E173: 0.000 | F173: 0.000 | G173: 0.000 | H173: 0.000 | I173: 0.000 | J173: 0.000 | K173: 0.000 | L173: 0.000 | M173: 0.000 | N173: 0.000 | O173: 0.000 | P173: 0.000 | Q173: 0.000 | R173: 0.000 | S173: 0.000 | T173: 0.000 | U173: 0.000 | V173: 0.000 | W173: 0.000 | X173: 0.000 | Y173: 0.000 | Z173: 0.000 | AA173: 0.000 | AB173: 0.000 | AC173: 0.000 | AD173: 0.000 | AE173: 0.000 | AF173: 0.000
B174: 0.000 | C174: 0.000 | D174: 0.002 | E174: 0.000 | F174: 0.000 | G174: 0.000 | H174: 0.000 | I174: 0.000 | J174: 0.000 | K174: 0.000 | L174: 0.000 | M174: 0.000 | N174: 0.000 | O174: 0.000 | P174: 0.000 | Q174: 0.000 | R174: 0.000 | S174: 0.000 | T174: 0.000 | U174: 0.000 | V174: 0.000 | W174: 0.000 | X174: 0.000 | Y174: 0.000 | Z174: 0.000 | AA174: 0.000 | AB174: 0.000 | AC174: 0.000 | AD174: 0.000 | AE174: 0.000 | AF174: 0.000
B175: 0.000 | C175: 0.000 | D175: 0.000 | E175: 0.002 | F175: 0.000 | G175: 0.000 | H175: 0.000 | I175: 0.000 | J175: 0.000 | K175: 0.000 | L175: 0.000 | M175: 0.000 | N175: 0.000 | O175: 0.000 | P175: 0.000 | Q175: 0.000 | R175: 0.000 | S175: 0.000 | T175: 0.000 | U175: 0.000 | V175: 0.000 | W175: 0.000 | X175: 0.000 | Y175: 0.000 | Z175: 0.000 | AA175: 0.000 | AB175: 0.000 | AC175: 0.000 | AD175: 0.000 | AE175: 0.000 | AF175: 0.000
B176: 0.000 | C176: 0.000 | D176: 0.000 | E176: 0.000 | F176: 0.002 | G176: 0.000 | H176: 0.000 | I176: 0.000 | J176: 0.000 | K176: 0.000 | L176: 0.000 | M176: 0.000 | N176: 0.000 | O176: 0.000 | P176: 0.000 | Q176: 0.000 | R176: 0.000 | S176: 0.000 | T176: 0.000 | U176: 0.000 | V176: 0.000 | W176: 0.000 | X176: 0.000 | Y176: 0.000 | Z176: 0.000 | AA176: 0.000 | AB176: 0.000 | AC176: 0.000 | AD176: 0.000 | AE176: 0.000 | AF176: 0.000
B177: 0.000 | C177: 0.000 | D177: 0.000 | E177: 0.000 | F177: 0.000 | G177: 0.002 | H177: 0.000 | I177: 0.000 | J177: 0.000 | K177: 0.000 | L177: 0.000 | M177: 0.000 | N177: 0.000 | O177: 0.000 | P177: 0.000 | Q177: 0.000 | R177: 0.000 | S177: 0.000 | T177: 0.000 | U177: 0.000 | V177: 0.000 | W177: 0.000 | X177: 0.000 | Y177: 0.000 | Z177: 0.000 | AA177: 0.000 | AB177: 0.000 | AC177: 0.000 | AD177: 0.000 | AE177: 0.000 | AF177: 0.000
B178: 0.000 | C178: 0.000 | D178: 0.000 | E178: 0.000 | F178: 0.000 | G178: 0.000 | H178: 0.002 | I178: 0.000 | J178: 0.000 | K178: 0.000 | L178: 0.000 | M178: 0.000 | N178: 0.000 | O178: 0.000 | P178: 0.000 | Q178: 0.000 | R178: 0.000 | S178: 0.000 | T178: 0.000 | U178: 0.000 | V178: 0.000 | W178: 0.000 | X178: 0.000 | Y178: 0.000 | Z178: 0.000 | AA178: 0.000 | AB178: 0.000 | AC178: 0.000 | AD178: 0.000 | AE178: 0.000 | AF178: 0.000
B179: 0.000 | C179: 0.000 | D179: 0.000 | E179: 0.000 | F179: 0.000 | G179: 0.000 | H179: 0.000 | I179: 0.002 | J179: 0.000 | K179: 0.000 | L179: 0.000 | M179: 0.000 | N179: 0.000 | O179: 0.000 | P179: 0.000 | Q179: 0.000 | R179: 0.000 | S179: 0.000 | T179: 0.000 | U179: 0.000 | V179: 0.000 | W179: 0.000 | X179: 0.000 | Y179: 0.000 | Z179: 0.000 | AA179: 0.000 | AB179: 0.000 | AC179: 0.000 | AD179: 0.000 | AE179: 0.000 | AF179: 0.000
B180: 0.000 | C180: 0.000 | D180: 0.000 | E180: 0.000 | F180: 0.000 | G180: 0.000 | H180: 0.000 | I180: 0.000 | J180: 0.002 | K180: 0.000 | L180: 0.000 | M180: 0.000 | N180: 0.000 | O180: 0.000 | P180: 0.000 | Q180: 0.000 | R180: 0.000 | S180: 0.000 | T180: 0.000 | U180: 0.000 | V180: 0.000 | W180: 0.000 | X180: 0.000 | Y180: 0.000 | Z180: 0.000 | AA180: 0.000 | AB180: 0.000 | AC180: 0.000 | AD180: 0.000 | AE180: 0.000 | AF180: 0.000
B181: 0.000 | C181: 0.000 | D181: 0.000 | E181: 0.000 | F181: 0.000 | G181: 0.000 | H181: 0.000 | I181: 0.000 | J181: 0.000 | K181: 0.002 | L181: 0.000 | M181: 0.000 | N181: 0.000 | O181: 0.000 | P181: 0.000 | Q181: 0.000 | R181: 0.000 | S181: 0.000 | T181: 0.000 | U181: 0.000 | V181: 0.000 | W181: 0.000 | X181: 0.000 | Y181: 0.000 | Z181: 0.000 | AA181: 0.000 | AB181: 0.000 | AC181: 0.000 | AD181: 0.000 | AE181: 0.000 | AF181: 0.000
B182: 0.000 | C182: 0.000 | D182: 0.000 | E182: 0.000 | F182: 0.000 | G182: 0.000 | H182: 0.000 | I182: 0.000 | J182: 0.000 | K182: 0.000 | L182: 0.002 | M182: 0.000 | N182: 0.000 | O182: 0.000 | P182: 0.000 | Q182: 0.000 | R182: 0.000 | S182: 0.000 | T182: 0.000 | U182: 0.000 | V182: 0.000 | W182: 0.000 | X182: 0.000 | Y182: 0.000 | Z182: 0.000 | AA182: 0.000 | AB182: 0.000 | AC182: 0.000 | AD182: 0.000 | AE182: 0.000 | AF182: 0.000
B183: 0.000 | C183: 0.000 | D183: 0.000 | E183: 0.000 | F183: 0.000 | G183: 0.000 | H183: 0.000 | I183: 0.000 | J183: 0.000 | K183: 0.000 | L183: 0.000 | M183: 0.002 | N183: 0.000 | O183: 0.000 | P183: 0.000 | Q183: 0.000 | R183: 0.000 | S183: 0.000 | T183: 0.000 | U183: 0.000 | V183: 0.000 | W183: 0.000 | X183: 0.000 | Y183: 0.000 | Z183: 0.000 | AA183: 0.000 | AB183: 0.000 | AC183: 0.000 | AD183: 0.000 | AE183: 0.000 | AF183: 0.000
B184: 0.000 | C184: 0.000 | D184: 0.000 | E184: 0.000 | F184: 0.000 | G184: 0.000 | H184: 0.000 | I184: 0.000 | J184: 0.000 | K184: 0.000 | L184: 0.000 | M184: 0.000 | N184: 0.002 | O184: 0.000 | P184: 0.000 | Q184: 0.000 | R184: 0.000 | S184: 0.000 | T184: 0.000 | U184: 0.000 | V184: 0.000 | W184: 0.000 | X184: 0.000 | Y184: 0.000 | Z184: 0.000 | AA184: 0.000 | AB184: 0.000 | AC184: 0.000 | AD184: 0.000 | AE184: 0.000 | AF184: 0.000
B185: 0.000 | C185: 0.000 | D185: 0.000 | E185: 0.000 | F185: 0.000 | G185: 0.000 | H185: 0.000 | I185: 0.000 | J185: 0.000 | K185: 0.000 | L185: 0.000 | M185: 0.000 | N185: 0.000 | O185: 0.002 | P185: 0.000 | Q185: 0.000 | R185: 0.000 | S185: 0.000 | T185: 0.000 | U185: 0.000 | V185: 0.000 | W185: 0.000 | X185: 0.000 | Y185: 0.000 | Z185: 0.000 | AA185: 0.000 | AB185: 0.000 | AC185: 0.000 | AD185: 0.000 | AE185: 0.000 | AF185: 0.000
B186: 0.000 | C186: 0.000 | D186: 0.000 | E186: 0.000 | F186: 0.000 | G186: 0.000 | H186: 0.000 | I186: 0.000 | J186: 0.000 | K186: 0.000 | L186: 0.000 | M186: 0.000 | N186: 0.000 | O186: 0.000 | P186: 0.002 | Q186: 0.000 | R186: 0.000 | S186: 0.000 | T186: 0.000 | U186: 0.000 | V186: 0.000 | W186: 0.000 | X186: 0.000 | Y186: 0.000 | Z186: 0.000 | AA186: 0.000 | AB186: 0.000 | AC186: 0.000 | AD186: 0.000 | AE186: 0.000 | AF186: 0.000
B187: 0.000 | C187: 0.000 | D187: 0.000 | E187: 0.000 | F187: 0.000 | G187: 0.000 | H187: 0.000 | I187: 0.000 | J187: 0.000 | K187: 0.000 | L187: 0.000 | M187: 0.000 | N187: 0.000 | O187: 0.000 | P187: 0.000 | Q187: 0.002 | R187: 0.000 | S187: 0.000 | T187: 0.000 | U187: 0.000 | V187: 0.000 | W187: 0.000 | X187: 0.000 | Y187: 0.000 | Z187: 0.000 | AA187: 0.000 | AB187: 0.000 | AC187: 0.000 | AD187: 0.000 | AE187: 0.000 | AF187: 0.000
B188: 0.000 | C188: 0.000 | D188: 0.000 | E188: 0.000 | F188: 0.000 | G188: 0.000 | H188: 0.000 | I188: 0.000 | J188: 0.000 | K188: 0.000 | L188: 0.000 | M188: 0.000 | N188: 0.000 | O188: 0.000 | P188: 0.000 | Q188: 0.000 | R188: 0.002 | S188: 0.000 | T188: 0.000 | U188: 0.000 | V188: 0.000 | W188: 0.000 | X188: 0.000 | Y188: 0.000 | Z188: 0.000 | AA188: 0.000 | AB188: 0.000 | AC188: 0.000 | AD188: 0.000 | AE188: 0.000 | AF188: 0.000
B189: 0.000 | C189: 0.000 | D189: 0.000 | E189: 0.000 | F189: 0.000 | G189: 0.000 | H189: 0.000 | I189: 0.000 | J189: 0.000 | K189: 0.000 | L189: 0.000 | M189: 0.000 | N189: 0.000 | O189: 0.000 | P189: 0.000 | Q189: 0.000 | R189: 0.000 | S189: 0.002 | T189: 0.000 | U189: 0.000 | V189: 0.000 | W189: 0.000 | X189: 0.000 | Y189: 0.000 | Z189: 0.000 | AA189: 0.000 | AB189: 0.000 | AC189: 0.000 | AD189: 0.000 | AE189: 0.000 | AF189: 0.000
B190: 0.000 | C190: 0.000 | D190: 0.000 | E190: 0.000 | F190: 0.000 | G190: 0.000 | H190: 0.000 | I190: 0.000 | J190: 0.000 | K190: 0.000 | L190: 0.000 | M190: 0.000 | N190: 0.000 | O190: 0.000 | P190: 0.000 | Q190: 0.000 | R190: 0.000 | S190: 0.000 | T190: 0.002 | U190: 0.000 | V190: 0.000 | W190: 0.000 | X190: 0.000 | Y190: 0.000 | Z190: 0.000 | AA190: 0.000 | AB190: 0.000 | AC190: 0.000 | AD190: 0.000 | AE190: 0.000 | AF190: 0.000
B191: 0.000 | C191: 0.000 | D191: 0.000 | E191: 0.000 | F191: 0.000 | G191: 0.000 | H191: 0.000 | I191: 0.000 | J191: 0.000 | K191: 0.000 | L191: 0.000 | M191: 0.000 | N191: 0.000 | O191: 0.000 | P191: 0.000 | Q191: 0.000 | R191: 0.000 | S191: 0.000 | T191: 0.000 | U191: 0.002 | V191: 0.000 | W191: 0.000 | X191: 0.000 | Y191: 0.000 | Z191: 0.000 | AA191: 0.000 | AB191: 0.000 | AC191: 0.000 | AD191: 0.000 | AE191: 0.000 | AF191: 0.000
B192: 0.000 | C192: 0.000 | D192: 0.000 | E192: 0.000 | F192: 0.000 | G192: 0.000 | H192: 0.000 | I192: 0.000 | J192: 0.000 | K192: 0.000 | L192: 0.000 | M192: 0.000 | N192: 0.000 | O192: 0.000 | P192: 0.000 | Q192: 0.000 | R192: 0.000 | S192: 0.000 | T192: 0.000 | U192: 0.000 | V192: 0.002 | W192: 0.000 | X192: 0.000 | Y192: 0.000 | Z192: 0.000 | AA192: 0.000 | AB192: 0.000 | AC192: 0.000 | AD192: 0.000 | AE192: 0.000 | AF192: 0.000
B193: 0.000 | C193: 0.000 | D193: 0.000 | E193: 0.000 | F193: 0.000 | G193: 0.000 | H193: 0.000 | I193: 0.000 | J193: 0.000 | K193: 0.000 | L193: 0.000 | M193: 0.000 | N193: 0.000 | O193: 0.000 | P193: 0.000 | Q193: 0.000 | R193: 0.000 | S193: 0.000 | T193: 0.000 | U193: 0.000 | V193: 0.000 | W193: 0.002 | X193: 0.000 | Y193: 0.000 | Z193: 0.000 | AA193: 0.000 | AB193: 0.000 | AC193: 0.000 | AD193: 0.000 | AE193: 0.000 | AF193: 0.000
B194: 0.000 | C194: 0.000 | D194: 0.000 | E194: 0.000 | F194: 0.000 | G194: 0.000 | H194: 0.000 | I194: 0.000 | J194: 0.000 | K194: 0.000 | L194: 0.000 | M194: 0.000 | N194: 0.000 | O194: 0.000 | P194: 0.000 | Q194: 0.000 | R194: 0.000 | S194: 0.000 | T194: 0.000 | U194: 0.000 | V194: 0.000 | W194: 0.000 | X194: 0.002 | Y194: 0.000 | Z194: 0.000 | AA194: 0.000 | AB194: 0.000 | AC194: 0.000 | AD194: 0.000 | AE194: 0.000 | AF194: 0.000
B195: 0.000 | C195: 0.000 | D195: 0.000 | E195: 0.000 | F195: 0.000 | G195: 0.000 | H195: 0.000 | I195: 0.000 | J195: 0.000 | K195: 0.000 | L195: 0.000 | M195: 0.000 | N195: 0.000 | O195: 0.000 | P195: 0.000 | Q195: 0.000 | R195: 0.000 | S195: 0.000 | T195: 0.000 | U195: 0.000 | V195: 0.000 | W195: 0.000 | X195: 0.000 | Y195: 0.002 | Z195: 0.000 | AA195: 0.000 | AB195: 0.000 | AC195: 0.000 | AD195: 0.000 | AE195: 0.000 | AF195: 0.000
B196: 0.000 | C196: 0.000 | D196: 0.000 | E196: 0.000 | F196: 0.000 | G196: 0.000 | H196: 0.000 | I196: 0.000 | J196: 0.000 | K196: 0.000 | L196: 0.000 | M196: 0.000 | N196: 0.000 | O196: 0.000 | P196: 0.000 | Q196: 0.000 | R196: 0.000 | S196: 0.000 | T196: 0.000 | U196: 0.000 | V196: 0.000 | W196: 0.000 | X196: 0.000 | Y196: 0.000 | Z196: 0.002 | AA196: 0.000 | AB196: 0.000 | AC196: 0.000 | AD196: 0.000 | AE196: 0.000 | AF196: 0.000
B197: 0.000 | C197: 0.000 | D197: 0.000 | E197: 0.000 | F197: 0.000 | G197: 0.000 | H197: 0.000 | I197: 0.000 | J197: 0.000 | K197: 0.000 | L197: 0.000 | M197: 0.000 | N197: 0.000 | O197: 0.000 | P197: 0.000 | Q197: 0.000 | R197: 0.000 | S197: 0.000 | T197: 0.000 | U197: 0.000 | V197: 0.000 | W197: 0.000 | X197: 0.000 | Y197: 0.000 | Z197: 0.000 | AA197: 0.002 | AB197: 0.000 | AC197: 0.000 | AD197: 0.000 | AE197: 0.000 | AF197: 0.000
B198: 0.000 | C198: 0.000 | D198: 0.000 | E198: 0.000 | F198: 0.000 | G198: 0.000 | H198: 0.000 | I198: 0.000 | J198: 0.000 | K198: 0.000 | L198: 0.000 | M198: 0.000 | N198: 0.000 | O198: 0.000 | P198: 0.000 | Q198: 0.000 | R198: 0.000 | S198: 0.000 | T198: 0.000 | U198: 0.000 | V198: 0.000 | W198: 0.000 | X198: 0.000 | Y198: 0.000 | Z198: 0.000 | AA198: 0.000 | AB198: 0.002 | AC198: 0.000 | AD198: 0.000 | AE198: 0.000 | AF198: 0.000
B199: 0.000 | C199: 0.000 | D199: 0.000 | E199: 0.000 | F199: 0.000 | G199: 0.000 | H199: 0.000 | I199: 0.000 | J199: 0.000 | K199: 0.000 | L199: 0.000 | M199: 0.000 | N199: 0.000 | O199: 0.000 | P199: 0.000 | Q199: 0.000 | R199: 0.000 | S199: 0.000 | T199: 0.000 | U199: 0.000 | V199: 0.000 | W199: 0.000 | X199: 0.000 | Y199: 0.000 | Z199: 0.000 | AA199: 0.000 | AB199: 0.000 | AC199: 0.002 | AD199: 0.000 | AE199: 0.000 | AF199: 0.000
B200: 0.000 | C200: 0.000 | D200: 0.000 | E200: 0.000 | F200: 0.000 | G200: 0.000 | H200: 0.000 | I200: 0.000 | J200: 0.000 | K200: 0.000 | L200: 0.000 | M200: 0.000 | N200: 0.000 | O200: 0.000 | P200: 0.000 | Q200: 0.000 | R200: 0.000 | S200: 0.000 | T200: 0.000 | U200: 0.000 | V200: 0.000 | W200: 0.000 | X200: 0.000 | Y200: 0.000 | Z200: 0.000 | AA200: 0.000 | AB200: 0.000 | AC200: 0.000 | AD200: 0.002 | AE200: 0.000 | AF200: 0.000
B201: 0.000 | C201: 0.000 | D201: 0.000 | E201: 0.000 | F201: 0.000 | G201: 0.000 | H201: 0.000 | I201: 0.000 | J201: 0.000 | K201: 0.000 | L201: 0.000 | M201: 0.000 | N201: 0.000 | O201: 0.000 | P201: 0.000 | Q201: 0.000 | R201: 0.000 | S201: 0.000 | T201: 0.000 | U201: 0.000 | V201: 0.000 | W201: 0.000 | X201: 0.000 | Y201: 0.000 | Z201: 0.000 | AA201: 0.000 | AB201: 0.000 | AC201: 0.000 | AD201: 0.000 | AE201: 0.002 | AF201: 0.000
B202: 0.000 | C202: 0.000 | D202: 0.000 | E202: 0.000 | F202: 0.000 | G202: 0.000 | H202: 0.000 | I202: 0.000 | J202: 0.000 | K202: 0.000 | L202: 0.000 | M202: 0.000 | N202: 0.000 | O202: 0.000 | P202: 0.000 | Q202: 0.000 | R202: 0.000 | S202: 0.000 | T202: 0.000 | U202: 0.000 | V202: 0.000 | W202: 0.000 | X202: 0.000 | Y202: 0.000 | Z202: 0.000 | AA202: 0.000 | AB202: 0.000 | AC202: 0.000 | AD202: 0.000 | AE202: 0.000 | AF202: 0.002
B205: Correlation matrix:
B207: 1.000 | C207: 0.000 | D207: 0.000 | E207: 0.000 | F207: 0.000 | G207: 0.000 | H207: 0.000 | I207: 0.000 | J207: 0.000 | K207: 0.000 | L207: 0.000 | M207: 0.000 | N207: 0.000 | O207: 0.000 | P207: 0.000 | Q207: 0.000 | R207: 0.000 | S207: 0.000 | T207: 0.000 | U207: 0.000 | V207: 0.000 | W207: 0.000 | X207: 0.000 | Y207: 0.000 | Z207: 0.000 | AA207: 0.000 | AB207: 0.000 | AC207: 0.000 | AD207: 0.000 | AE207: 0.000 | AF207: 0.000
B208: 0.000 | C208: 1.000 | D208: 0.000 | E208: 0.000 | F208: 0.000 | G208: 0.000 | H208: 0.000 | I208: 0.000 | J208: 0.000 | K208: 0.000 | L208: 0.000 | M208: 0.000 | N208: 0.000 | O208: 0.000 | P208: 0.000 | Q208: 0.000 | R208: 0.000 | S208: 0.000 | T208: 0.000 | U208: 0.000 | V208: 0.000 | W208: 0.000 | X208: 0.000 | Y208: 0.000 | Z208: 0.000 | AA208: 0.000 | AB208: 0.000 | AC208: 0.000 | AD208: 0.000 | AE208: 0.000 | AF208: 0.000
B209: 0.000 | C209: 0.000 | D209: 1.000 | E209: 0.000 | F209: 0.000 | G209: 0.000 | H209: 0.000 | I209: 0.000 | J209: 0.000 | K209: 0.000 | L209: 0.000 | M209: 0.000 | N209: 0.000 | O209: 0.000 | P209: 0.000 | Q209: 0.000 | R209: 0.000 | S209: 0.000 | T209: 0.000 | U209: 0.000 | V209: 0.000 | W209: 0.000 | X209: 0.000 | Y209: 0.000 | Z209: 0.000 | AA209: 0.000 | AB209: 0.000 | AC209: 0.000 | AD209: 0.000 | AE209: 0.000 | AF209: 0.000
B210: 0.000 | C210: 0.000 | D210: 0.000 | E210: 1.000 | F210: 0.000 | G210: 0.000 | H210: 0.000 | I210: 0.000 | J210: 0.000 | K210: 0.000 | L210: 0.000 | M210: 0.000 | N210: 0.000 | O210: 0.000 | P210: 0.000 | Q210: 0.000 | R210: 0.000 | S210: 0.000 | T210: 0.000 | U210: 0.000 | V210: 0.000 | W210: 0.000 | X210: 0.000 | Y210: 0.000 | Z210: 0.000 | AA210: 0.000 | AB210: 0.000 | AC210: 0.000 | AD210: 0.000 | AE210: 0.000 | AF210: 0.000
B211: 0.000 | C211: 0.000 | D211: 0.000 | E211: 0.000 | F211: 1.000 | G211: 0.000 | H211: 0.000 | I211: 0.000 | J211: 0.000 | K211: 0.000 | L211: 0.000 | M211: 0.000 | N211: 0.000 | O211: 0.000 | P211: 0.000 | Q211: 0.000 | R211: 0.000 | S211: 0.000 | T211: 0.000 | U211: 0.000 | V211: 0.000 | W211: 0.000 | X211: 0.000 | Y211: 0.000 | Z211: 0.000 | AA211: 0.000 | AB211: 0.000 | AC211: 0.000 | AD211: 0.000 | AE211: 0.000 | AF211: 0.000
B212: 0.000 | C212: 0.000 | D212: 0.000 | E212: 0.000 | F212: 0.000 | G212: 1.000 | H212: 0.000 | I212: 0.000 | J212: 0.000 | K212: 0.000 | L212: 0.000 | M212: 0.000 | N212: 0.000 | O212: 0.000 | P212: 0.000 | Q212: 0.000 | R212: 0.000 | S212: 0.000 | T212: 0.000 | U212: 0.000 | V212: 0.000 | W212: 0.000 | X212: 0.000 | Y212: 0.000 | Z212: 0.000 | AA212: 0.000 | AB212: 0.000 | AC212: 0.000 | AD212: 0.000 | AE212: 0.000 | AF212: 0.000
B213: 0.000 | C213: 0.000 | D213: 0.000 | E213: 0.000 | F213: 0.000 | G213: 0.000 | H213: 1.000 | I213: 0.000 | J213: 0.000 | K213: 0.000 | L213: 0.000 | M213: 0.000 | N213: 0.000 | O213: 0.000 | P213: 0.000 | Q213: 0.000 | R213: 0.000 | S213: 0.000 | T213: 0.000 | U213: 0.000 | V213: 0.000 | W213: 0.000 | X213: 0.000 | Y213: 0.000 | Z213: 0.000 | AA213: 0.000 | AB213: 0.000 | AC213: 0.000 | AD213: 0.000 | AE213: 0.000 | AF213: 0.000
B214: 0.000 | C214: 0.000 | D214: 0.000 | E214: 0.000 | F214: 0.000 | G214: 0.000 | H214: 0.000 | I214: 1.000 | J214: 0.000 | K214: 0.000 | L214: 0.000 | M214: 0.000 | N214: 0.000 | O214: 0.000 | P214: 0.000 | Q214: 0.000 | R214: 0.000 | S214: 0.000 | T214: 0.000 | U214: 0.000 | V214: 0.000 | W214: 0.000 | X214: 0.000 | Y214: 0.000 | Z214: 0.000 | AA214: 0.000 | AB214: 0.000 | AC214: 0.000 | AD214: 0.000 | AE214: 0.000 | AF214: 0.000
B215: 0.000 | C215: 0.000 | D215: 0.000 | E215: 0.000 | F215: 0.000 | G215: 0.000 | H215: 0.000 | I215: 0.000 | J215: 1.000 | K215: 0.000 | L215: 0.000 | M215: 0.000 | N215: 0.000 | O215: 0.000 | P215: 0.000 | Q215: 0.000 | R215: 0.000 | S215: 0.000 | T215: 0.000 | U215: 0.000 | V215: 0.000 | W215: 0.000 | X215: 0.000 | Y215: 0.000 | Z215: 0.000 | AA215: 0.000 | AB215: 0.000 | AC215: 0.000 | AD215: 0.000 | AE215: 0.000 | AF215: 0.000
B216: 0.000 | C216: 0.000 | D216: 0.000 | E216: 0.000 | F216: 0.000 | G216: 0.000 | H216: 0.000 | I216: 0.000 | J216: 0.000 | K216: 1.000 | L216: 0.000 | M216: 0.000 | N216: 0.000 | O216: 0.000 | P216: 0.000 | Q216: 0.000 | R216: 0.000 | S216: 0.000 | T216: 0.000 | U216: 0.000 | V216: 0.000 | W216: 0.000 | X216: 0.000 | Y216: 0.000 | Z216: 0.000 | AA216: 0.000 | AB216: 0.000 | AC216: 0.000 | AD216: 0.000 | AE216: 0.000 | AF216: 0.000
B217: 0.000 | C217: 0.000 | D217: 0.000 | E217: 0.000 | F217: 0.000 | G217: 0.000 | H217: 0.000 | I217: 0.000 | J217: 0.000 | K217: 0.000 | L217: 1.000 | M217: 0.000 | N217: 0.000 | O217: 0.000 | P217: 0.000 | Q217: 0.000 | R217: 0.000 | S217: 0.000 | T217: 0.000 | U217: 0.000 | V217: 0.000 | W217: 0.000 | X217: 0.000 | Y217: 0.000 | Z217: 0.000 | AA217: 0.000 | AB217: 0.000 | AC217: 0.000 | AD217: 0.000 | AE217: 0.000 | AF217: 0.000
B218: 0.000 | C218: 0.000 | D218: 0.000 | E218: 0.000 | F218: 0.000 | G218: 0.000 | H218: 0.000 | I218: 0.000 | J218: 0.000 | K218: 0.000 | L218: 0.000 | M218: 1.000 | N218: 0.000 | O218: 0.000 | P218: 0.000 | Q218: 0.000 | R218: 0.000 | S218: 0.000 | T218: 0.000 | U218: 0.000 | V218: 0.000 | W218: 0.000 | X218: 0.000 | Y218: 0.000 | Z218: 0.000 | AA218: 0.000 | AB218: 0.000 | AC218: 0.000 | AD218: 0.000 | AE218: 0.000 | AF218: 0.000
B219: 0.000 | C219: 0.000 | D219: 0.000 | E219: 0.000 | F219: 0.000 | G219: 0.000 | H219: 0.000 | I219: 0.000 | J219: 0.000 | K219: 0.000 | L219: 0.000 | M219: 0.000 | N219: 1.000 | O219: 0.000 | P219: 0.000 | Q219: 0.000 | R219: 0.000 | S219: 0.000 | T219: 0.000 | U219: 0.000 | V219: 0.000 | W219: 0.000 | X219: 0.000 | Y219: 0.000 | Z219: 0.000 | AA219: 0.000 | AB219: 0.000 | AC219: 0.000 | AD219: 0.000 | AE219: 0.000 | AF219: 0.000
B220: 0.000 | C220: 0.000 | D220: 0.000 | E220: 0.000 | F220: 0.000 | G220: 0.000 | H220: 0.000 | I220: 0.000 | J220: 0.000 | K220: 0.000 | L220: 0.000 | M220: 0.000 | N220: 0.000 | O220: 1.000 | P220: 0.000 | Q220: 0.000 | R220: 0.000 | S220: 0.000 | T220: 0.000 | U220: 0.000 | V220: 0.000 | W220: 0.000 | X220: 0.000 | Y220: 0.000 | Z220: 0.000 | AA220: 0.000 | AB220: 0.000 | AC220: 0.000 | AD220: 0.000 | AE220: 0.000 | AF220: 0.000
B221: 0.000 | C221: 0.000 | D221: 0.000 | E221: 0.000 | F221: 0.000 | G221: 0.000 | H221: 0.000 | I221: 0.000 | J221: 0.000 | K221: 0.000 | L221: 0.000 | M221: 0.000 | N221: 0.000 | O221: 0.000 | P221: 1.000 | Q221: 0.000 | R221: 0.000 | S221: 0.000 | T221: 0.000 | U221: 0.000 | V221: 0.000 | W221: 0.000 | X221: 0.000 | Y221: 0.000 | Z221: 0.000 | AA221: 0.000 | AB221: 0.000 | AC221: 0.000 | AD221: 0.000 | AE221: 0.000 | AF221: 0.000
B222: 0.000 | C222: 0.000 | D222: 0.000 | E222: 0.000 | F222: 0.000 | G222: 0.000 | H222: 0.000 | I222: 0.000 | J222: 0.000 | K222: 0.000 | L222: 0.000 | M222: 0.000 | N222: 0.000 | O222: 0.000 | P222: 0.000 | Q222: 1.000 | R222: 0.000 | S222: 0.000 | T222: 0.000 | U222: 0.000 | V222: 0.000 | W222: 0.000 | X222: 0.000 | Y222: 0.000 | Z222: 0.000 | AA222: 0.000 | AB222: 0.000 | AC222: 0.000 | AD222: 0.000 | AE222: 0.000 | AF222: 0.000
B223: 0.000 | C223: 0.000 | D223: 0.000 | E223: 0.000 | F223: 0.000 | G223: 0.000 | H223: 0.000 | I223: 0.000 | J223: 0.000 | K223: 0.000 | L223: 0.000 | M223: 0.000 | N223: 0.000 | O223: 0.000 | P223: 0.000 | Q223: 0.000 | R223: 1.000 | S223: 0.000 | T223: 0.000 | U223: 0.000 | V223: 0.000 | W223: 0.000 | X223: 0.000 | Y223: 0.000 | Z223: 0.000 | AA223: 0.000 | AB223: 0.000 | AC223: 0.000 | AD223: 0.000 | AE223: 0.000 | AF223: 0.000
B224: 0.000 | C224: 0.000 | D224: 0.000 | E224: 0.000 | F224: 0.000 | G224: 0.000 | H224: 0.000 | I224: 0.000 | J224: 0.000 | K224: 0.000 | L224: 0.000 | M224: 0.000 | N224: 0.000 | O224: 0.000 | P224: 0.000 | Q224: 0.000 | R224: 0.000 | S224: 1.000 | T224: 0.000 | U224: 0.000 | V224: 0.000 | W224: 0.000 | X224: 0.000 | Y224: 0.000 | Z224: 0.000 | AA224: 0.000 | AB224: 0.000 | AC224: 0.000 | AD224: 0.000 | AE224: 0.000 | AF224: 0.000
B225: 0.000 | C225: 0.000 | D225: 0.000 | E225: 0.000 | F225: 0.000 | G225: 0.000 | H225: 0.000 | I225: 0.000 | J225: 0.000 | K225: 0.000 | L225: 0.000 | M225: 0.000 | N225: 0.000 | O225: 0.000 | P225: 0.000 | Q225: 0.000 | R225: 0.000 | S225: 0.000 | T225: 1.000 | U225: 0.000 | V225: 0.000 | W225: 0.000 | X225: 0.000 | Y225: 0.000 | Z225: 0.000 | AA225: 0.000 | AB225: 0.000 | AC225: 0.000 | AD225: 0.000 | AE225: 0.000 | AF225: 0.000
B226: 0.000 | C226: 0.000 | D226: 0.000 | E226: 0.000 | F226: 0.000 | G226: 0.000 | H226: 0.000 | I226: 0.000 | J226: 0.000 | K226: 0.000 | L226: 0.000 | M226: 0.000 | N226: 0.000 | O226: 0.000 | P226: 0.000 | Q226: 0.000 | R226: 0.000 | S226: 0.000 | T226: 0.000 | U226: 1.000 | V226: 0.000 | W226: 0.000 | X226: 0.000 | Y226: 0.000 | Z226: 0.000 | AA226: 0.000 | AB226: 0.000 | AC226: 0.000 | AD226: 0.000 | AE226: 0.000 | AF226: 0.000
B227: 0.000 | C227: 0.000 | D227: 0.000 | E227: 0.000 | F227: 0.000 | G227: 0.000 | H227: 0.000 | I227: 0.000 | J227: 0.000 | K227: 0.000 | L227: 0.000 | M227: 0.000 | N227: 0.000 | O227: 0.000 | P227: 0.000 | Q227: 0.000 | R227: 0.000 | S227: 0.000 | T227: 0.000 | U227: 0.000 | V227: 1.000 | W227: 0.000 | X227: 0.000 | Y227: 0.000 | Z227: 0.000 | AA227: 0.000 | AB227: 0.000 | AC227: 0.000 | AD227: 0.000 | AE227: 0.000 | AF227: 0.000
B228: 0.000 | C228: 0.000 | D228: 0.000 | E228: 0.000 | F228: 0.000 | G228: 0.000 | H228: 0.000 | I228: 0.000 | J228: 0.000 | K228: 0.000 | L228: 0.000 | M228: 0.000 | N228: 0.000 | O228: 0.000 | P228: 0.000 | Q228: 0.000 | R228: 0.000 | S228: 0.000 | T228: 0.000 | U228: 0.000 | V228: 0.000 | W228: 1.000 | X228: 0.000 | Y228: 0.000 | Z228: 0.000 | AA228: 0.000 | AB228: 0.000 | AC228: 0.000 | AD228: 0.000 | AE228: 0.000 | AF228: 0.000
B229: 0.000 | C229: 0.000 | D229: 0.000 | E229: 0.000 | F229: 0.000 | G229: 0.000 | H229: 0.000 | I229: 0.000 | J229: 0.000 | K229: 0.000 | L229: 0.000 | M229: 0.000 | N229: 0.000 | O229: 0.000 | P229: 0.000 | Q229: 0.000 | R229: 0.000 | S229: 0.000 | T229: 0.000 | U229: 0.000 | V229: 0.000 | W229: 0.000 | X229: 1.000 | Y229: 0.000 | Z229: 0.000 | AA229: 0.000 | AB229: 0.000 | AC229: 0.000 | AD229: 0.000 | AE229: 0.000 | AF229: 0.000
B230: 0.000 | C230: 0.000 | D230: 0.000 | E230: 0.000 | F230: 0.000 | G230: 0.000 | H230: 0.000 | I230: 0.000 | J230: 0.000 | K230: 0.000 | L230: 0.000 | M230: 0.000 | N230: 0.000 | O230: 0.000 | P230: 0.000 | Q230: 0.000 | R230: 0.000 | S230: 0.000 | T230: 0.000 | U230: 0.000 | V230: 0.000 | W230: 0.000 | X230: 0.000 | Y230: 1.000 | Z230: 0.000 | AA230: 0.000 | AB230: 0.000 | AC230: 0.000 | AD230: 0.000 | AE230: 0.000 | AF230: 0.000
B231: 0.000 | C231: 0.000 | D231: 0.000 | E231: 0.000 | F231: 0.000 | G231: 0.000 | H231: 0.000 | I231: 0.000 | J231: 0.000 | K231: 0.000 | L231: 0.000 | M231: 0.000 | N231: 0.000 | O231: 0.000 | P231: 0.000 | Q231: 0.000 | R231: 0.000 | S231: 0.000 | T231: 0.000 | U231: 0.000 | V231: 0.000 | W231: 0.000 | X231: 0.000 | Y231: 0.000 | Z231: 1.000 | AA231: 0.000 | AB231: 0.000 | AC231: 0.000 | AD231: 0.000 | AE231: 0.000 | AF231: 0.000
B232: 0.000 | C232: 0.000 | D232: 0.000 | E232: 0.000 | F232: 0.000 | G232: 0.000 | H232: 0.000 | I232: 0.000 | J232: 0.000 | K232: 0.000 | L232: 0.000 | M232: 0.000 | N232: 0.000 | O232: 0.000 | P232: 0.000 | Q232: 0.000 | R232: 0.000 | S232: 0.000 | T232: 0.000 | U232: 0.000 | V232: 0.000 | W232: 0.000 | X232: 0.000 | Y232: 0.000 | Z232: 0.000 | AA232: 1.000 | AB232: 0.000 | AC232: 0.000 | AD232: 0.000 | AE232: 0.000 | AF232: 0.000
B233: 0.000 | C233: 0.000 | D233: 0.000 | E233: 0.000 | F233: 0.000 | G233: 0.000 | H233: 0.000 | I233: 0.000 | J233: 0.000 | K233: 0.000 | L233: 0.000 | M233: 0.000 | N233: 0.000 | O233: 0.000 | P233: 0.000 | Q233: 0.000 | R233: 0.000 | S233: 0.000 | T233: 0.000 | U233: 0.000 | V233: 0.000 | W233: 0.000 | X233: 0.000 | Y233: 0.000 | Z233: 0.000 | AA233: 0.000 | AB233: 1.000 | AC233: 0.000 | AD233: 0.000 | AE233: 0.000 | AF233: 0.000
B234: 0.000 | C234: 0.000 | D234: 0.000 | E234: 0.000 | F234: 0.000 | G234: 0.000 | H234: 0.000 | I234: 0.000 | J234: 0.000 | K234: 0.000 | L234: 0.000 | M234: 0.000 | N234: 0.000 | O234: 0.000 | P234: 0.000 | Q234: 0.000 | R234: 0.000 | S234: 0.000 | T234: 0.000 | U234: 0.000 | V234: 0.000 | W234: 0.000 | X234: 0.000 | Y234: 0.000 | Z234: 0.000 | AA234: 0.000 | AB234: 0.000 | AC234: 1.000 | AD234: 0.000 | AE234: 0.000 | AF234: 0.000
B235: 0.000 | C235: 0.000 | D235: 0.000 | E235: 0.000 | F235: 0.000 | G235: 0.000 | H235: 0.000 | I235: 0.000 | J235: 0.000 | K235: 0.000 | L235: 0.000 | M235: 0.000 | N235: 0.000 | O235: 0.000 | P235: 0.000 | Q235: 0.000 | R235: 0.000 | S235: 0.000 | T235: 0.000 | U235: 0.000 | V235: 0.000 | W235: 0.000 | X235: 0.000 | Y235: 0.000 | Z235: 0.000 | AA235: 0.000 | AB235: 0.000 | AC235: 0.000 | AD235: 1.000 | AE235: 0.000 | AF235: 0.000
B236: 0.000 | C236: 0.000 | D236: 0.000 | E236: 0.000 | F236: 0.000 | G236: 0.000 | H236: 0.000 | I236: 0.000 | J236: 0.000 | K236: 0.000 | L236: 0.000 | M236: 0.000 | N236: 0.000 | O236: 0.000 | P236: 0.000 | Q236: 0.000 | R236: 0.000 | S236: 0.000 | T236: 0.000 | U236: 0.000 | V236: 0.000 | W236: 0.000 | X236: 0.000 | Y236: 0.000 | Z236: 0.000 | AA236: 0.000 | AB236: 0.000 | AC236: 0.000 | AD236: 0.000 | AE236: 1.000 | AF236: 0.000
B237: 0.000 | C237: 0.000 | D237: 0.000 | E237: 0.000 | F237: 0.000 | G237: 0.000 | H237: 0.000 | I237: 0.000 | J237: 0.000 | K237: 0.000 | L237: 0.000 | M237: 0.000 | N237: 0.000 | O237: 0.000 | P237: 0.000 | Q237: 0.000 | R237: 0.000 | S237: 0.000 | T237: 0.000 | U237: 0.000 | V237: 0.000 | W237: 0.000 | X237: 0.000 | Y237: 0.000 | Z237: 0.000 | AA237: 0.000 | AB237: 0.000 | AC237: 0.000 | AD237: 0.000 | AE237: 0.000 | AF237: 1.000
B240: Predictions and residuals:
B242: censored log half BDQ | C242: censored subj | D242: Weight | E242: censored WBA | F242: Pred(censored WBA) | G242: Std. dev. on pred. (Mean) | H242: DF | I242: alpha | J242: Lower bound 95% (Mean) | K242: Upper bound 95% (Mean) | L242: Residual | M242: Studentized marginal residual | N242: Pearson marginal residual | O242: Raw conditional residual | P242: Studentized conditional residual | Q242: Pearson conditional residual | S242: R2
B243: 2.976677754 | C243: 1 | D243: 1 | E243: -0.389 | F243: -0.345 | G243: 0.092 | H243: 30 | I243: 0.050 | J243: -0.526 | K243: -0.164 | L243: -0.044 | M243: -0.340 | N243: -0.720 | O243: 0.099 | P243: 1.777 | Q243: 1.625 | S243: =CORREL(E243:E365,F243:F365)^2 -> 0.892
B244: 3.234595353 | C244: 1 | D244: 1 | E244: -0.442 | F244: -0.462 | G244: 0.092 | H244: 30 | I244: 0.050 | J244: -0.643 | K244: -0.281 | L244: 0.021 | M244: 0.159 | N244: 0.336 | O244: 0.176 | P244: 3.309 | Q244: 2.884
B245: 3.283417364 | C245: 1 | D245: 1 | E245: -0.426 | F245: -0.484 | G245: 0.092 | H245: 30 | I245: 0.050 | J245: -0.665 | K245: -0.303 | L245: 0.059 | M245: 0.454 | N245: 0.958 | O245: 0.216 | P245: 4.103 | Q245: 3.545
B246: 3.397327308 | C246: 1 | D246: 1 | E246: -0.608 | F246: -0.536 | G246: 0.092 | H246: 30 | I246: 0.050 | J246: -0.717 | K246: -0.355 | L246: -0.072 | M246: -0.563 | N246: -1.183 | O246: 0.091 | P246: 1.763 | Q246: 1.493
B247: 2.848096088 | C247: 2 | D247: 1 | E247: -0.147 | F247: -0.225 | G247: 0.092 | H247: 30 | I247: 0.050 | J247: -0.407 | K247: -0.044 | L247: 0.079 | M247: 0.609 | N247: 1.290 | O247: 0.154 | P247: 2.658 | Q247: 2.529
B248: 3.193722455 | C248: 2 | D248: 1 | E248: -0.461 | F248: -0.375 | G248: 0.092 | H248: 30 | I248: 0.050 | J248: -0.556 | K248: -0.194 | L248: -0.086 | M248: -0.670 | N248: -1.417 | O248: -0.002 | P248: -0.031 | Q248: -0.028
... 118 more rows

Sheet RBT and RIF
A1: RIF | B1: WBA | C1: log RIF ng | E1: RBT | F1: WBA | G1: log RBT ng
A2: 0.1 | B2: 0.11 | C2: =LOG(A2*1000) -> 2 | E2: 0.02 | F2: 0.096 | G2: =LOG(E2*1000) -> 1.301029996
A3: 0.2 | B3: -0.0204 | C3: =LOG(A3*1000) -> 2.301029996 | E3: 0.04 | F3: -0.1045 | G3: =LOG(E3*1000) -> 1.602059991
A4: 0.4 | B4: -0.301 | C4: 2.602059991 | E4: 0.06 | F4: -0.2981 | G4: 1.77815125
A5: 1 | B5: -0.6031 | C5: 3 | E5: 0.1 | F5: -0.4382 | G5: 2
A6: 2 | B6: -0.7883 | C6: 3.301029996 | E6: 0.2 | F6: -0.5623 | G6: 2.301029996
A7: 10 | B7: -1.1259 | C7: 4 | E7: 0.4 | F7: -0.7356 | G7: 2.602059991
A8: 20 | B8: -1.2231 | C8: 4.301029996 | E8: 0.6 | F8: -0.8601 | G8: 2.77815125
A9: 40 | B9: -1.3076 | C9: 4.602059991 | E9: 1.2 | F9: -0.9515 | G9: 3.079181246
E10: 2 | F10: -1.128 | G10: 3.301029996

Sheet Linear regression RBT
B1: XLSTAT 2014.3.01 - Linear regression - on 7/5/2014 at 1:14:26 PM
B2: Y / Quantitative: Workbook = WBA PK analysis.xlsm / Sheet = RBT and RIF / Range = 'RBT and RIF'!$F:$F / 9 rows and 1 column
B3: X / Quantitative: Workbook = WBA PK analysis.xlsm / Sheet = RBT and RIF / Range = 'RBT and RIF'!$G:$G / 9 rows and 1 column
B4: Confidence interval (%): 90
B5: Tolerance: 0.0001
B9: Summary statistics:
B11: Variable | C11: Observations | D11: Obs. with missing data | E11: Obs. without missing data | F11: Minimum | G11: Maximum | H11: Mean | I11: Std. deviation
B12: WBA | C12: 9 | D12: 0 | E12: 9 | F12: -1.128 | G12: 0.096 | H12: -0.554 | I12: 0.406
B13: log RBT ng | C13: 9 | D13: 0 | E13: 9 | F13: 1.301 | G13: 3.301 | H13: 2.305 | I13: 0.687
B16: Correlation matrix:
B18: Variables | C18: log RBT ng | D18: WBA
B19: log RBT ng | C19: 1.000 | D19: -0.994
B20: WBA | C20: -0.994 | D20: 1.000
B23: Regression of variable WBA:
B25: Goodness of fit statistics:
B27: Observations | C27: 9.000
B28: Sum of weights | C28: 9.000
B29: DF | C29: 7.000
B30: R² | C30: 0.988
B31: Adjusted R² | C31: 0.986
B32: MSE | C32: 0.002
B33: RMSE | C33: 0.048
B34: MAPE | C34: 15.946
B35: DW | C35: 1.323
B36: Cp | C36: 2.000
B37: AIC | C37: -52.873
B38: SBC | C38: -52.479
B39: PC | C39: 0.019
B42: Analysis of variance:
B44: Source | C44: DF | D44: Sum of squares | E44: Mean squares | F44: F | G44: Pr > F
B45: Model | C45: 1 | D45: 1.301 | E45: 1.301 | F45: 561.946 | G45: < 0.0001
B46: Error | C46: 7 | D46: 0.016 | E46: 0.002
B47: Corrected Total | C47: 8 | D47: 1.318
B48: Computed against model Y=Mean(Y)
B51: Model parameters:
B53: Source | C53: Value | D53: Standard error | E53: t | F53: Pr > |t| | G53: Lower bound (90%) | H53: Upper bound (90%)
B54: Intercept | C54: 0.799 | D54: 0.059 | E54: 13.484 | F54: < 0.0001 | G54: 0.687 | H54: 0.912
B55: log RBT ng | C55: -0.587 | D55: 0.025 | E55: -23.705 | F55: < 0.0001 | G55: -0.634 | H55: -0.540
B58: Equation of the model:
B60: WBA = 0.79944291303538-0.587063878191178*log RBT ng
B63: Standardized coefficients:
B65: Source | C65: Value | D65: Standard error | E65: t | F65: Pr > |t| | G65: Lower bound (90%) | H65: Upper bound (90%)
B66: log RBT ng | C66: -0.994 | D66: 0.042 | E66: -23.705 | F66: < 0.0001 | G66: -1.073 | H66: -0.914
B88: Predictions and residuals:
B90: Observation | C90: Weight | D90: log RBT ng | E90: WBA | F90: Pred(WBA) | G90: Residual | H90: Std. residual | I90: Studentized residuals | J90: Std. dev. on pred. (Mean) | K90: Lower bound 90% (Mean) | L90: Upper bound 90% (Mean) | M90: Std. dev. on pred. (Observation) | N90: Lower bound 90% (Observation) | O90: Upper bound 90% (Observation) | P90: Adjusted Pred. | Q90: Cook's D
B91: Obs1 | C91: 1 | D91: 1.301 | E91: 0.096 | F91: 0.036 | G91: 0.060 | H91: 1.254 | I91: 1.590 | J91: 0.030 | K91: -0.020 | L91: 0.092 | M91: 0.056 | N91: -0.071 | O91: 0.143 | P91: -0.001 | Q91: 0.768
B92: Obs2 | C92: 1 | D92: 1.602 | E92: -0.105 | F92: -0.141 | G92: 0.037 | H92: 0.760 | I92: 0.873 | J92: 0.024 | K92: -0.186 | L92: -0.096 | M92: 0.054 | N92: -0.243 | O92: -0.039 | P92: -0.153 | Q92: 0.121
B93: Obs3 | C93: 1 | D93: 1.778 | E93: -0.298 | F93: -0.244 | G93: -0.054 | H93: -1.115 | I93: -1.235 | J93: 0.021 | K93: -0.284 | L93: -0.205 | M93: 0.052 | N93: -0.344 | O93: -0.145 | P93: -0.232 | Q93: 0.172
B94: Obs4 | C94: 1 | D94: 2.000 | E94: -0.438 | F94: -0.375 | G94: -0.064 | H94: -1.320 | I94: -1.420 | J94: 0.018 | K94: -0.408 | L94: -0.341 | M94: 0.051 | N94: -0.472 | O94: -0.278 | P94: -0.365 | Q94: 0.158
B95: Obs5 | C95: 1 | D95: 2.301 | E95: -0.562 | F95: -0.551 | G95: -0.011 | H95: -0.226 | I95: -0.240 | J95: 0.016 | K95: -0.582 | L95: -0.521 | M95: 0.051 | N95: -0.648 | O95: -0.455 | P95: -0.550 | Q95: 0.004
B96: Obs6 | C96: 1 | D96: 2.602 | E96: -0.736 | F96: -0.728 | G96: -0.007 | H96: -0.155 | I96: -0.167 | J96: 0.018 | K96: -0.762 | L96: -0.695 | M96: 0.051 | N96: -0.825 | O96: -0.631 | P96: -0.727 | Q96: 0.002
B97: Obs7 | C97: 1 | D97: 2.778 | E97: -0.860 | F97: -0.832 | G97: -0.029 | H97: -0.594 | I97: -0.652 | J97: 0.020 | K97: -0.869 | L97: -0.794 | M97: 0.052 | N97: -0.930 | O97: -0.733 | P97: -0.826 | Q97: 0.044
B98: Obs8 | C98: 1 | D98: 3.079 | E98: -0.952 | F98: -1.008 | G98: 0.057 | H98: 1.179 | I98: 1.380 | J98: 0.025 | K98: -1.056 | L98: -0.961 | M98: 0.054 | N98: -1.111 | O98: -0.905 | P98: -1.029 | Q98: 0.352
B99: Obs9 | C99: 1 | D99: 3.301 | E99: -1.128 | F99: -1.138 | G99: 0.010 | H99: 0.218 | I99: 0.275 | J99: 0.029 | K99: -1.194 | L99: -1.083 | M99: 0.056 | N99: -1.245 | O99: -1.032 | P99: -1.145 | Q99: 0.023

Sheet WBA
A1: Subject | B1: Group | C1: Day | D1: Time | E1: log/d
A2: 10011001 | B2: Rifampin | C2: 4 | D2: 0 | E2: 0.07644735741
A3: 10011001 | B3: Rifampin | C3: 4 | D3: 1 | E3: 0.09939021091
A4: 10011001 | B4: Rifampin | C4: 4 | D4: 2 | E4: -0.2127615097
A5: 10011001 | B5: Rifampin | C5: 4 | D5: 3 | E5: -0.3557568848
A6: 10011001 | B6: Rifampin | C6: 4 | D6: 4 | E6: -0.3849726581
A7: 10011001 | B7: Rifampin | C7: 4 | D7: 6 | E7: -0.4028145596
A8: 10011001 | B8: Rifampin | C8: 4 | D8: 8 | E8: -0.3064114152
A9: 10011003 | B9: Rifampin | C9: 4 | D9: 0 | E9: 0.2380666757
A10: 10011003 | B10: Rifampin | C10: 4 | D10: 1 | E10: 0.2165426597
A11: 10011003 | B11: Rifampin | C11: 4 | D11: 2 | E11: -0.01706221775
A12: 10011003 | B12: Rifampin | C12: 4 | D12: 3 | E12: -0.2659051588
A13: 10011003 | B13: Rifampin | C13: 4 | D13: 4 | E13: -0.3505523387
A14: 10011003 | B14: Rifampin | C14: 4 | D14: 6 | E14: -0.5623579368
A15: 10011003 | B15: Rifampin | C15: 4 | D15: 8 | E15: -0.3258909303
A16: 10011004 | B16: Rifabutin | C16: 4 | D16: 0 | E16: 0.1936351921
A17: 10011004 | B17: Rifabutin | C17: 4 | D17: 1 | E17: 0.07570050354
A18: 10011004 | B18: Rifabutin | C18: 4 | D18: 2 | E18: 0.05623962532
A19: 10011004 | B19: Rifabutin | C19: 4 | D19: 3 | E19: -0.4257052287
A20: 10011004 | B20: Rifabutin | C20: 4 | D20: 4 | E20: -0.6081260606
A21: 10011004 | B21: Rifabutin | C21: 4 | D21: 6 | E21: -0.4415677086
A22: 10011004 | B22: Rifabutin | C22: 4 | D22: 8 | E22: -0.3890816077
A23: 10011008 | B23: contaminated | C23: 4 | D23: 0
A24: 10011008 | B24: contaminated | C24: 4 | D24: 1
A25: 10011008 | B25: contaminated | C25: 4 | D25: 3
A26: 10011008 | B26: contaminated | C26: 4 | D26: 4
A27: 10011008 | B27: contaminated | C27: 4 | D27: 6
A28: 10011008 | B28: contaminated | C28: 4 | D28: 8
A29: 10011009 | B29: Rifampin | C29: 4 | D29: 0 | E29: 0.1738689785
A30: 10011009 | B30: Rifampin | C30: 4 | D30: 1 | E30: 0.08908365433
A31: 10011009 | B31: Rifampin | C31: 4 | D31: 3 | E31: -0.1369060894
A32: 10011009 | B32: Rifampin | C32: 4 | D32: 4 | E32: -0.1196718514
A33: 10011009 | B33: Rifampin | C33: 4 | D33: 6 | E33: -0.05824737377
A34: 10011009 | B34: Rifampin | C34: 4 | D34: 8 | E34: -0.02769105473
A35: 10011010 | B35: Rifampin | C35: 4 | D35: 0 | E35: 0.1640947535
A36: 10011010 | B36: Rifampin | C36: 4 | D36: 1 | E36: 0.1820629758
A37: 10011010 | B37: Rifampin | C37: 4 | D37: 2 | E37: 0.2003549672
A38: 10011010 | B38: Rifampin | C38: 4 | D38: 3 | E38: 0.1942209422
A39: 10011010 | B39: Rifampin | C39: 4 | D39: 4 | E39: 0.1522902244
A40: 10011010 | B40: Rifampin | C40: 4 | D40: 6 | E40: -0.2844441623
A41: 10011010 | B41: Rifampin | C41: 4 | D41: 8 | E41: -0.2767824047
A42: 10011011 | B42: Rifabutin | C42: 4 | D42: 0 | E42: 0.1903625082
A43: 10011011 | B43: Rifabutin | C43: 4 | D43: 1 | E43: 0.1840373908
A44: 10011011 | B44: Rifabutin | C44: 4 | D44: 2 | E44: -0.1466745325
A45: 10011011 | B45: Rifabutin | C45: 4 | D45: 3 | E45: -0.4477872104
A46: 10011011 | B46: Rifabutin | C46: 4 | D46: 4 | E46: -0.4307249926
A47: 10011011 | B47: Rifabutin | C47: 4 | D47: 6 | E47: -0.464567395
A48: 10011011 | B48: Rifabutin | C48: 4 | D48: 8 | E48: -0.461233474
A49: 10011016 | B49: Rifabutin | C49: 4 | D49: 0 | E49: 0.2043041444
A50: 10011016 | B50: Rifabutin | C50: 4 | D50: 1 | E50: -0.03123871271
A51: 10011016 | B51: Rifabutin | C51: 4 | D51: 2 | E51: -0.3155672181
A52: 10011016 | B52: Rifabutin | C52: 4 | D52: 3 | E52: -0.3498541638
A53: 10011016 | B53: Rifabutin | C53: 4 | D53: 4 | E53: -0.3038759788
A54: 10011016 | B54: Rifabutin | C54: 4 | D54: 6 | E54: -0.4530608745
A55: 10011016 | B55: Rifabutin | C55: 4 | D55: 8 | E55: -0.263903175
A56: 10011017 | B56: Rifampin | C56: 4 | D56: 0 | E56: 0.2149093023
A57: 10011017 | B57: Rifampin | C57: 4 | D57: 1 | E57: 0.1587191002
A58: 10011017 | B58: Rifampin | C58: 4 | D58: 2 | E58: -0.4509214047
A59: 10011017 | B59: Rifampin | C59: 4 | D59: 3 | E59: -0.4846233563
A60: 10011017 | B60: Rifampin | C60: 4 | D60: 4 | E60: -0.5132218125
A61: 10011017 | B61: Rifampin | C61: 4 | D61: 6 | E61: -0.3799630576
A62: 10011017 | B62: Rifampin | C62: 4 | D62: 8 | E62: -0.3086097117
A63: 10011018 | B63: Rifabutin | C63: 4 | D63: 0 | E63: 0.1914536177
A64: 10011018 | B64: Rifabutin | C64: 4 | D64: 1 | E64: 0.2107909273
A65: 10011018 | B65: Rifabutin | C65: 4 | D65: 2 | E65: 0.0711736933
A66: 10011018 | B66: Rifabutin | C66: 4 | D66: 3 | E66: -0.1101271686
A67: 10011018 | B67: Rifabutin | C67: 4 | D67: 4 | E67: -0.3038759788
A68: 10011018 | B68: Rifabutin | C68: 4 | D68: 6 | E68: -0.4665071381
A69: 10011018 | B69: Rifabutin | C69: 4 | D69: 8 | E69: -0.3647288337
A70: 10011020 | B70: Rifampin | C70: 4 | D70: 0 | E70: 0.1820629758
A71: 10011020 | B71: Rifampin | C71: 4 | D71: 1 | E71: 0.07873541778
A72: 10011020 | B72: Rifampin | C72: 4 | D72: 2 | E72: -0.1800256014
A73: 10011020 | B73: Rifampin | C73: 4 | D73: 3 | E73: -0.4463720461
A74: 10011020 | B74: Rifampin | C74: 4 | D74: 4 | E74: -0.4688967305
A75: 10011020 | B75: Rifampin | C75: 4 | D75: 6 | E75: -0.4496206186
A76: 10011020 | B76: Rifampin | C76: 4 | D76: 8 | E76: -0.3544842116
A77: 10011021 | B77: Rifampin | C77: 4 | D77: 0 | E77: 0.2920485278
A78: 10011021 | B78: Rifampin | C78: 4 | D78: 1 | E78: 0.2317231752
A79: 10011021 | B79: Rifampin | C79: 4 | D79: 3 | E79: -0.3800567995
A80: 10011021 | B80: Rifampin | C80: 4 | D80: 4 | E80: -0.2429709271
A81: 10011021 | B81: Rifampin | C81: 4 | D81: 6 | E81: -0.3176211158
A82: 10011021 | B82: Rifampin | C82: 4 | D82: 8 | E82: -0.09392769403
A83: 10011022 | B83: Rifabutin | C83: 4 | D83: 0 | E83: 0.09809344348
A84: 10011022 | B84: Rifabutin | C84: 4 | D84: 1 | E84: 0.06908638271
A85: 10011022 | B85: Rifabutin | C85: 4 | D85: 2 | E85: -0.3329556761
A86: 10011022 | B86: Rifabutin | C86: 4 | D86: 3 | E86: -0.5051327015
A87: 10011022 | B87: Rifabutin | C87: 4 | D87: 4 | E87: -0.6800186652
A88: 10011022 | B88: Rifabutin | C88: 4 | D88: 6 | E88: -0.6274069934
A89: 10011022 | B89: Rifabutin | C89: 4 | D89: 8 | E89: -0.467912229
A90: 10011023 | B90: Rifampin | C90: 4 | D90: 0 | E90: 0.2583283227
A91: 10011023 | B91: Rifampin | C91: 4 | D91: 1 | E91: 0.1699962819
A92: 10011023 | B92: Rifampin | C92: 4 | D92: 3 | E92: 0.1285546887
A93: 10011023 | B93: Rifampin | C93: 4 | D93: 4 | E93: -0.1455709362
A94: 10011023 | B94: Rifampin | C94: 4 | D94: 6 | E94: -0.2380919418
A95: 10011023 | B95: Rifampin | C95: 4 | D95: 8 | E95: 0.03179788544
A96: 10011024 | B96: Rifabutin | C96: 4 | D96: 0 | E96: 0.3860466934
A97: 10011024 | B97: Rifabutin | C97: 4 | D97: 1 | E97: 0.2920485278
A98: 10011024 | B98: Rifabutin | C98: 4 | D98: 3 | E98: -0.126453343
A99: 10011024 | B99: Rifabutin | C99: 4 | D99: 4 | E99: -0.1490640339
A100: 10011024 | B100: Rifabutin | C100: 4 | D100: 6 | E100: -0.4388740205
A101: 10011024 | B101: Rifabutin | C101: 4 | D101: 8 | E101: -0.3800567995
A102: 10011027 | B102: contaminated | C102: 4 | D102: 0
A103: 10011027 | B103: contaminated | C103: 4 | D103: 1
A104: 10011027 | B104: contaminated | C104: 4 | D104: 3
A105: 10011027 | B105: contaminated | C105: 4 | D105: 4
A106: 10011027 | B106: contaminated | C106: 4 | D106: 6
A107: 10011027 | B107: contaminated | C107: 4 | D107: 8
A108: 10011028 | B108: Rifabutin | C108: 4 | D108: 0 | E108: 0.0580259676
A109: 10011028 | B109: Rifabutin | C109: 4 | D109: 1 | E109: 0.2551288934
A110: 10011028 | B110: Rifabutin | C110: 4 | D110: 3 | E110: 0.2617424547
A111: 10011028 | B111: Rifabutin | C111: 4 | D111: 4 | E111: 0.02071863868
A112: 10011028 | B112: Rifabutin | C112: 4 | D112: 6 | E112: -0.314862478
A113: 10011028 | B113: Rifabutin | C113: 4 | D113: 8 | E113: -0.2244774981
A114: 10011029 | B114: Rifampin | C114: 4 | D114: 0 | E114: 0.393651059
A115: 10011029 | B115: Rifampin | C115: 4 | D115: 1 | E115: 0.2580929191
A116: 10011029 | B116: Rifampin | C116: 4 | D116: 3 | E116: 0.2580929191
A117: 10011029 | B117: Rifampin | C117: 4 | D117: 4 | E117: -0.2750740941
A118: 10011029 | B118: Rifampin | C118: 4 | D118: 6 | E118: 0.12086645
A119: 10011029 | B119: Rifampin | C119: 4 | D119: 8 | E119: -0.1842252302
A120: 10011030 | B120: Rifabutin | C120: 4 | D120: 0 | E120: 0.05401143162
A121: 10011030 | B121: Rifabutin | C121: 4 | D121: 1 | E121: 0.1117803703
A122: 10011030 | B122: Rifabutin | C122: 4 | D122: 3 | E122: 0.04546995622
A123: 10011030 | B123: Rifabutin | C123: 4 | D123: 4 | E123: -0.157126025
A124: 10011030 | B124: Rifabutin | C124: 4 | D124: 6 | E124: -0.2334164069
A125: 10011030 | B125: Rifabutin | C125: 4 | D125: 8 | E125: -0.08409214243
A126: 10011031 | B126: Rifampin | C126: 4 | D126: 0 | E126: 0.03894387489
A127: 10011031 | B127: Rifampin | C127: 4 | D127: 1 | E127: 0.1837695978
A128: 10011031 | B128: Rifampin | C128: 4 | D128: 3 | E128: -0.1361589026
A129: 10011031 | B129: Rifampin | C129: 4 | D129: 4 | E129: -0.09572066764
A130: 10011031 | B130: Rifampin | C130: 4 | D130: 6 | E130: -0.1747196564
A131: 10011031 | B131: Rifampin | C131: 4 | D131: 8 | E131: -0.06502318618
A132: 10011032 | B132: Rifabutin | C132: 4 | D132: 0 | E132: 0.3129807758
A133: 10011032 | B133: Rifabutin | C133: 4 | D133: 1 | E133: 0.1267176365
A134: 10011032 | B134: Rifabutin | C134: 4 | D134: 3 | E134: -0.3474814466
A135: 10011032 | B135: Rifabutin | C135: 4 | D135: 4 | E135: -0.3693140743
A136: 10011032 | B136: Rifabutin | C136: 4 | D136: 6 | E136: -0.4816593307
A137: 10011032 | B137: Rifabutin | C137: 4 | D137: 8 | E137: -0.4321286265
A138: 10011033 | B138: Rifampin | C138: 4 | D138: 0 | E138: 0.1872283139
A139: 10011033 | B139: Rifampin | C139: 4 | D139: 1 | E139: 0.1309886886
A140: 10011033 | B140: Rifampin | C140: 4 | D140: 3 | E140: -0.3716607828
A141: 10011033 | B141: Rifampin | C141: 4 | D141: 4 | E141: -0.2027445597
A142: 10011033 | B142: Rifampin | C142: 4 | D142: 6 | E142: -0.2027445597
A143: 10011035 | B143: Rifabutin | C143: 4 | D143: 0 | E143: 0.2116600088
A144: 10011035 | B144: Rifabutin | C144: 4 | D144: 1 | E144: 0.3000502399
A145: 10011035 | B145: Rifabutin | C145: 4 | D145: 3 | E145: -0.3113702141
A146: 10011035 | B146: Rifabutin | C146: 4 | D146: 4 | E146: -0.2915914823
A147: 10011035 | B147: Rifabutin | C147: 4 | D147: 6 | E147: -0.3029512126
A148: 10011035 | B148: Rifabutin | C148: 4 | D148: 8 | E148: -0.1585248684
A149: 10011036 | B149: Rifabutin | C149: 4 | D149: 0 | E149: 0.3424740563
A150: 10011036 | B150: Rifabutin | C150: 4 | D150: 1 | E150: 0.1806265158
A151: 10011036 | B151: Rifabutin | C151: 4 | D151: 3 | E151: -0.3261291726
A152: 10011036 | B152: Rifabutin | C152: 4 | D152: 4 | E152: -0.351750168
A153: 10011036 | B153: Rifabutin | C153: 4 | D153: 6 | E153: -0.2660023748
A154: 10011036 | B154: Rifabutin | C154: 4 | D154: 8 | E154: -0.1416887974
A155: 10011038 | B155: Rifabutin | C155: 4 | D155: 0 | E155: 0.06001728578
A156: 10011038 | B156: Rifabutin | C156: 4 | D156: 1 | E156: -0.1759488314
A157: 10011038 | B157: Rifabutin | C157: 4 | D157: 3 | E157: -0.2316953659
A158: 10011038 | B158: Rifabutin | C158: 4 | D158: 4 | E158: -0.04760237549
A159: 10011038 | B159: Rifabutin | C159: 4 | D159: 6 | E159: -0.1540400935
A160: 10011038 | B160: Rifabutin | C160: 4 | D160: 8 | E160: -0.08058548077
A161: 10011040 | B161: Rifampin | C161: 4 | D161: 0 | E161: 0.1461815642
A162: 10011040 | B162: Rifampin | C162: 4 | D162: 1 | E162: 0.1461815642
A163: 10011040 | B163: Rifampin | C163: 4 | D163: 3 | E163: -0.1978535096
A164: 10011040 | B164: Rifampin | C164: 4 | D164: 4 | E164: -0.1784219143
A165: 10011040 | B165: Rifampin | C165: 4 | D165: 6 | E165: -0.1652103101
A166: 10011040 | B166: Rifampin | C166: 4 | D166: 8 | E166: -0.08853318382
A167: 10011041 | B167: Rifabutin | C167: 4 | D167: 0 | E167: 0.1118522945
A168: 10011041 | B168: Rifabutin | C168: 4 | D168: 1 | E168: 0.09701897983
A169: 10011041 | B169: Rifabutin | C169: 4 | D169: 3 | E169: -0.3418748897
A170: 10011041 | B170: Rifabutin | C170: 4 | D170: 4 | E170: -0.3243557921
A171: 10011041 | B171: Rifabutin | C171: 4 | D171: 6 | E171: -0.2631373201
A172: 10011041 | B172: Rifabutin | C172: 4 | D172: 8 | E172: -0.1547100879
A173: 10011043 | B173: Rifabutin | C173: 4 | D173: 0 | E173: 0.2231526009
A174: 10011043 | B174: Rifabutin | C174: 4 | D174: 1 | E174: 0.2177235745
A175: 10011043 | B175: Rifabutin | C175: 4 | D175: 3 | E175: 0
A176: 10011043 | B176: Rifabutin | C176: 4 | D176: 4 | E176: 0.004174140716
A177: 10011043 | B177: Rifabutin | C177: 4 | D177: 6 | E177: -0.1587012922
A178: 10011043 | B178: Rifabutin | C178: 4 | D178: 8 | E178: -0.06408220362
A179: 10011044 | B179: Rifampin | C179: 4 | D179: 0 | E179: 0.1574428726
A180: 10011044 | B180: Rifampin | C180: 4 | D180: 1 | E180: 0.1478676044
A181: 10011044 | B181: Rifampin | C181: 4 | D181: 3 | E181: -0.09761593593
A182: 10011044 | B182: Rifampin | C182: 4 | D182: 4 | E182: -0.0797131102
A183: 10011044 | B183: Rifampin | C183: 4 | D183: 6 | E183: -0.1390712096
A184: 10011044 | B184: Rifampin | C184: 4 | D184: 8 | E184: -0.06878323867
A185: 10011045 | B185: Rifabutin | C185: 4 | D185: 0 | E185: 0.2543759935
A186: 10011045 | B186: Rifabutin | C186: 4 | D186: 1 | E186: 0.2489822183
A187: 10011045 | B187: Rifabutin | C187: 4 | D187: 3 | E187: -0.104670412
A188: 10011045 | B188: Rifabutin | C188: 4 | D188: 4 | E188: 0.01609065257
A189: 10011045 | B189: Rifabutin | C189: 4 | D189: 6 | E189: -0.1081753109
A190: 10011045 | B190: Rifabutin | C190: 4 | D190: 8 | E190: 0.02425438705
A191: 10011047 | B191: Rifampin | C191: 4 | D191: 0 | E191: 0.1997439219
A192: 10011047 | B192: Rifampin | C192: 4 | D192: 1 | E192: 0.08916315497
A193: 10011047 | B193: Rifampin | C193: 4 | D193: 3 | E193: -0.09572066764
A194: 10011047 | B194: Rifampin | C194: 4 | D194: 4 | E194: -0.09947930278
A195: 10011047 | B195: Rifampin | C195: 4 | D195: 6 | E195: 0.0568561338
A196: 10011047 | B196: Rifampin | C196: 4 | D196: 8 | E196: -0.188309506
A197: 10011048 | B197: Rifampin | C197: 4 | D197: 0 | E197: 0.2330078942
A198: 10011048 | B198: Rifampin | C198: 4 | D198: 1 | E198: 0.2225264907
A199: 10011048 | B199: Rifampin | C199: 4 | D199: 3 | E199: 0.1918531601
A200: 10011048 | B200: Rifampin | C200: 4 | D200: 4 | E200: 0.09262415635
... 205 more rows

Sheet Linear regression RBT incorrect
B1: XLSTAT 2014.1.01 - Linear regression - on 3/16/2014 at 7:54:41 PM
B2: Y / Quantitative: Workbook = WBA PK analysis.xlsx / Sheet = RBT and RIF / Range = 'RBT and RIF'!$G:$G / 9 rows and 1 column
B3: X / Quantitative: Workbook = WBA PK analysis.xlsx / Sheet = RBT and RIF / Range = 'RBT and RIF'!$F:$F / 9 rows and 1 column
B4: Confidence interval (%): 90
B5: Tolerance: 0.0001
B9: Summary statistics:
B11: Variable | C11: Observations | D11: Obs. with missing data | E11: Obs. without missing data | F11: Minimum | G11: Maximum | H11: Mean | I11: Std. deviation
B12: log RBT ng | C12: 9 | D12: 0 | E12: 9 | F12: 1.301 | G12: 3.301 | H12: 2.305 | I12: 0.687
B13: WBA | C13: 9 | D13: 0 | E13: 9 | F13: -1.128 | G13: 0.096 | H13: -0.554 | I13: 0.406
B16: Correlation matrix:
B18: Variables | C18: WBA | D18: log RBT ng
B19: WBA | C19: 1.000 | D19: -0.994
B20: log RBT ng | C20: -0.994 | D20: 1.000
B23: Regression of variable log RBT ng:
B25: Goodness of fit statistics:
B27: Observations | C27: 9.000
B28: Sum of weights | C28: 9.000
B29: DF | C29: 7.000
B30: R² | C30: 0.988
B31: Adjusted R² | C31: 0.986
B32: MSE | C32: 0.007
B33: RMSE | C33: 0.081
B34: MAPE | C34: 3.123
B35: DW | C35: 1.312
B36: Cp | C36: 2.000
B37: AIC | C37: -43.397
B38: SBC | C38: -43.003
B39: PC | C39: 0.019
B42: Analysis of variance:
B44: Source | C44: DF | D44: Sum of squares | E44: Mean squares | F44: F | G44: Pr > F
B45: Model | C45: 1 | D45: 3.730 | E45: 3.730 | F45: 561.946 | G45: < 0.0001
B46: Error | C46: 7 | D46: 0.046 | E46: 0.007
B47: Corrected Total | C47: 8 | D47: 3.776
B48: Computed against model Y=Mean(Y)
B51: Model parameters:
B53: Source | C53: Value | D53: Standard error | E53: t | F53: Pr > |t| | G53: Lower bound (90%) | H53: Upper bound (90%)
B54: Intercept | C54: 1.373 | D54: 0.048 | E54: 28.755 | F54: < 0.0001 | G54: 1.283 | H54: 1.464
B55: WBA | C55: -1.682 | D55: 0.071 | E55: -23.705 | F55: < 0.0001 | G55: -1.817 | H55: -1.548
B58: Equation of the model:
B60: log RBT ng = 1.37336667121905-1.68243455341736*WBA
B63: Standardized coefficients:
B65: Source | C65: Value | D65: Standard error | E65: t | F65: Pr > |t| | G65: Lower bound (90%) | H65: Upper bound (90%)
B66: WBA | C66: -0.994 | D66: 0.042 | E66: -23.705 | F66: < 0.0001 | G66: -1.073 | H66: -0.914
B88: Predictions and residuals:
B90: Observation | C90: Weight | D90: WBA | E90: log RBT ng | F90: Pred(log RBT ng) | G90: Residual | H90: Std. residual | I90: Std. dev. on pred. (Mean) | J90: Lower bound 90% (Mean) | K90: Upper bound 90% (Mean) | L90: Std. dev. on pred. (Observation) | M90: Lower bound 90% (Observation) | N90: Upper bound 90% (Observation) | O90: Adjusted Pred. | P90: Cook's D
B91: Obs1 | C91: 1 | D91: 0.096 | E91: 1.301 | F91: 1.212 | G91: 0.089 | H91: 1.095 | I91: 0.054 | J91: 1.110 | K91: 1.313 | L91: 0.097 | M91: 1.027 | N91: 1.397 | O91: 1.144 | P91: 0.799
B92: Obs2 | C92: 1 | D92: -0.105 | E92: 1.602 | F92: 1.549 | G92: 0.053 | H92: 0.649 | I92: 0.042 | J92: 1.470 | K92: 1.629 | L92: 0.092 | M92: 1.376 | N92: 1.723 | O92: 1.530 | P92: 0.103
B93: Obs3 | C93: 1 | D93: -0.298 | E93: 1.778 | F93: 1.875 | G93: -0.097 | H93: -1.188 | I93: 0.033 | J93: 1.813 | K93: 1.937 | L93: 0.088 | M93: 1.709 | N93: 2.041 | O93: 1.893 | P93: 0.161
B94: Obs4 | C94: 1 | D94: -0.438 | E94: 2.000 | F94: 2.111 | G94: -0.111 | H94: -1.358 | I94: 0.028 | J94: 2.057 | K94: 2.164 | L94: 0.086 | M94: 1.947 | N94: 2.274 | O94: 2.126 | P94: 0.145
B95: Obs5 | C95: 1 | D95: -0.562 | E95: 2.301 | F95: 2.319 | G95: -0.018 | H95: -0.225 | I95: 0.027 | J95: 2.268 | K95: 2.371 | L95: 0.086 | M95: 2.157 | N95: 2.482 | O95: 2.322 | P95: 0.004
B96: Obs6 | C96: 1 | D96: -0.736 | E96: 2.602 | F96: 2.611 | G96: -0.009 | H96: -0.109 | I96: 0.030 | J96: 2.554 | K96: 2.668 | L96: 0.087 | M96: 2.446 | N96: 2.775 | O96: 2.612 | P96: 0.001
B97: Obs7 | C97: 1 | D97: -0.860 | E97: 2.778 | F97: 2.820 | G97: -0.042 | H97: -0.519 | I97: 0.035 | J97: 2.755 | K97: 2.886 | L97: 0.089 | M97: 2.653 | N97: 2.988 | O97: 2.830 | P97: 0.037
B98: Obs8 | C98: 1 | D98: -0.952 | E98: 3.079 | F98: 2.974 | G98: 0.105 | H98: 1.289 | I98: 0.039 | J98: 2.900 | K98: 3.048 | L98: 0.090 | M98: 2.803 | N98: 3.145 | O98: 2.943 | P98: 0.325
B99: Obs9 | C99: 1 | D99: -1.128 | E99: 3.301 | F99: 3.271 | G99: 0.030 | H99: 0.367 | I99: 0.049 | J99: 3.178 | K99: 3.364 | L99: 0.095 | M99: 3.091 | N99: 3.451 | O99: 3.254 | P99: 0.060

Sheet Linear regression RIF
B1: XLSTAT 2014.1.01 - Linear regression - on 3/16/2014 at 7:52:06 PM
B2: Y / Quantitative: Workbook = WBA PK analysis.xlsx / Sheet = RBT and RIF / Range = 'RBT and RIF'!$B:$B / 8 rows and 1 column
B3: X / Quantitative: Workbook = WBA PK analysis.xlsx / Sheet = RBT and RIF / Range = 'RBT and RIF'!$C:$C / 8 rows and 1 column
B4: Confidence interval (%): 90
B5: Tolerance: 0.0001
B9: Summary statistics:
B11: Variable | C11: Observations | D11: Obs. with missing data | E11: Obs. without missing data | F11: Minimum | G11: Maximum | H11: Mean | I11: Std. deviation
B12: WBA | C12: 8 | D12: 0 | E12: 8 | F12: -1.308 | G12: 0.110 | H12: -0.657 | I12: 0.548
B13: log RIF ng | C13: 8 | D13: 0 | E13: 8 | F13: 2.000 | G13: 4.602 | H13: 3.263 | I13: 0.959
B16: Correlation matrix:
B18: Variables | C18: log RIF ng | D18: WBA
B19: log RIF ng | C19: 1.000 | D19: -0.989
B20: WBA | C20: -0.989 | D20: 1.000
B23: Regression of variable WBA:
B25: Goodness of fit statistics:
B27: Observations | C27: 8.000
B28: Sum of weights | C28: 8.000
B29: DF | C29: 6.000
B30: R² | C30: 0.978
B31: Adjusted R² | C31: 0.974
B32: MSE | C32: 0.008
B33: RMSE | C33: 0.089
B34: MAPE | C34: 69.430
B35: DW | C35: 0.760
B36: Cp | C36: 2.000
B37: AIC | C37: -37.054
B38: SBC | C38: -36.895
B39: PC | C39: 0.037
B42: Analysis of variance:
B44: Source | C44: DF | D44: Sum of squares | E44: Mean squares | F44: F | G44: Pr > F
B45: Model | C45: 1 | D45: 2.057 | E45: 2.057 | F45: 261.194 | G45: < 0.0001
B46: Error | C46: 6 | D46: 0.047 | E46: 0.008
B47: Corrected Total | C47: 7 | D47: 2.104
B48: Computed against model Y=Mean(Y)
B51: Model parameters:
B53: Source | C53: Value | D53: Standard error | E53: t | F53: Pr > |t| | G53: Lower bound (90%) | H53: Upper bound (90%)
B54: Intercept | C54: 1.187 | D54: 0.118 | E54: 10.027 | F54: < 0.0001 | G54: 0.957 | H54: 1.417
B55: log RIF ng | C55: -0.565 | D55: 0.035 | E55: -16.161 | F55: < 0.0001 | G55: -0.633 | H55: -0.497
I56: ug RIF | J56: ng RIF | K56: WBA
I57: =J57/1000 -> 0.085 | J57: 85 | K57: =1.18658671175931-0.565058223809637*LOG(J57) -> 0.09635268061
B58: Equation of the model: | I58: =J58/1000 -> 20 | J58: 20000 | K58: =1.18658671175931-0.565058223809637*LOG(J58) -> -1.243745658
B60: WBA = 1.18658671175931-0.565058223809637*log RIF ng
B63: Standardized coefficients:
B65: Source | C65: Value | D65: Standard error | E65: t | F65: Pr > |t| | G65: Lower bound (90%) | H65: Upper bound (90%)
B66: log RIF ng | C66: -0.989 | D66: 0.061 | E66: -16.161 | F66: < 0.0001 | G66: -1.108 | H66: -0.870
B88: Predictions and residuals:
B90: Observation | C90: Weight | D90: log RIF ng | E90: WBA | F90: Pred(WBA) | G90: Residual | H90: Std. residual | I90: Std. dev. on pred. (Mean) | J90: Lower bound 90% (Mean) | K90: Upper bound 90% (Mean) | L90: Std. dev. on pred. (Observation) | M90: Lower bound 90% (Observation) | N90: Upper bound 90% (Observation) | O90: Adjusted Pred. | P90: Cook's D
B91: Obs1 | C91: 1 | D91: 2.000 | E91: 0.110 | F91: 0.056 | G91: 0.054 | H91: 0.603 | I91: 0.054 | J91: -0.049 | K91: 0.162 | L91: 0.104 | M91: -0.146 | N91: 0.259 | O91: 0.025 | P91: 0.172
B92: Obs2 | C92: 1 | D92: 2.301 | E92: -0.020 | F92: -0.114 | G92: 0.093 | H92: 1.051 | I92: 0.046 | J92: -0.203 | K92: -0.024 | L92: 0.100 | M92: -0.308 | N92: 0.081 | O92: -0.148 | P92: 0.277
B93: Obs3 | C93: 1 | D93: 2.602 | E93: -0.301 | F93: -0.284 | G93: -0.017 | H93: -0.195 | I93: 0.039 | J93: -0.359 | K93: -0.208 | L93: 0.097 | M93: -0.472 | N93: -0.095 | O93: -0.280 | P93: 0.006
B94: Obs4 | C94: 1 | D94: 3.000 | E94: -0.603 | F94: -0.509 | G94: -0.095 | H94: -1.065 | I94: 0.033 | J94: -0.572 | K94: -0.445 | L94: 0.095 | M94: -0.692 | N94: -0.325 | O94: -0.494 | P94: 0.103
B95: Obs5 | C95: 1 | D95: 3.301 | E95: -0.788 | F95: -0.679 | G95: -0.110 | H95: -1.235 | I95: 0.031 | J95: -0.740 | K95: -0.618 | L95: 0.094 | M95: -0.862 | N95: -0.496 | O95: -0.663 | P95: 0.125
B96: Obs6 | C96: 1 | D96: 4.000 | E96: -1.126 | F96: -1.074 | G96: -0.052 | H96: -0.589 | I96: 0.041 | J96: -1.153 | K96: -0.995 | L96: 0.098 | M96: -1.263 | N96: -0.884 | O96: -1.060 | P96: 0.058
B97: Obs7 | C97: 1 | D97: 4.301 | E97: -1.223 | F97: -1.244 | G97: 0.021 | H97: 0.233 | I97: 0.048 | J97: -1.337 | K97: -1.151 | L97: 0.101 | M97: -1.440 | N97: -1.048 | O97: -1.252 | P97: 0.016
B98: Obs8 | C98: 1 | D98: 4.602 | E98: -1.308 | F98: -1.414 | G98: 0.106 | H98: 1.197 | I98: 0.056 | J98: -1.523 | K98: -1.304 | L98: 0.105 | M98: -1.618 | N98: -1.210 | O98: -1.486 | P98: 0.811
